Workbook

Sheet Notes
A1: NSW State Water
A3: Instructions
A5: The purpose of this model is to illustrate the workings of the form of price control formulae which will apply in the setting of Tariffs for the Regulatory Period 2014-15 to 2016-17.
A6: The model calculatesTariffs for the Regulatory Period 2014-15 to 2016-17 based on actual inflation rates , actual water usage and actual average water allocations.
A8: State Water data input fields are shaded | C8: and located in tab "State Water data inputs".
A9: Note the data in tab "State Water data inputs" in this model is hypothetical data.
A13: NOTE : In tab "State Water data inputs" all data input fields should be populated to avoid #DIV/0! output in the model.
H73: =G73 -> 0 | I73: =H73 -> 0 | J73: =I73 -> 0 | K73: =J73 -> 0 | L73: =K73 -> 0

Sheet State Water data inputs
A2: Actual CPI
A3: CPI All Groups, Weighted Average of Eight Capital Cities, Index Numbers
A4: CPI Index March 2013 | B4: 102.4
A5: CPI Index March 2014 | B5: 105.2
A6: CPI Index March 2015 | B6: 108.1
A7: CPI Index March 2016 | B7: 110.6
C10: 2014-15 | D10: 2015-16 | E10: 2016-17
A11: Actual CPI | C11: =IF(B5="",0,B5/B4-1) -> 0.02734375 | D11: =IF(B6="",0,B6/B5-1) -> 0.02756653992 | E11: =IF(B7="",0,B7/B6-1) -> 0.02312673451
B14: Forecast Data | F14: Estimated Data | K14: Actual Data
A15: MDBA / BCR costs ($Nominal) | B15: General Security Entitlement (ML) | F15: General Security Entitlement (ML) | K15: General Security Entitlement (ML)
B16: 2014-15 | C16: 2015-16 | D16: 2016-17 | F16: 2014-15 | G16: 2015-16 | H16: 2016-17 | K16: 2014-15 | L16: 2015-16 | M16: 2016-17
A17: Border | B17: ='ACCC data inputs'!G25*(1+C$11) -> 513671.875 | C17: 513600 | D17: 513650 | F17: 513510 | G17: 513505 | H17: 513525 | K17: 513507 | L17: 513506 | M17: 513502
A18: Gwydir | B18: ='ACCC data inputs'!G26*(1+C$11) -> 514699.2188 | C18: 514627 | D18: 514677 | F18: 514537 | G18: 514532 | H18: 514552 | K18: 514534 | L18: 514533 | M18: 514529
A19: Namoi | B19: ='ACCC data inputs'!G27*(1+C$11) -> 515726.5625 | C19: 515654 | D19: 515704 | F19: 515564 | G19: 515559 | H19: 515579 | K19: 515561 | L19: 515560 | M19: 515556
A20: Peel | B20: ='ACCC data inputs'!G28*(1+C$11) -> 516753.9062 | C20: 516681 | D20: 516731 | F20: 516591 | G20: 516586 | H20: 516606 | K20: 516588 | L20: 516587 | M20: 516583
A21: Lachlan | B21: ='ACCC data inputs'!G29*(1+C$11) -> 0 | C21: 0 | D21: 0 | F21: 0 | G21: 0 | H21: 0 | K21: 0 | L21: 0 | M21: 0
A22: Macquarie | B22: ='ACCC data inputs'!G30*(1+C$11) -> 517781.25 | C22: 517708 | D22: 517758 | F22: 517618 | G22: 517613 | H22: 517633 | K22: 517615 | L22: 517614 | M22: 517610
A23: Murray | B23: ='ACCC data inputs'!G31*(1+C$11) -> 518808.5938 | C23: 518735 | D23: 518785 | F23: 518645 | G23: 518640 | H23: 518660 | K23: 518642 | L23: 518641 | M23: 518637
A24: Murrumbidgee | B24: ='ACCC data inputs'!G32*(1+C$11) -> 519835.9375 | C24: 519762 | D24: 519812 | F24: 519672 | G24: 519667 | H24: 519687 | K24: 519669 | L24: 519668 | M24: 519664
B27: Forecast Data | F27: Estimated Data | K27: Actual Data
A28: General Security Entitlement (ML) | B28: General Security Entitlement (ML) | F28: General Security Entitlement (ML) | K28: General Security Entitlement (ML)
B29: 2014-15 | C29: 2015-16 | D29: 2016-17 | F29: 2014-15 | G29: 2015-16 | H29: 2016-17 | K29: 2014-15 | L29: 2015-16 | M29: 2016-17
A30: Border | B30: ='ACCC data inputs'!C38 -> 263238 | C30: 263235 | D30: 263237 | F30: 263248 | G30: 263243 | H30: 263250 | K30: 263245 | L30: 263244 | M30: 263240
A31: Gwydir | B31: ='ACCC data inputs'!C39 -> 509665 | C31: 509662 | D31: 509664 | F31: 509675 | G31: 509670 | H31: 509677 | K31: 509672 | L31: 509671 | M31: 509667
A32: Namoi | B32: ='ACCC data inputs'!C40 -> 256076 | C32: 256073 | D32: 256075 | F32: 256086 | G32: 256081 | H32: 256088 | K32: 256083 | L32: 256082 | M32: 256078
A33: Peel | B33: ='ACCC data inputs'!C41 -> 30528 | C33: 30525 | D33: 30527 | F33: 30538 | G33: 30533 | H33: 30540 | K33: 30535 | L33: 30534 | M33: 30530
A34: Lachlan | B34: ='ACCC data inputs'!C42 -> 632837 | C34: 632834 | D34: 632836 | F34: 632847 | G34: 632842 | H34: 632849 | K34: 632844 | L34: 632843 | M34: 632839
A35: Macquarie | B35: ='ACCC data inputs'!C43 -> 631716 | C35: 631713 | D35: 631715 | F35: 631726 | G35: 631721 | H35: 631728 | K35: 631723 | L35: 631722 | M35: 631718
A36: Murray | B36: ='ACCC data inputs'!C44 -> 2075822 | C36: 2075819 | D36: 2075821 | F36: 2075832 | G36: 2075827 | H36: 2075834 | K36: 2075829 | L36: 2075828 | M36: 2075824
A37: Murrumbidgee | B37: ='ACCC data inputs'!C45 -> 2260113 | C37: 2260110 | D37: 2260112 | F37: 2260123 | G37: 2260118 | H37: 2260125 | K37: 2260120 | L37: 2260119 | M37: 2260115
A38: Lowbidgee | B38: ='ACCC data inputs'!C46 -> 747000 | C38: 746997 | D38: 746999 | F38: 747010 | G38: 747005 | H38: 747012 | K38: 747007 | L38: 747006 | M38: 747002
A41: High Security Entitlement (ML) | B41: Forecast Data | F41: Estimated Data | K41: Actual Data
B42: High Security Entitlement (ML) | F42: High Security Entitlement (ML) | K42: High Security Entitlement (ML)
B43: 2014-15 | C43: 2015-16 | D43: 2016-17 | F43: 2014-15 | G43: 2015-16 | H43: 2016-17 | K43: 2014-15 | L43: 2015-16 | M43: 2016-17
A44: Border | B44: ='ACCC data inputs'!D38 -> 3122 | C44: 3120 | D44: 3121 | F44: 3123 | G44: 3118 | H44: 3122 | K44: 3120 | L44: 3119 | M44: 3115
A45: Gwydir | B45: ='ACCC data inputs'!D39 -> 21457.9 | C45: 21455.9 | D45: 21456.9 | F45: 21457.9 | G45: 21457.9 | H45: 21457.9 | K45: 21454.9 | L45: 21453.9 | M45: 21449.9
A46: Namoi | B46: ='ACCC data inputs'!D40 -> 8881 | C46: 8879 | D46: 8880 | F46: 8881 | G46: 8881 | H46: 8881 | K46: 8878 | L46: 8877 | M46: 8873
A47: Peel | B47: ='ACCC data inputs'!D41 -> 17382 | C47: 17380 | D47: 17381 | F47: 17382 | G47: 17382 | H47: 17382 | K47: 17379 | L47: 17378 | M47: 17374
A48: Lachlan | B48: ='ACCC data inputs'!D42 -> 60745 | C48: 60743 | D48: 60744 | F48: 60745 | G48: 60745 | H48: 60745 | K48: 60742 | L48: 60741 | M48: 60737
A49: Macquarie | B49: ='ACCC data inputs'!D43 -> 42606 | C49: 42604 | D49: 42605 | F49: 42606 | G49: 42606 | H49: 42606 | K49: 42603 | L49: 42602 | M49: 42598
A50: Murray | B50: ='ACCC data inputs'!D44 -> 261400.7 | C50: 261398.7 | D50: 261399.7 | F50: 261400.7 | G50: 261400.7 | H50: 261400.7 | K50: 261397.7 | L50: 261396.7 | M50: 261392.7
A51: Murrumbidgee | B51: ='ACCC data inputs'!D45 -> 436928 | C51: 436926 | D51: 436927 | F51: 436928 | G51: 436928 | H51: 436928 | K51: 436925 | L51: 436924 | M51: 436920
B54: Forecast Data (20 year average) | F54: Estimated Data | J54: Actual Data
A55: Water Volumes (ML) | B55: Water Volumes (ML) | F55: Water Volumes (ML) | J55: Water Volumes (ML)
B56: 2014-15 | C56: 2015-16 | D56: 2016-17 | F56: 2014-15 | G56: 2015-16 | H56: 2016-17 | J56: 2013-14 | K56: 2014-15 | L56: 2015-16 | M56: 2016-17
A57: Border | B57: ='Demand and Allocations data'!C$35 -> 140676.9395 | C57: ='Demand and Allocations data'!C$36 -> 140813.1135 | D57: ='Demand and Allocations data'!C$37 -> 148116.9301 | F57: 211015.4093 | G57: 125323.671 | H57: 162928.6231 | J57: 70810.48 | K57: 209960.3322 | L57: 125950.2894 | M57: 179335.5355
A58: Gwydir | B58: ='Demand and Allocations data'!D$35 -> 245876.7405 | C58: ='Demand and Allocations data'!D$36 -> 246074.4656 | D58: ='Demand and Allocations data'!D$37 -> 262163.9794 | F58: 368815.1107 | G58: 219006.2744 | H58: 288380.3773 | J58: 102817.052 | K58: 366971.0352 | L58: 220101.3058 | M58: 317420.2813
A59: Namoi | B59: ='Demand and Allocations data'!E$35 -> 158960.9705 | C59: ='Demand and Allocations data'!E$36 -> 159205.4689 | D59: ='Demand and Allocations data'!E$37 -> 169086.1363 | F59: 238441.4557 | G59: 141692.8673 | H59: 185994.75 | J59: 127139.168 | K59: 237249.2485 | L59: 142401.3317 | M59: 204724.4213
A60: Peel | B60: ='Demand and Allocations data'!F$35 -> 11163.91 | C60: ='Demand and Allocations data'!F$36 -> 11183.8704 | D60: ='Demand and Allocations data'!F$37 -> 11421.16718 | F60: 16745.865 | G60: 9953.644656 | H60: 12563.2839 | J60: 10379.408 | K60: 16662.13567 | L60: 10003.41288 | M60: 13828.40659
A61: Lachlan | B61: ='Demand and Allocations data'!G$35 -> 227697.179 | C61: ='Demand and Allocations data'!G$36 -> 228267.1291 | D61: ='Demand and Allocations data'!G$37 -> 225765.9126 | F61: 341545.7685 | G61: 203157.7449 | H61: 248342.5038 | J61: 296374.052 | K61: 339838.0397 | L61: 204173.5336 | M61: 273350.594
A62: Macquarie | B62: ='Demand and Allocations data'!H$35 -> 279670.6685 | C62: ='Demand and Allocations data'!H$36 -> 280699.9013 | D62: ='Demand and Allocations data'!H$37 -> 293219.3314 | F62: 419506.0028 | G62: 249822.9121 | H62: 322541.2645 | J62: 535201.0352 | K62: 417408.4727 | L62: 251072.0267 | M62: 355021.1699
A63: Murray | B63: ='Demand and Allocations data'!I$35 -> 1459688.934 | C63: ='Demand and Allocations data'!I$36 -> 1463341.22 | D63: ='Demand and Allocations data'!I$37 -> 1465477.957 | F63: 2189533.401 | G63: 1302373.686 | H63: 1612025.752 | J63: 1899188.72 | K63: 2178585.734 | L63: 1308885.554 | M63: 1774356.746
A64: Murrumbidgee | B64: ='Demand and Allocations data'!J$35 -> 1759739.925 | C64: ='Demand and Allocations data'!J$36 -> 1763915.343 | D64: ='Demand and Allocations data'!J$37 -> 1766973.885 | F64: 2639609.888 | G64: 1569884.655 | H64: 1943671.273 | J64: 2171217.36 | K64: 2626411.838 | L64: 1577734.079 | M64: 2139398.971
A65: Lowbidgee | F65: 20000 | G65: 30000 | H65: 50000 | K65: 22000 | L65: 25000 | M65: 60000
B69: Actual Data | G69: Actual Data | L69: (20 year average)
A70: Water Allocation Rates | B70: General Security - Water Allocation | G70: High Security - Water Allocation | L70: Average Water Allocation (AWA)
B71: 2013-14 | C71: 2014-15 | D71: 2015-16 | E71: 2016-17 | G71: 2013-14 | H71: 2014-15 | I71: 2015-16 | J71: 2016-17 | L71: 2014-15 | M71: 2015-16 | N71: 2016-17
A72: Border | B72: ='Demand and Allocations data'!$M$7+2% -> 0.09 | C72: ='Demand and Allocations data'!$M$8+15% -> 0.15 | D72: ='Demand and Allocations data'!$M$9 -> 0.05 | E72: ='Demand and Allocations data'!$M$10 -> 0.65 | G72: 1 | H72: 1 | I72: 1 | J72: 1 | L72: ='Demand and Allocations data'!M$41 -> 2.318499677 | M72: ='Demand and Allocations data'!M$42 -> 2.313136671 | N72: ='Demand and Allocations data'!M$43 -> 2.273691477
A73: Gwydir | B73: ='Demand and Allocations data'!$O$7+10% -> 0.1 | C73: ='Demand and Allocations data'!$O$8+5% -> 0.05 | D73: ='Demand and Allocations data'!$O$9 -> 0.18 | E73: ='Demand and Allocations data'!$O$10 -> 0.75 | G73: 1 | H73: 1 | I73: 1 | J73: 1 | L73: ='Demand and Allocations data'!O$41 -> 2.246650589 | M73: ='Demand and Allocations data'!O$42 -> 2.221693741 | N73: ='Demand and Allocations data'!O$43 -> 2.209422093
A74: Namoi | B74: ='Demand and Allocations data'!$Q$7+5% -> 0.32 | C74: ='Demand and Allocations data'!$Q$8+5% -> 0.05 | D74: ='Demand and Allocations data'!$Q$9 -> 0.3 | E74: ='Demand and Allocations data'!$Q$10 -> 1 | G74: 1 | H74: 1 | I74: 1 | J74: 1 | L74: ='Demand and Allocations data'!Q$41 -> 1.720536962 | M74: ='Demand and Allocations data'!Q$42 -> 1.71316804 | N74: ='Demand and Allocations data'!Q$43 -> 1.705861969
A75: Peel | B75: ='Demand and Allocations data'!$S$7+20% -> 1.2 | C75: ='Demand and Allocations data'!$S$8+30% -> 0.8 | D75: ='Demand and Allocations data'!$S$9+40% -> 0.7 | E75: ='Demand and Allocations data'!$S$10+10% -> 0.75 | G75: 1 | H75: 1 | I75: 1 | J75: 1 | L75: ='Demand and Allocations data'!S$41 -> 1.467351431 | M75: ='Demand and Allocations data'!S$42 -> 1.446131598 | N75: ='Demand and Allocations data'!S$43 -> 1.415428167
A76: Lachlan | B76: ='Demand and Allocations data'!$U$7-10% -> 1.1 | C76: ='Demand and Allocations data'!$U$8+20% -> 1 | D76: ='Demand and Allocations data'!$U$9-10% -> 0.9 | E76: ='Demand and Allocations data'!$U$10+30% -> 1.3 | G76: 1 | H76: 1 | I76: 1 | J76: 1 | L76: ='Demand and Allocations data'!U$41 -> 1.645064806 | M76: ='Demand and Allocations data'!U$42 -> 1.66163142 | N76: ='Demand and Allocations data'!U$43 -> 1.628825271
A77: Macquarie | B77: ='Demand and Allocations data'!$W$7+25% -> 1.25 | C77: ='Demand and Allocations data'!$W$8+70% -> 1.5 | D77: ='Demand and Allocations data'!$W$9 -> 0.55 | E77: ='Demand and Allocations data'!$W$10+25% -> 1.1 | G77: 1 | H77: 1 | I77: 1 | J77: 1 | L77: ='Demand and Allocations data'!W$41 -> 1.960784314 | M77: ='Demand and Allocations data'!W$42 -> 1.913875598 | N77: ='Demand and Allocations data'!W$43 -> 1.793721973
A78: Murray | B78: ='Demand and Allocations data'!$Y$7-20% -> 1.1 | C78: ='Demand and Allocations data'!$Y$8+5% -> 1 | D78: ='Demand and Allocations data'!$Y$9 -> 1 | E78: ='Demand and Allocations data'!$Y$10 -> 1 | G78: 1 | H78: 1 | I78: 1 | J78: 1 | L78: ='Demand and Allocations data'!Y$41 -> 1.411111111 | M78: ='Demand and Allocations data'!Y$42 -> 1.432330827 | N78: ='Demand and Allocations data'!Y$43 -> 1.426966292
A79: Murrumbidgee | B79: ='Demand and Allocations data'!$AA$7-50% -> 0.7 | C79: ='Demand and Allocations data'!$AA$8+50% -> 1.5 | D79: ='Demand and Allocations data'!$AA$9+90% -> 1.95 | E79: ='Demand and Allocations data'!$AA$10+40% -> 1.4 | G79: 1 | H79: 1 | I79: 1 | J79: 1 | L79: ='Demand and Allocations data'!AA$41 -> 1.412543353 | M79: ='Demand and Allocations data'!AA$42 -> 1.465487256 | N79: ='Demand and Allocations data'!AA$43 -> 1.412543353
A83: Fish River
B84: Forecast Data (20 year average) | F84: Estimated Data | J84: Actual Data
A85: Water Volumes (ML) | B85: Water Volumes (ML) | F85: Water Volumes (ML) | J85: Water Volumes (ML)
B86: 2014-15 | C86: 2015-16 | D86: 2016-17 | F86: 2014-15 | G86: 2015-16 | H86: 2016-17 | J86: 2013-14 | K86: 2014-15 | L86: 2015-16 | M86: 2016-17
A87: BULK RAW WATER
A88: - Delta Electricity | B88: ='Demand and Allocations data'!$AE$35 -> 6189.8482 | C88: ='Demand and Allocations data'!$AE$36 -> 6187.8482 | D88: ='Demand and Allocations data'!AE$37 -> 6184.230648 | F88: 6239.8482 | G88: 6167.8482 | H88: 6214.230648 | J88: 5161 | K88: 6208.648959 | L88: 6198.687441 | M88: 6840.003674
A89: - Sydney Catchment Authority | B89: ='Demand and Allocations data'!$AF$35 -> 2411.62875 | C89: ='Demand and Allocations data'!$AF$36 -> 2410.12875 | D89: ='Demand and Allocations data'!AF$37 -> 2366.45228 | F89: 2431.62875 | G89: 2400.12875 | H89: 2396.45228 | J89: 3706 | K89: 2419.470606 | L89: 2412.129394 | M89: 2637.775025
A90: - Oberon Council | B90: ='Demand and Allocations data'!$AG$35 -> 717.08692 | C90: ='Demand and Allocations data'!$AG$36 -> 716.08692 | D90: ='Demand and Allocations data'!AG$37 -> 722.2107443 | F90: 722.08692 | G90: 711.08692 | H90: 732.2107443 | J90: 684 | K90: 718.4764854 | L90: 714.6423546 | M90: 805.9443662
A91: - Individual Minor Customers | B91: ='Demand and Allocations data'!$AI$35 -> 52.09287623 | C91: ='Demand and Allocations data'!$AI$36 -> 50.09287623 | D91: ='Demand and Allocations data'!AI$37 -> 50.64285758 | F91: 54.09287623 | G91: 48.09287623 | H91: 51.64285758 | J91: 77.27285513 | K91: 53.82241185 | L91: 48.33334061 | M91: 56.84329334
A92: BULK FILTERED WATER
A93: - Lithgow Council | B93: ='Demand and Allocations data'!$AH$35 -> 985.5005 | C93: ='Demand and Allocations data'!$AH$36 -> 984.0005 | D93: ='Demand and Allocations data'!AH$37 -> 959.2778999 | F93: 990.5005 | G93: 979.0005 | H93: 969.2778999 | J93: 2058 | K93: 985.5479975 | L93: 983.8955025 | M93: 1066.884184
A94: - Individual Minor Customers | B94: ='Demand and Allocations data'!$AJ$35 -> 131.8055767 | C94: ='Demand and Allocations data'!$AJ$36 -> 129.3055767 | D94: ='Demand and Allocations data'!AJ$37 -> 130.4643028 | F94: 133.8055767 | G94: 127.3055767 | H94: 131.4643028 | J94: 251.137834 | K94: 133.1365488 | L94: 127.9421045 | M94: 144.7027581
B97: Forecast Data (20 year average) | F97: Estimated Data | K97: Actual Data
B98: Number of Minor Customers | F98: Number of Minor Customers | K98: Number of Minor Customers
A99: Number of Minor Customers | B99: 2014-15 | C99: 2015-16 | D99: 2016-17 | F99: 2014-15 | G99: 2015-16 | H99: 2016-17 | K99: 2014-15 | L99: 2015-16 | M99: 2016-17
A100: BULK RAW WATER | B100: ='ACCC data inputs'!G48 -> 74 | C100: 75 | D100: 77 | F100: 73 | G100: 75 | H100: 76 | K100: 73 | L100: 75 | M100: 76
A101: BULK FILTERED WATER | B101: ='ACCC data inputs'!G49 -> 208 | C101: 208 | D101: 209 | F101: 207 | G101: 209 | H101: 210 | K101: 207 | L101: 209 | M101: 210

Sheet ACCC data inputs
A2: Base year prices per tariff component for 2013-14 ($ Nominal)
B3: High Security Entitlement ($/ML) | C3: General Security Entitlement ($/ML) | D3: Usage ($/ML delivered)
B4: 2013-14 | C4: 2013-14 | D4: 2013-14
A5: Border | B5: 11.45 | C5: 3.21 | D5: 9.43
A6: Gwydir | B6: 14.55 | C6: 4.06 | D6: 12.97
A7: Namoi | B7: 16.22 | C7: 9.09 | D7: 19.98
A8: Peel | B8: 25.19 | C8: 2.77 | D8: 41.61
A9: Lachlan | B9: 12.36 | C9: 4.42 | D9: 18.04
A10: Macquarie | B10: 11.42 | C10: 4.24 | D10: 13.98
A11: Murray | B11: 3.14 | C11: 2.33 | D11: 4.97
A12: Murrumbidgee | B12: 2.98 | C12: 1.59 | D12: 3.78
A13: Lowbidgee
A15: Fish River | B15: 2013-14 | C15: 2013-14 | D15: 2013-14
B16: Access | C16: Usage < MAQ | D16: Usage > MAQ
A17: Raw water - major customers | B17: 0.38 | C17: 0.43 | D17: 0.81
A18: Raw water - minor customers | B18: 0.47 | C18: 0.85 | D18: 1.33
A19: Filtered water - major customers | B19: 0.57 | C19: 0.61 | D19: 1.18
A20: Filtered water - minor customers | B20: 0.6733136235 | C20: 1.04 | D20: 1.71
B22: Benchmark Revenue (Rev BBM) | F22: MDBA / BCR costs
B23: ($ Real 2013-14) | F23: ($ Real 2013-14)
B24: 2014-15 | C24: 2015-16 | D24: 2016-17 | G24: 2014-15
A25: Border | B25: 1511780.095 | C25: 1502090.24 | D25: 1492462.493 | F25: Border | G25: 500000
A26: Gwydir | B26: 4981132.097 | C26: 5182678.3 | D26: 5392379.451 | F26: Gwydir | G26: 501000
A27: Namoi | B27: 5460652.899 | C27: 5501971.01 | D27: 5543601.755 | F27: Namoi | G27: 502000
A28: Peel | B28: 1338151.891 | C28: 1349186.345 | D28: 1360311.79 | F28: Peel | G28: 503000
A29: Lachlan | B29: 7017248.586 | C29: 7315907.213 | D29: 7627276.945 | F29: Lachlan | G29: 0
A30: Macquarie | B30: 6858887.258 | C30: 7039034.659 | D30: 7223913.598 | F30: Macquarie | G30: 504000
A31: Murray | B31: 6316195.949 | C31: 6191780.528 | D31: 6069815.822 | F31: Murray | G31: 505000
A32: Murrumbidgee | B32: 9902611.789 | C32: 9873431.491 | D32: 9844337.18 | F32: Murrumbidgee | G32: 506000
A33: Lowbidgee | B33: 530781.2028 | C33: 561861.9219 | D33: 594762.6209 | F33: Lowbidgee | G33: 0
A34: Fish River | B34: 9923085.134 | C34: 9994008.415 | D34: 10065438.61 | F34: Fish River | G34: 0
B36: Water sharing plan ratio (WSP) | C36: General Security Entitlement (ML) | D36: High Security Entitlement (ML) | F36: Fish River
B37: 2014-17 | C37: 2014-15 | D37: 2014-15 | F37: Minimum Annual Quantity (MAQ) | G37: 2014-15 | H37: 2015-16 | I37: 2016-17
A38: Border | B38: 1.28 | C38: 263238 | D38: 3122 | F38: BULK RAW WATER
A39: Gwydir | B39: 1.81 | C39: 509665 | D39: 21457.9 | F39: - Delta Electricity | G39: 8184 | H39: 8184 | I39: 8184
A40: Namoi | B40: 1.25 | C40: 256076 | D40: 8881 | F40: - Sydney Catchment Authority | G40: 3650 | H40: 3650 | I40: 3650
A41: Peel | B41: 6.73 | C41: 30528 | D41: 17382 | F41: - Oberon Council | G41: 1064 | H41: 1064 | I41: 1064
A42: Lachlan | B42: 2.45 | C42: 632837 | D42: 60745 | F42: - Individual Minor Customers | G42: 200 | H42: 200 | I42: 200
A43: Macquarie | B43: 1.88 | C43: 631716 | D43: 42606 | F43: BULK FILTERED WATER
A44: Murray | B44: 1.25 | C44: 2075822 | D44: 261400.7 | F44: - Lithgow Council | G44: 1778 | H44: 1778 | I44: 1778
A45: Murrumbidgee | B45: 1.63 | C45: 2260113 | D45: 436928 | F45: - Individual Minor Customers | G45: 200 | H45: 200 | I45: 200
A46: Lowbidgee | B46: 0 | C46: 747000 | D46: 0
F47: Number of Minor Customers | G47: 2014-15
A48: Tariff Structure 2014-17 | B48: 2014-15 | C48: 2015-16 | D48: 2016-17 | F48: BULK RAW WATER | G48: 74
A49: Target Variable / Fixed ratio (%) | B49: 0.6 | C49: 0.6 | D49: 0.6 | F49: BULK FILTERED WATER | G49: 208
A51: Fish River
A52: Raw Water /Filtered Water (%) | B52: 0.8 | C52: 0.8 | D52: 0.8
A53: Target Variable / Fixed ratio (%)
A54: Raw Water | B54: 0.45 | C54: 0.45 | D54: 0.45
A55: Filtered Water | B55: 0.4 | C55: 0.4 | D55: 0.4
A57: WACC | B57: 2014-15 | C57: 2015-16 | D57: 2016-17
A58: Real Pre Tax WACC | B58: 0.04816058537 | C58: 0.04816058537 | D58: 0.04816058537

Sheet Demand and Allocations data
B3: Demand | L3: General Security and High Security Allocations | AD3: Fish River
A4: Year | C4: Border | D4: Gwydir | E4: Namoi | F4: Peel | G4: Lachlan | H4: Macquarie | I4: Murray | J4: Murrumbidgee | M4: Border | O4: Gwydir | Q4: Namoi | S4: Peel | U4: Lachlan | W4: Macquarie | Y4: Murray | AA4: Murrumbidgee | AE4: Actual Water usage
A5: Counter | B5: FY ending | C5: Actual | D5: Actual | E5: Actual | F5: Actual | G5: Actual | H5: Actual | I5: Actual | J5: Actual | L5: FY ending | M5: Actual | O5: Actual | Q5: Actual | S5: Actual | U5: Actual | W5: Actual | Y5: Actual | AA5: Actual | AD5: FY ending | AI5: Minor customers
M6: GS | N6: HS | O6: GS | P6: HS | Q6: GS | R6: HS | S6: GS | T6: HS | U6: GS | V6: HS | W6: GS | X6: HS | Y6: GS | Z6: HS | AA6: GS | AB6: HS | AE6: Delta Electricity | AF6: SCA | AG6: Oberon Council | AH6: Lithgow Council | AI6: Raw | AJ6: Filtered
A7: 1 | B7: 1994 | C7: 68087 | D7: 98862.55 | E7: 122249.2 | F7: 9980.2 | G7: 284975.05 | H7: 514616.38 | I7: 1826143 | J7: 2087709 | L7: 1994 | M7: 0.07 | N7: 1 | O7: 0 | P7: 1 | Q7: 0.27 | R7: 1 | S7: 1 | T7: 1 | U7: 1.2 | V7: 1 | W7: 1 | X7: 1 | Y7: 1.3 | Z7: 1 | AA7: 1.2 | AB7: 1 | AD7: 1994 | AE7: 5201 | AF7: 3736 | AG7: 704 | AH7: 2088 | AI7: 117.2728551 | AJ7: 301.137834
A8: =A7+1 -> 2 | B8: 1995 | C8: 63884 | D8: 45180.76 | E8: 39635.9 | F8: 11916.2 | G8: 389862.37 | H8: 167019.87 | I8: 2135851 | J8: 2565241 | L8: 1995 | M8: 0 | N8: 1 | O8: 0 | P8: 1 | Q8: 0 | R8: 1 | S8: 0.5 | T8: 1 | U8: 0.8 | V8: 1 | W8: 0.8 | X8: 1 | Y8: 0.95 | Z8: 1 | AA8: 1 | AB8: 1 | AD8: 1995 | AE8: 6281 | AF8: 3293 | AG8: 596 | AH8: 1480 | AI8: 42.82278481 | AJ8: 109.9620253
A9: =A8+1 -> 3 | B9: 1996 | C9: 139403 | D9: 178003 | E9: 97586 | F9: 5942 | G9: 385000 | H9: 199100 | I9: 2033592.896 | J9: 2159000 | L9: 1996 | M9: 0.05 | N9: 1 | O9: 0.18 | P9: 1 | Q9: 0.3 | R9: 1 | S9: 0.3 | T9: 1 | U9: 1 | V9: 1 | W9: 0.55 | X9: 1 | Y9: 1 | Z9: 1 | AA9: 1.05 | AB9: 1 | AD9: 1996 | AE9: 7662 | AF9: 3215 | AG9: 622 | AH9: 1138 | AI9: 45.34177215 | AJ9: 116.4303797
A10: 4 | B10: 1997 | C10: 169812 | D10: 394616 | E10: 198965.3 | F10: 5641 | G10: 436000 | H10: 348937 | I10: 2372283.84 | J10: 2611000 | L10: 1997 | M10: 0.65 | N10: 1 | O10: 0.75 | P10: 1 | Q10: 1 | R10: 1 | S10: 0.65 | T10: 1 | U10: 1 | V10: 1 | W10: 0.85 | X10: 1 | Y10: 1 | Z10: 1 | AA10: 1 | AB10: 1 | AD10: 1997 | AE10: 7451 | AF10: 3650 | AG10: 734 | AH10: 1098 | AI10: 72.49085795 | AJ10: 186.1448664
A11: 5 | B11: 1998 | C11: 187883 | D11: 454913 | E11: 323274.03 | F11: 16020 | G11: 414000 | H11: 403989 | I11: 1972012.6 | J11: 2442000 | L11: 1998 | M11: 0.55 | N11: 1 | O11: 0.82 | P11: 1 | Q11: 1 | R11: 1 | S11: 1 | T11: 1 | U11: 0.65 | V11: 1 | W11: 0.1 | X11: 1 | Y11: 0.84 | Z11: 1 | AA11: 0.9 | AB11: 1 | AD11: 1998 | AE11: 7243 | AF11: 3003 | AG11: 827 | AH11: 970 | AI11: 53.73839662 | AJ11: 137.9915612
A12: 6 | B12: 1999 | C12: 164331 | D12: 374762 | E12: 216487.31 | F12: 5561 | G12: 278000 | H12: 336071 | I12: 2063827.2 | J12: 2119000 | L12: 1999 | M12: 0.35 | N12: 1 | O12: 1.681853282 | P12: 1 | Q12: 2.319354839 | R12: 1 | S12: 1 | T12: 1 | U12: 1 | V12: 1 | W12: 1 | X12: 1 | Y12: 0.93 | Z12: 1 | AA12: 0.85 | AB12: 1 | AD12: 1999 | AE12: 7204 | AF12: 3317 | AG12: 855 | AH12: 898 | AI12: 47.86075949 | AJ12: 122.8987342
A13: 7 | B13: 2000 | C13: 180863 | D13: 417837 | E13: 246477.68 | F13: 7309 | G13: 285000 | H13: 385748 | I13: 1252922.342 | J13: 1713000 | L13: 2000 | M13: 0.6 | N13: 1 | O13: 0.4936573548 | P13: 1 | Q13: 0.6670445344 | R13: 1 | S13: 1 | T13: 1 | U13: 0.74 | V13: 1 | W13: 1 | X13: 1 | Y13: 0.35 | Z13: 1 | AA13: 0.78 | AB13: 1 | AD13: 2000 | AE13: 7294 | AF13: 3468 | AG13: 767 | AH13: 858 | AI13: 50.09985935 | AJ13: 128.6483826
A14: 8 | B14: 2001 | C14: 231793 | D14: 425315 | E14: 248842.49 | F14: 10241 | G14: 407000 | H14: 464188 | I14: 2224902 | J14: 2198000 | L14: 2001 | M14: 0.4 | N14: 1 | O14: 0.4469803922 | P14: 1 | Q14: 1.226720648 | R14: 1 | S14: 1 | T14: 1 | U14: 0.84 | V14: 1 | W14: 1 | X14: 1 | Y14: 0.95 | Z14: 1 | AA14: 0.9 | AB14: 1 | AD14: 2001 | AE14: 8136.524 | AF14: 3779.438 | AG14: 968.542 | AH14: 926.604 | AI14: 50.37974684 | AJ14: 129.3670886
A15: 9 | B15: 2002 | C15: 182622 | D15: 443145 | E15: 280339.88 | F15: 14671 | G15: 439572.22 | H15: 545663.54 | I15: 2076048 | J15: 2254000 | L15: 2002 | M15: 0.9616007471 | N15: 1 | O15: 0.2662352941 | P15: 1 | Q15: 0.2980161943 | R15: 1 | S15: 1 | T15: 1 | U15: 0.58 | V15: 1 | W15: 0.9 | X15: 1 | Y15: 1.05 | Z15: 1 | AA15: 0.72 | AB15: 1 | AD15: 2002 | AE15: 8359 | AF15: 3677 | AG15: 838 | AH15: 1019 | AI15: 50.37974684 | AJ15: 129.3670886
A16: 10 | B16: 2003 | C16: 123803 | D16: 278986 | E16: 236853.11 | F16: 21805 | G16: 237252.44 | H16: 375914.33 | I16: 969209 | J16: 1730000 | L16: 2003 | M16: 0.1383938411 | N16: 1 | O16: 0 | P16: 1 | Q16: 0 | R16: 1 | S16: 0.6 | T16: 1 | U16: 0.03 | V16: 1 | W16: 0 | X16: 1 | Y16: 0.1 | Z16: 1 | AA16: 0.38 | AB16: 1 | AD16: 2003 | AE16: 8303 | AF16: 4390 | AG16: 911 | AH16: 1183 | AI16: 66.33333333 | AJ16: 170.3333333
A17: 11 | B17: 2004 | C17: 100542.36 | D17: 159250 | E17: 80652.71 | F17: 13325 | G17: 43509.97 | H17: 174168.35 | I17: 1306721 | J17: 1655000 | L17: 2004 | M17: 0.5394395847 | N17: 1 | O17: 0.3071568627 | P17: 1 | Q17: 0.4646963563 | R17: 1 | S17: 0.35 | T17: 1 | U17: 0 | V17: 0.7 | W17: 0.19 | X17: 1 | Y17: 0.55 | Z17: 1 | AA17: 0.41 | AB17: 0.95 | AD17: 2004 | AE17: 6734 | AF17: 3005 | AG17: 732 | AH17: 968 | AI17: 60.4556962 | AJ17: 155.2405063
A18: 12 | B18: 2005 | C18: 107563.76 | D18: 154840 | E18: 96650 | F18: 15165 | G18: 21164.7 | H18: 63783.6 | I18: 1244515.1 | J18: 1533411 | L18: 2005 | M18: 0.1667033994 | N18: 1 | O18: 0.04598039216 | P18: 1 | Q18: 0.1413360324 | R18: 1 | S18: 0.65 | T18: 1 | U18: 0 | V18: 0.3 | W18: 0.09 | X18: 1 | Y18: 0.49 | Z18: 0.97 | AA18: 0.4 | AB18: 0.95 | AD18: 2005 | AE18: 4960 | AF18: 1878 | AG18: 677 | AH18: 735 | AI18: 45.34177215 | AJ18: 116.4303797
A19: 13 | B19: 2006 | C19: 134417.37 | D19: 218496 | E19: 141325.3 | F19: 14753 | G19: 112435.93 | H19: 180723 | I19: 1644734.3 | J19: 1942641 | L19: 2006 | M19: 0.3804940351 | N19: 1 | O19: 0.2188263003 | P19: 1 | Q19: 0.299757195 | R19: 1 | S19: 0.45 | T19: 1 | U19: 0.19 | V19: 1 | W19: 0.44 | X19: 1 | Y19: 0.63 | Z19: 0.97 | AA19: 0.54 | AB19: 0.95 | AD19: 2006 | AE19: 6367 | AF19: 2098 | AG19: 725 | AH19: 959 | AI19: 63.81434599 | AJ19: 163.8649789
A20: 14 | B20: 2007 | C20: 131933.8 | D20: 129467 | E20: 66558.5 | F20: 9718 | G20: 57260.2 | H20: 204745 | I20: 559114.7 | J20: 934075 | L20: 2007 | M20: 0.2518418989 | N20: 1 | O20: 0 | P20: 1 | Q20: 0 | R20: 1 | S20: 0 | T20: 1 | U20: 0 | V20: 0.8 | W20: 0 | X20: 1 | Y20: 0 | Z20: 0.69 | AA20: 0.1 | AB20: 0.9 | AD20: 2007 | AE20: 6590 | AF20: 3115 | AG20: 749 | AH20: 795 | AI20: 47 | AJ20: 112
A21: 15 | B21: 2008 | C21: 112269 | D21: 79132 | E21: 51211.6 | F21: 9080 | G21: 30776.5 | H21: 30867 | I21: 226153 | J21: 471430 | L21: 2008 | M21: 0.2534980989 | N21: 1 | O21: 0.2424509804 | P21: 1 | Q21: 0.1362753036 | R21: 1 | S21: 0.5 | T21: 1 | U21: 0 | V21: 0.3 | W21: 0.05 | X21: 1 | Y21: 0 | Z21: 0.5 | AA21: 0.13 | AB21: 0.9 | AD21: 2008 | AE21: 4366.7 | AF21: 1077.2 | AG21: 600.971 | AH21: 747.338 | AI21: 40 | AJ21: 110
A22: 16 | B22: 2009 | C22: 117688 | D22: 143199 | E22: 97482 | F22: 10183 | G22: 27797.6 | H22: 65439 | I22: 301558 | J22: 568580 | L22: 2009 | M22: 0.2374144487 | N22: 1 | O22: 0 | P22: 1 | Q22: 0.2373279352 | R22: 1 | S22: 0.8 | T22: 1 | U22: 0 | V22: 0.3 | W22: 0.1 | X22: 1 | Y22: 0.09 | Z22: 0.95 | AA22: 0.21 | AB22: 0.95 | AD22: 2009 | AE22: 3596.64 | AF22: 249.636 | AG22: 582.9084 | AH22: 747.906 | AI22: 42 | AJ22: 104
A23: 17 | B23: 2010 | C23: 100850 | D23: 46959 | E23: 75152 | F23: 17517 | G23: 11786.7 | H23: 73820 | I23: 414880 | J23: 822914 | L23: 2010 | M23: 0.02688212928 | N23: 1 | O23: 0 | P23: 1 | Q23: 0.005748987854 | R23: 1 | S23: 0 | T23: 1 | U23: 0 | V23: 0.1 | W23: 0 | X23: 1 | Y23: 0.27 | Z23: 0.97 | AA23: 0.27 | AB23: 0.95 | AD23: 2010 | AE23: 3824.4 | AF23: 0 | AG23: 591.114 | AH23: 747.193 | AI23: 40 | AJ23: 88
A24: 18 | B24: 2011 | C24: 163725 | D24: 245148 | E24: 149958 | F24: 6915 | G24: 85698.8 | H24: 203146 | I24: 773243 | J24: 1279759 | L24: 2011 | M24: 1 | N24: 1 | O24: 0.829 | P24: 1 | Q24: 1.093 | R24: 1 | S24: 1 | T24: 1 | U24: 1 | V24: 1 | W24: 1 | X24: 1 | Y24: 1 | Z24: 1 | AA24: 1 | AB24: 0.9996 | AD24: 2011 | AE24: 4248.2 | AF24: 223.876 | AG24: 617.913 | AH24: 764.464 | AI24: 30 | AJ24: 97
A25: 19 | B25: 2012 | C25: 134199.8 | D25: 200724.1 | E25: 128271.7 | F25: 4218.7 | G25: 212768.7 | H25: 296617.9 | I25: 1670161.2 | J25: 1738425.6 | L25: 2012 | M25: 1 | N25: 1 | O25: 1 | P25: 1 | Q25: 1.165 | R25: 1 | S25: 1 | T25: 1 | U25: 1 | V25: 1 | W25: 0.49 | X25: 1 | Y25: 1 | Z25: 1 | AA25: 1 | AB25: 1 | AD25: 2012 | AE25: 4111.5 | AF25: 43.425 | AG25: 658.29 | AH25: 754.505 | AI25: 35.82559775 | AJ25: 91.99437412
A26: 20 | B26: 2013 | C26: 197868.7 | D26: 428699.4 | E26: 281246.7 | F26: 13317.1 | G26: 394082.4 | H26: 558856.4 | I26: 2125906.5 | J26: 2369612.9 | L26: 2013 | M26: 1 | N26: 1 | O26: 1.62 | P26: 1 | Q26: 1 | R26: 1 | S26: 0.83 | T26: 1 | U26: 0 | V26: 1 | W26: 0.64 | X26: 1 | Y26: 1 | Z26: 1 | AA26: 1 | AB26: 1 | AD26: 2013 | AE26: 5864 | AF26: 1014 | AG26: 585 | AH26: 833 | AI26: 40.7 | AJ26: 65.3
A27: 21 | B27: 2014 | C27: ='State Water data inputs'!$J$57 -> 70810.48 | D27: ='State Water data inputs'!$J$58 -> 102817.052 | E27: ='State Water data inputs'!$J$59 -> 127139.168 | F27: ='State Water data inputs'!$J$60 -> 10379.408 | G27: ='State Water data inputs'!$J$61 -> 296374.052 | H27: ='State Water data inputs'!$J$62 -> 535201.0352 | I27: ='State Water data inputs'!$J$63 -> 1899188.72 | J27: ='State Water data inputs'!$J$64 -> 2171217.36 | L27: 2014 | M27: ='State Water data inputs'!$B$72 -> 0.09 | N27: ='State Water data inputs'!$G$72 -> 1 | O27: ='State Water data inputs'!$B$73 -> 0.1 | P27: ='State Water data inputs'!$G$73 -> 1 | Q27: ='State Water data inputs'!$B$74 -> 0.32 | R27: ='State Water data inputs'!$G$74 -> 1 | S27: ='State Water data inputs'!$B$75 -> 1.2 | T27: ='State Water data inputs'!$G$75 -> 1 | U27: ='State Water data inputs'!$B$76 -> 1.1 | V27: ='State Water data inputs'!$G$76 -> 1 | W27: ='State Water data inputs'!$B$77 -> 1.25 | X27: ='State Water data inputs'!$G$77 -> 1 | Y27: ='State Water data inputs'!$B$78 -> 1.1 | Z27: ='State Water data inputs'!$G$78 -> 1 | AA27: ='State Water data inputs'!$B$79 -> 0.7 | AB27: ='State Water data inputs'!$G$79 -> 1 | AD27: 2014 | AE27: ='State Water data inputs'!$J$88 -> 5161 | AF27: ='State Water data inputs'!$J$89 -> 3706 | AG27: ='State Water data inputs'!$J$90 -> 684 | AH27: ='State Water data inputs'!$J$93 -> 2058 | AI27: ='State Water data inputs'!$J$91 -> 77.27285513 | AJ27: ='State Water data inputs'!$J$94 -> 251.137834
A28: 22 | B28: 2015 | C28: ='State Water data inputs'!$K$57 -> 209960.3322 | D28: ='State Water data inputs'!$K$58 -> 366971.0352 | E28: ='State Water data inputs'!$K$59 -> 237249.2485 | F28: ='State Water data inputs'!$K$60 -> 16662.13567 | G28: ='State Water data inputs'!$K$61 -> 339838.0397 | H28: ='State Water data inputs'!$K$62 -> 417408.4727 | I28: ='State Water data inputs'!$K$63 -> 2178585.734 | J28: ='State Water data inputs'!$K$64 -> 2626411.838 | L28: 2015 | M28: ='State Water data inputs'!$C$72 -> 0.15 | N28: ='State Water data inputs'!$H$72 -> 1 | O28: ='State Water data inputs'!$C$73 -> 0.05 | P28: ='State Water data inputs'!$H$73 -> 1 | Q28: ='State Water data inputs'!$C$74 -> 0.05 | R28: ='State Water data inputs'!$H$74 -> 1 | S28: ='State Water data inputs'!$C$75 -> 0.8 | T28: ='State Water data inputs'!$H$75 -> 1 | U28: ='State Water data inputs'!$C$76 -> 1 | V28: ='State Water data inputs'!$H$76 -> 1 | W28: ='State Water data inputs'!$C$77 -> 1.5 | X28: ='State Water data inputs'!$H$77 -> 1 | Y28: ='State Water data inputs'!$C$78 -> 1 | Z28: ='State Water data inputs'!$H$78 -> 1 | AA28: ='State Water data inputs'!$C$79 -> 1.5 | AB28: ='State Water data inputs'!$H$79 -> 1 | AD28: 2015 | AE28: ='State Water data inputs'!$K$88 -> 6208.648959 | AF28: ='State Water data inputs'!$K$89 -> 2419.470606 | AG28: ='State Water data inputs'!$K$90 -> 718.4764854 | AH28: ='State Water data inputs'!$K$93 -> 985.5479975 | AI28: ='State Water data inputs'!$K$91 -> 53.82241185 | AJ28: ='State Water data inputs'!$K$94 -> 133.1365488
A29: 23 | B29: 2016 | C29: ='State Water data inputs'!$L$57 -> 125950.2894 | D29: ='State Water data inputs'!$L$58 -> 220101.3058 | E29: ='State Water data inputs'!$L$59 -> 142401.3317 | F29: ='State Water data inputs'!$L$60 -> 10003.41288 | G29: ='State Water data inputs'!$L$61 -> 204173.5336 | H29: ='State Water data inputs'!$L$62 -> 251072.0267 | I29: ='State Water data inputs'!$L$63 -> 1308885.554 | J29: ='State Water data inputs'!$L$64 -> 1577734.079 | L29: 2016 | M29: ='State Water data inputs'!$D$72 -> 0.05 | N29: ='State Water data inputs'!$I$72 -> 1 | O29: ='State Water data inputs'!$D$73 -> 0.18 | P29: ='State Water data inputs'!$I$73 -> 1 | Q29: ='State Water data inputs'!$D$74 -> 0.3 | R29: ='State Water data inputs'!$I$74 -> 1 | S29: ='State Water data inputs'!$D$75 -> 0.7 | T29: ='State Water data inputs'!$I$75 -> 1 | U29: ='State Water data inputs'!$D$76 -> 0.9 | V29: ='State Water data inputs'!$I$76 -> 1 | W29: ='State Water data inputs'!$D$77 -> 0.55 | X29: ='State Water data inputs'!$I$77 -> 1 | Y29: ='State Water data inputs'!$D$78 -> 1 | Z29: ='State Water data inputs'!$I$78 -> 1 | AA29: ='State Water data inputs'!$D$79 -> 1.95 | AB29: ='State Water data inputs'!$I$79 -> 1 | AD29: 2016 | AE29: ='State Water data inputs'!$L$88 -> 6198.687441 | AF29: ='State Water data inputs'!$L$89 -> 2412.129394 | AG29: ='State Water data inputs'!$L$90 -> 714.6423546 | AH29: ='State Water data inputs'!$L$93 -> 983.8955025 | AI29: ='State Water data inputs'!$L$91 -> 48.33334061 | AJ29: ='State Water data inputs'!$L$94 -> 127.9421045
A30: 24 | B30: 2017 | C30: ='State Water data inputs'!$M$57 -> 179335.5355 | D30: ='State Water data inputs'!$M$58 -> 317420.2813 | E30: ='State Water data inputs'!$M$59 -> 204724.4213 | F30: ='State Water data inputs'!$M$60 -> 13828.40659 | G30: ='State Water data inputs'!$M$61 -> 273350.594 | H30: ='State Water data inputs'!$M$62 -> 355021.1699 | I30: ='State Water data inputs'!$M$63 -> 1774356.746 | J30: ='State Water data inputs'!$M$64 -> 2139398.971 | L30: 2017 | M30: ='State Water data inputs'!$E$72 -> 0.65 | N30: ='State Water data inputs'!$J$72 -> 1 | O30: ='State Water data inputs'!$E$73 -> 0.75 | P30: ='State Water data inputs'!$J$73 -> 1 | Q30: ='State Water data inputs'!$E$74 -> 1 | R30: ='State Water data inputs'!$J$74 -> 1 | S30: ='State Water data inputs'!$E$75 -> 0.75 | T30: ='State Water data inputs'!$J$75 -> 1 | U30: ='State Water data inputs'!$E$76 -> 1.3 | V30: ='State Water data inputs'!$J$76 -> 1 | W30: ='State Water data inputs'!$E$77 -> 1.1 | X30: ='State Water data inputs'!$J$77 -> 1 | Y30: ='State Water data inputs'!$E$78 -> 1 | Z30: ='State Water data inputs'!$J$78 -> 1 | AA30: ='State Water data inputs'!$E$79 -> 1.4 | AB30: ='State Water data inputs'!$J$79 -> 1 | AD30: 2017 | AE30: ='State Water data inputs'!$M$88 -> 6840.003674 | AF30: ='State Water data inputs'!$M$89 -> 2637.775025 | AG30: ='State Water data inputs'!$M$90 -> 805.9443662 | AH30: ='State Water data inputs'!$M$93 -> 1066.884184 | AI30: ='State Water data inputs'!$M$91 -> 56.84329334 | AJ30: ='State Water data inputs'!$M$94 -> 144.7027581
B34: Forecasts (20 year moving average) | L34: Allocations (20 year moving average) | AD34: Forecasts (20 year moving average)
B35: 2015 | C35: =AVERAGE(C7:C26) -> 140676.9395 | D35: 245876.7405 | E35: 158960.9705 | F35: 11163.91 | G35: =AVERAGE(G7:G26) -> 227697.179 | H35: 279670.6685 | I35: =AVERAGE(I7:I26) -> 1459688.934 | J35: 1759739.925 | L35: 2015 | M35: =AVERAGE(M7:M26) -> 0.4313134092 | N35: 1 | O35: 0.4451070429 | P35: 1 | Q35: 0.5812139013 | R35: 1 | S35: 0.6815 | T35: 1 | U35: =AVERAGE(U7:U26) -> 0.5015 | V35: 0.825 | W35: 0.51 | X35: 1 | Y35: =AVERAGE(Y7:Y26) -> 0.675 | Z35: 0.9525 | AA35: 0.692 | AB35: 0.97748 | AD35: 2015 | AE35: =AVERAGE(AE7:AE26) -> 6189.8482 | AF35: 2411.62875 | AG35: 717.08692 | AH35: 985.5005 | AI35: =AVERAGE(AI7:AI26) -> 52.09287623 | AJ35: =AVERAGE(AJ7:AJ26) -> 131.8055767
B36: 2016 | C36: 140813.1135 | D36: 246074.4656 | E36: 159205.4689 | F36: 11183.8704 | G36: =AVERAGE(G8:G27) -> 228267.1291 | H36: 280699.9013 | I36: =AVERAGE(I8:I27) -> 1463341.22 | J36: 1763915.343 | L36: 2016 | M36: =AVERAGE(M8:M27) -> 0.4323134092 | N36: 1 | O36: =AVERAGE(O8:O27) -> 0.4501070429 | P36: 1 | Q36: 0.5837139013 | R36: 1 | S36: 0.6915 | T36: 1 | U36: 0.4965 | V36: 0.825 | W36: 0.5225 | X36: 1 | Y36: 0.665 | Z36: 0.9525 | AA36: 0.667 | AB36: 0.97748 | AD36: 2016 | AE36: =AVERAGE(AE8:AE27) -> 6187.8482 | AF36: 2410.12875 | AG36: 716.08692 | AH36: 984.0005 | AI36: =AVERAGE(AI8:AI27) -> 50.09287623 | AJ36: =AVERAGE(AJ8:AJ27) -> 129.3055767
B37: 2017 | C37: 148116.9301 | D37: 262163.9794 | E37: 169086.1363 | F37: 11421.16718 | G37: =AVERAGE(G9:G28) -> 225765.9126 | H37: 293219.3314 | I37: =AVERAGE(I9:I28) -> 1465477.957 | J37: 1766973.885 | L37: 2017 | M37: 0.4398134092 | N37: 1 | O37: =AVERAGE(O9:O28) -> 0.4526070429 | P37: 1 | Q37: 0.5862139013 | R37: 1 | S37: 0.7065 | T37: 1 | U37: 0.5065 | V37: 0.825 | W37: 0.5575 | X37: 1 | Y37: 0.6675 | Z37: 0.9525 | AA37: 0.692 | AB37: 0.97748 | AD37: 2017 | AE37: =AVERAGE(AE9:AE28) -> 6184.230648 | AF37: 2366.45228 | AG37: 722.2107443 | AH37: 959.2778999 | AI37: =AVERAGE(AI9:AI28) -> 50.64285758 | AJ37: =AVERAGE(AJ9:AJ28) -> 130.4643028
L40: Average Water Allocation
L41: 2015 | M41: =N35/M35 -> 2.318499677 | O41: =P35/O35 -> 2.246650589 | Q41: =R35/Q35 -> 1.720536962 | S41: =T35/S35 -> 1.467351431 | U41: =V35/U35 -> 1.645064806 | W41: =X35/W35 -> 1.960784314 | Y41: =Z35/Y35 -> 1.411111111 | AA41: =AB35/AA35 -> 1.412543353
L42: 2016 | M42: =N36/M36 -> 2.313136671 | O42: 2.221693741 | Q42: =R36/Q36 -> 1.71316804 | S42: =T36/S36 -> 1.446131598 | U42: =V36/U36 -> 1.66163142 | W42: =X36/W36 -> 1.913875598 | Y42: =Z36/Y36 -> 1.432330827 | AA42: =AB36/AA36 -> 1.465487256
L43: 2017 | M43: 2.273691477 | O43: 2.209422093 | Q43: =R37/Q37 -> 1.705861969 | S43: =T37/S37 -> 1.415428167 | U43: 1.628825271 | W43: =X37/W37 -> 1.793721973 | Y43: =Z37/Y37 -> 1.426966292 | AA43: 1.412543353

Sheet Summary
C1: Check | D1: =IF(E1>0.001,"Error","Ok") -> Ok | E1: =SUM(Border!E1,Gwydir!E1,Namoi!E1,Peel!E1,Lachlan!E1,Macquarie!E1,Murray!E1,Murrumbidgee!E1,Lowbidgee!E1,'Fish River'!E1) -> 7.858034223e-09
A3: Tariffs ($ Nominal)
C4: 2014-15 | D4: 2015-16 | E4: 2016-17 | G4: 2014-15 | H4: 2015-16 | I4: 2016-17 | K4: 2014-15 | L4: 2015-16 | M4: 2016-17
A5: Total Tariffs | C5: High Security Entitlement ($/ML) | G5: General Security Entitlement ($/ML) | K5: Usage ($/ML delivered)
A6: Border | C6: =SUM(C26,C45) -> 9.003302671 | D6: =SUM(D26,D45) -> 8.246502935 | E6: 9.092654912 | G6: =SUM(G26,G45) -> 3.033785288 | H6: 2.785213904 | I6: 3.124274652 | K6: =SUM(K26,K45) -> 8.815046932 | L6: 8.084064606 | M6: 8.616194604
A7: Gwydir | C7: =SUM(C27,C46) -> 15.34693454 | D7: 15.38759427 | E7: 16.87622301 | G7: =SUM(G27,G46) -> 3.774048977 | H7: 3.826555003 | I7: 4.220053808 | K7: =SUM(K27,K46) -> 13.74355493 | L7: 13.90069681 | M7: 14.3779531
A8: Namoi | C8: =SUM(C28,C47) -> 19.15043285 | D8: 18.76843725 | E8: 19.9663499 | G8: =SUM(G28,G47) -> 8.904398232 | H8: 8.764318181 | I8: 9.363641495 | K8: =SUM(K28,K47) -> 23.12150273 | L8: 22.71545903 | M8: 22.84423554
A9: Peel | C9: =SUM(C29,C48) -> 36.95526623 | D9: 33.96362624 | E9: 38.67911363 | G9: =SUM(G29,G48) -> 3.742201179 | H9: 3.489724746 | I9: 4.060444841 | K9: =SUM(K29,K48) -> 101.6577107 | L9: 93.45758404 | M9: 104.5735774
A10: Lachlan | C10: =SUM(C30,C49) -> 13.24229801 | D10: 13.98104448 | E10: 14.80928047 | G10: =SUM(G30,G49) -> 3.285596761 | H10: 3.434304803 | I10: 3.711020685 | K10: =SUM(K30,K49) -> 18.99661605 | L10: 19.86222529 | M10: 21.58015607
A11: Macquarie | C11: =SUM(C31,C50) -> 14.14032318 | D11: 13.96723613 | E11: 14.31997731 | G11: =SUM(G31,G50) -> 3.835938734 | H11: 3.881851531 | I11: 4.246482634 | K11: =SUM(K31,K50) -> 16.22812199 | L11: 16.28398972 | M11: 16.84406036
A12: Murray | C12: =SUM(C32,C51) -> 1.948962699 | D12: 1.896771327 | E12: 1.96298158 | G12: =SUM(G32,G51) -> 1.104923735 | H12: 1.059404038 | I12: 1.100506208 | K12: =SUM(K32,K51) -> 2.880495781 | L12: 2.762456787 | M12: 2.863478787
A13: Murrumbidgee | C13: =SUM(C33,C52) -> 3.015271155 | D13: 3.045474939 | E13: 3.099983909 | G13: =SUM(G33,G52) -> 1.309594924 | H13: 1.274927179 | I13: 1.346387433 | K13: =SUM(K33,K52) -> 3.645955445 | L13: 3.581909017 | M13: 3.733037399
A14: Lowbidgee | G14: =G34 -> 0.7299795867 | H14: =H34 -> 0.7940284587 | I14: 0.8599600251 | K14: =K34 -> 3.468712457 | L14: =L34 -> 3.463604289 | M14: 3.548718924
A16: Fish River | C16: Access ($/KL) | G16: Usage < MAQ ($/KL) | K16: Usage > 200kl ($/KL)
A17: Raw water - major customers | C17: =C37 -> 0.3473719547 | D17: =D37 -> 0.3593967712 | E17: 0.3704486333 | G17: =G37 -> 0.3902646973 | H17: 0.404145303 | I17: 0.4183951789
A18: Raw water - minor customers * | C18: =C38 -> 69.47439095 | D18: 71.87935423 | E18: 74.08972667 | G18: =G38 -> 0.3902646973 | H18: 0.404145303 | I18: 0.4183951789 | K18: 0.737636652 | L18: 0.7635420742 | M18: 0.7888438123
A19: Filtered water - major customers | C19: =C39 -> 0.6723072869 | D19: 0.6955910149 | E19: 0.7169246443 | G19: =G39 -> 0.6756498588 | H19: 0.7031229589 | I19: 0.7398147495
A20: Filtered water - minor customers * | C20: =C40 -> 134.4614574 | D20: 139.118203 | E20: 143.3849289 | G20: =G40 -> 0.6756498588 | H20: 0.7031229589 | I20: 0.7398147495 | K20: 1.347957146 | L20: 1.398713974 | M20: 1.456739394
A21: * Note : Access Fee for minor customers is an Annual Charge
C24: 2014-15 | D24: 2015-16 | E24: 2016-17 | G24: 2014-15 | H24: 2015-16 | I24: 2016-17 | K24: 2014-15 | L24: 2015-16 | M24: 2016-17
A25: State Water Costs Tariffs | C25: High Security Entitlement ($/ML) | G25: General Security Entitlement ($/ML) | K25: Usage ($/ML delivered)
A26: Border | C26: =Border!C$67 -> 6.765656843 | D26: =Border!D$67 -> 6.736328429 | E26: =Border!E$67 -> 6.78074724 | G26: =Border!C$68 -> 2.279780092 | H26: =Border!D$68 -> 2.275160241 | I26: =Border!E$68 -> 2.329893407 | K26: =Border!C$69 -> 6.624189453 | L26: =Border!D$69 -> 6.603637281 | M26: =Border!E$69 -> 6.425432214
A27: Gwydir | C27: =Gwydir!C$67 -> 13.94441193 | D27: =Gwydir!D$67 -> 14.44792771 | E27: =Gwydir!E$67 -> 15.42053805 | G27: =Gwydir!C$68 -> 3.429146939 | H27: =Gwydir!D$68 -> 3.592880673 | I27: =Gwydir!E$68 -> 3.856046479 | K27: =Gwydir!C$69 -> 12.48756166 | L27: =Gwydir!D$69 -> 13.05182988 | M27: =Gwydir!E$69 -> 13.13776031
A28: Namoi | C28: =Namoi!C$67 -> 17.53814425 | D28: =Namoi!D$67 -> 17.68222404 | E28: =Namoi!E$67 -> 18.28235216 | G28: =Namoi!C$68 -> 8.154730594 | H28: =Namoi!D$68 -> 8.257087982 | I28: =Namoi!E$68 -> 8.573895189 | K28: =Namoi!C$69 -> 21.17488693 | L28: =Namoi!D$69 -> 21.40081406 | M28: =Namoi!E$69 -> 20.91751177
A29: Peel | C29: =Peel!C$67 -> 26.85914162 | D29: =Peel!D$67 -> 27.14912292 | E29: =Peel!E$67 -> 28.10732129 | G29: =Peel!C$68 -> 2.719837298 | H29: =Peel!D$68 -> 2.789542125 | I29: =Peel!E$68 -> 2.950642272 | K29: =Peel!C$69 -> 73.88497301 | L29: =Peel!D$69 -> 74.7061406 | M29: =Peel!E$69 -> 75.99148126
A30: Lachlan | C30: =Lachlan!C$67 -> 13.24229801 | D30: =Lachlan!D$67 -> 13.98104448 | E30: =Lachlan!E$67 -> 14.80928047 | G30: =Lachlan!C$68 -> 3.285596761 | H30: =Lachlan!D$68 -> 3.434304803 | I30: =Lachlan!E$68 -> 3.711020685 | K30: =Lachlan!C$69 -> 18.99661605 | L30: =Lachlan!D$69 -> 19.86222529 | M30: =Lachlan!E$69 -> 21.58015607
A31: Macquarie | C31: =Macquarie!C$67 -> 13.17239815 | D31: =Macquarie!D$67 -> 13.3251302 | E31: =Macquarie!E$67 -> 13.37165226 | G31: =Macquarie!C$68 -> 3.573363327 | H31: =Macquarie!D$68 -> 3.7033939 | I31: =Macquarie!E$68 -> 3.965263901 | K31: =Macquarie!C$69 -> 15.11728419 | L31: =Macquarie!D$69 -> 15.53537731 | M31: =Macquarie!E$69 -> 15.72858062
A32: Murray | C32: =Murray!C$67 -> 1.804673314 | D32: =Murray!D$67 -> 1.797976059 | E32: =Murray!E$67 -> 1.809676299 | G32: =Murray!C$68 -> 1.023121879 | H32: =Murray!D$68 -> 1.004223898 | I32: =Murray!E$68 -> 1.014558681 | K32: =Murray!C$69 -> 2.667241334 | L32: =Murray!D$69 -> 2.618571409 | M32: =Murray!E$69 -> 2.639846317
A33: Murrumbidgee | C33: =Murrumbidgee!C$67 -> 2.868687995 | D33: =Murrumbidgee!D$67 -> 2.944887771 | E33: =Murrumbidgee!E$67 -> 2.946922408 | G33: =Murrumbidgee!C$68 -> 1.245930811 | H33: =Murrumbidgee!D$68 -> 1.232818372 | I33: =Murrumbidgee!E$68 -> 1.279909643 | K33: =Murrumbidgee!C$69 -> 3.468712457 | L33: =Murrumbidgee!D$69 -> 3.463604289 | M33: =Murrumbidgee!E$69 -> 3.548718924
A34: Lowbidgee | G34: =Lowbidgee!C$68 -> 0.7299795867 | H34: =Lowbidgee!D$68 -> 0.7940284587 | I34: =Lowbidgee!E$68 -> 0.8599600251 | K34: =K33 -> 3.468712457 | L34: =L33 -> 3.463604289 | M34: 3.548718924
A36: Fish River | C36: Access ($/KL) | G36: Usage < MAQ ($/KL) | K36: Usage > 200kl ($/KL)
A37: Raw water - major customers | C37: ='Fish River'!C131 -> 0.3473719547 | D37: ='Fish River'!D131 -> 0.3593967712 | E37: ='Fish River'!E131 -> 0.3704486333 | G37: ='Fish River'!C153 -> 0.3902646973 | H37: ='Fish River'!D153 -> 0.404145303 | I37: ='Fish River'!E153 -> 0.4183951789
A38: Raw water - minor customers * | C38: ='Fish River'!C144 -> 69.47439095 | D38: ='Fish River'!D144 -> 71.87935423 | E38: ='Fish River'!E144 -> 74.08972667 | G38: ='Fish River'!C166 -> 0.3902646973 | H38: ='Fish River'!D166 -> 0.404145303 | I38: ='Fish River'!E166 -> 0.4183951789 | K38: ='Fish River'!C180 -> 0.737636652 | L38: ='Fish River'!D180 -> 0.7635420742 | M38: ='Fish River'!E180 -> 0.7888438123
A39: Filtered water - major customers | C39: ='Fish River'!C195 -> 0.6723072869 | D39: ='Fish River'!D195 -> 0.6955910149 | E39: ='Fish River'!E195 -> 0.7169246443 | G39: ='Fish River'!C208 -> 0.6756498588 | H39: ='Fish River'!D208 -> 0.7031229589 | I39: ='Fish River'!E208 -> 0.7398147495
A40: Filtered water - minor customers * | C40: ='Fish River'!C199 -> 134.4614574 | D40: ='Fish River'!D199 -> 139.118203 | E40: ='Fish River'!E199 -> 143.3849289 | G40: ='Fish River'!C212 -> 0.6756498588 | H40: ='Fish River'!D212 -> 0.7031229589 | I40: ='Fish River'!E212 -> 0.7398147495 | K40: ='Fish River'!C225 -> 1.347957146 | L40: ='Fish River'!D225 -> 1.398713974 | M40: ='Fish River'!E225 -> 1.456739394
C43: 2014-15 | D43: 2015-16 | E43: 2016-17 | G43: 2014-15 | H43: 2015-16 | I43: 2016-17 | K43: 2014-15 | L43: 2015-16 | M43: 2016-17
A44: MDBA / BCR Tariffs | C44: High Security Entitlement ($/ML) | G44: General Security Entitlement ($/ML) | K44: Usage ($/ML delivered)
A45: Border | C45: =Border!H$67 -> 2.237645828 | D45: =Border!I$67 -> 1.510174506 | E45: =Border!J$67 -> 2.311907671 | G45: =Border!H$68 -> 0.7540051958 | H45: =Border!I$68 -> 0.5100536634 | I45: =Border!J$68 -> 0.7943812458 | K45: =Border!H$69 -> 2.190857479 | L45: =Border!I$69 -> 1.480427324 | M45: =Border!J$69 -> 2.19076239
A46: Gwydir | C46: =Gwydir!H$67 -> 1.402522607 | D46: =Gwydir!I$67 -> 0.9396665627 | E46: =Gwydir!J$67 -> 1.455684962 | G46: =Gwydir!H$68 -> 0.3449020389 | H46: =Gwydir!I$68 -> 0.2336743303 | I46: =Gwydir!J$68 -> 0.3640073293 | K46: =Gwydir!H$69 -> 1.25599327 | L46: =Gwydir!I$69 -> 0.8488669355 | M46: =Gwydir!J$69 -> 1.240192791
A47: Namoi | C47: =Namoi!H$67 -> 1.6122886 | D47: =Namoi!I$67 -> 1.086213207 | E47: =Namoi!J$67 -> 1.683997736 | G47: =Namoi!H$68 -> 0.7496676375 | H47: =Namoi!I$68 -> 0.5072301988 | I47: =Namoi!J$68 -> 0.7897463061 | K47: =Namoi!H$69 -> 1.946615805 | L47: =Namoi!I$69 -> 1.314644969 | M47: =Namoi!J$69 -> 1.926723769
A48: Peel | C48: =Peel!H$67 -> 10.09612461 | D48: =Peel!I$67 -> 6.814503317 | E48: =Peel!J$67 -> 10.57179234 | G48: =Peel!H$68 -> 1.022363881 | H48: =Peel!I$68 -> 0.7001826217 | I48: =Peel!J$68 -> 1.109802569 | K48: =Peel!H$69 -> 27.77273767 | L48: =Peel!I$69 -> 18.75144344 | M48: =Peel!J$69 -> 28.58209614
A49: Lachlan | C49: =Lachlan!H$67 -> 0 | D49: =Lachlan!I$67 -> 0 | E49: =Lachlan!J$67 -> 0 | G49: =Lachlan!H$68 -> 0 | H49: =Lachlan!I$68 -> 0 | I49: =Lachlan!J$68 -> 0 | K49: =Lachlan!H$69 -> 0 | L49: =Lachlan!I$69 -> 0 | M49: =Lachlan!J$69 -> 0
A50: Macquarie | C50: =Macquarie!H$67 -> 0.9679250315 | D50: =Macquarie!I$67 -> 0.642105928 | E50: =Macquarie!J$67 -> 0.9483250562 | G50: =Macquarie!H$68 -> 0.2625754075 | H50: =Macquarie!I$68 -> 0.1784576316 | I50: =Macquarie!J$68 -> 0.2812187334 | K50: =Macquarie!H$69 -> 1.1108378 | L50: =Macquarie!I$69 -> 0.7486124121 | M50: =Macquarie!J$69 -> 1.115479734
A51: Murray | C51: =Murray!H$67 -> 0.1442893842 | D51: =Murray!I$67 -> 0.09879526861 | E51: =Murray!J$67 -> 0.1533052806 | G51: =Murray!H$68 -> 0.08180185559 | H51: =Murray!I$68 -> 0.05518013953 | I51: =Murray!J$68 -> 0.08594752737 | K51: =Murray!H$69 -> 0.2132544469 | L51: =Murray!I$69 -> 0.1438853785 | M51: =Murray!J$69 -> 0.2236324698
A52: Murrumbidgee | C52: =Murrumbidgee!H$67 -> 0.1465831597 | D52: =Murrumbidgee!I$67 -> 0.1005871679 | E52: =Murrumbidgee!J$67 -> 0.1530615008 | G52: =Murrumbidgee!H$68 -> 0.06366411245 | H52: =Murrumbidgee!I$68 -> 0.04210880625 | I52: =Murrumbidgee!J$68 -> 0.06647779061 | K52: =Murrumbidgee!H$69 -> 0.1772429881 | L52: =Murrumbidgee!I$69 -> 0.1183047278 | M52: =Murrumbidgee!J$69 -> 0.1843184751

Sheet Border
B1: Border | C1: Check | D1: =IF(E1>0.001,"Error","Ok") -> Ok | E1: =SUM(C76:E76,H76:J76) -> 2.328306437e-10
B3: State Water Costs Tariffs | C3: 2014-15 | D3: 2015-16 | E3: 2016-17 | G3: MDBA / BCR Tariffs | H3: 2014-15 | I3: 2015-16 | J3: 2016-17
B6: Benchmark Revenue (Rev BBM) | C6: Forecast 2014-15 | D6: Forecast 2015-16 | E6: Forecast 2016-17 | G6: MDBA / BCR costs | H6: Forecast 2014-15 | I6: Forecast 2015-16 | J6: Forecast 2016-17
B7: Benchmark Revenue (Rev BBM) | C7: ='ACCC data inputs'!B$25*(1+C$31) -> 1553117.832 | D7: ='ACCC data inputs'!C$25*(1+C$31)*(1+D$31) -> 1585702.685 | E7: ='ACCC data inputs'!D$25*(1+C$31)*(1+D$31)*(1+E$31) -> 1611976.091 | G7: MDBA / BCR costs | H7: ='State Water data inputs'!B$17 -> 513671.875 | I7: ='State Water data inputs'!C$17 -> 513600 | J7: ='State Water data inputs'!D$17 -> 513650
B11: Unders/Overs Adjustment | G11: Unders/Overs Adjustment
B12: Calc. of UOM (t-1) | C12: Estimated 2013-14 | D12: Estimated 2014-15 | E12: Estimated 2015-16 | G12: Calc. of UOM (t-1) | H12: Estimated 2013-14 | I12: Estimated 2014-15 | J12: Estimated 2015-16
B13: Revenue Requirement | C13: 0 | D13: =C47 -> 1553117.832 | E13: =D47 -> 1549797.877 | G13: Esimated MDBA / BCR costs | H13: 0 | I13: ='State Water data inputs'!F$17 -> 513510 | J13: ='State Water data inputs'!G$17 -> 513505
B14: Estimated Tarriff Revenue | C14: 0 | D14: =C89 -> 2019082.744 | E14: =D89 -> 1447515.945 | G14: Estimated MDBA / BCR revenue | H14: 0 | I14: =H89 -> 667783.2152 | J14: =I89 -> 324509.3676
B15: Difference | C15: =C14-C13 -> 0 | D15: =D14-D13 -> 465964.9129 | E15: =E14-E13 -> -102281.9312 | G15: Difference | H15: =H14-H13 -> 0 | I15: =I14-I13 -> 154273.2152 | J15: =J14-J13 -> -188995.6324
B18: Calc. of UOM (t-2) | C18: Actual 2012-13 | D18: Actual 2013-14 | E18: Actual 2014-15 | G18: Calc. of UOM (t-2) | H18: Actual 2012-13 | I18: Actual 2013-14 | J18: Actual 2014-15
B19: Estimated Tarriff Revenue | C19: 0 | D19: =C14 -> 0 | E19: =D14 -> 2019082.744 | G19: Actual MDBA / BCR costs | H19: 0 | I19: 0 | J19: ='State Water data inputs'!K$17 -> 513507
B20: Actual Tarriff Revenue | C20: 0 | D20: 0 | E20: =C102 -> 2012066.578 | G20: Actual MDBA / BCR revenue | H20: 0 | I20: 0 | J20: =H102 -> 665462.7168
B21: Difference | C21: =C20-C19 -> 0 | D21: =D20-D19 -> 0 | E21: =E20-E19 -> -7016.166553 | G21: Difference | H21: =H20-H19 -> 0 | I21: =I20-I19 -> 0 | J21: =J20-J19 -> 151955.7168
H24: Act - Est 2012-13 | I24: Act - Est 2013-14 | J24: Act - Est 2014-15
G25: MDBA / BCR costs | H25: 0 | I25: =I19-H13 -> 0 | J25: =J19-I13 -> -3
G26: MDBA / BCR revenue | H26: 0 | I26: =I20-H14 -> 0 | J26: =J20-I14 -> -2320.498391
G27: Difference | H27: =H26-H25 -> 0 | I27: =I26-I25 -> 0 | J27: =J26-J25 -> -2317.498391
B30: WACC | C30: Actual 2014-15 | D30: Actual 2015-16 | E30: Actual 2016-17 | G30: WACC | H30: Actual 2014-15 | I30: Actual 2015-16 | J30: Actual 2016-17
B31: CPI (t) | C31: ='State Water data inputs'!C11 -> 0.02734375 | D31: ='State Water data inputs'!D11 -> 0.02756653992 | E31: ='State Water data inputs'!E11 -> 0.02312673451 | G31: CPI (t) | H31: =C31 -> 0.02734375 | I31: =D31 -> 0.02756653992 | J31: 0.02312673451
B32: Real Pre Tax WACC | C32: ='ACCC data inputs'!B58 -> 0.04816058537 | D32: ='ACCC data inputs'!C58 -> 0.04816058537 | E32: ='ACCC data inputs'!D58 -> 0.04816058537 | G32: Real Pre Tax WACC | H32: =C32 -> 0.04816058537 | I32: 0.04816058537 | J32: 0.04816058537
B33: Nominal Pre Tax WACC | C33: =(1+C31)*(1+C32)-1 -> 0.07682122637 | D33: =(1+D31)*(1+D32)-1 -> 0.07705474599 | E33: 0.07240111694 | G33: Nominal Pre Tax WACC | H33: =(1+H31)*(1+H32)-1 -> 0.07682122637 | I33: =(1+I31)*(1+I32)-1 -> 0.07705474599 | J33: =(1+J31)*(1+J32)-1 -> 0.07240111694
B36: RAB UOM | C36: Actual 2014-15 | D36: Actual 2015-16 | E36: Actual 2016-17 | H36: Actual 2014-15 | I36: Actual 2015-16 | J36: Actual 2016-17
B37: Opening balance | C37: 0 | D37: =C40 -> 0 | E37: =D40 -> 465964.9129
B38: UOM (t-1) | C38: =C15 -> 0 | D38: =D15 -> 465964.9129 | E38: =E15 -> -102281.9312 | G38: UOM (t-1) | H38: =H15 -> 0 | I38: =I15 -> 154273.2152 | J38: =J15 -> -188995.6324
B39: UOM (t-2) | C39: 0 | D39: =D21*(1+C$33) -> 0 | E39: =E21*(1+D$33) -> -7556.795484 | G39: UOM (t-2) | H39: 0 | I39: =I27*(1+H$33) -> 0 | J39: =J27*(1+I$33) -> -2496.07264
B40: Closing balance | C40: =SUM(C37:C39) -> 0 | D40: =SUM(D37:D39) -> 465964.9129 | E40: 356126.1862 | G40: Rev UOM(t-1) | H40: 0 | I40: =H42 -> 0 | J40: =I42 -> 166160.6986
B42: Rev UOM (t) | C42: =C40*C$33 -> 0 | D42: =D40*D$33 -> 35904.808 | E42: =E40*E$33 -> 25783.93365 | G42: Rev UOM (t) | H42: =SUM(H38:H40)*(1+H$33) -> 0 | I42: =SUM(I38:I40)*(1+I$33) -> 166160.6986 | J42: =SUM(J38:J40)*(1+J$33) -> -27164.99961
B46: Revenue Requirement | C46: 2014-15 | D46: 2015-16 | E46: 2016-17 | G46: Maximum pass through revenue | H46: 2014-15 | I46: 2015-16 | J46: 2016-17
B47: Revenue Requirement | C47: =(C7-C42) -> 1553117.832 | D47: =(D7-D42) -> 1549797.877 | E47: =(E7-E42) -> 1586192.157 | G47: Maximum MDBA / BCR Revenue | H47: =(H7-H42) -> 513671.875 | I47: =(I7-I42) -> 347439.3014 | J47: =(J7-J42) -> 540814.9996
B52: Forecast Tariff Revenue | C52: 2014-15 | D52: 2015-16 | E52: 2016-17 | G52: Forecast Tariff Revenue | H52: 2014-15 | I52: 2015-16 | J52: 2016-17
B53: Revenue Requirement | C53: =C47 -> 1553117.832 | D53: =D47 -> 1549797.877 | E53: 1586192.157 | G53: Maximum MDBA / BCR Revenue | H53: =H47 -> 513671.875 | I53: =I47 -> 347439.3014 | J53: =J47 -> 540814.9996
B54: Target Variable / Fixed ratio (%) | C54: ='ACCC data inputs'!B49 -> 0.6 | D54: ='ACCC data inputs'!C49 -> 0.6 | E54: ='ACCC data inputs'!D49 -> 0.6 | G54: Target Variable / Fixed ratio (%) | H54: =C54 -> 0.6 | I54: 0.6 | J54: 0.6
B55: Variable Charge Revenue | C55: =C53*C54 -> 931870.6989 | D55: =D53*D54 -> 929878.726 | E55: =E53*E54 -> 951715.2942 | G55: Variable Charge Revenue | H55: =H53*H54 -> 308203.125 | I55: =I53*I54 -> 208463.5808 | J55: =J53*J54 -> 324488.9998
B57: Water sharing plan ratio (WSP) | C57: ='ACCC data inputs'!$B$38 -> 1.28 | D57: ='ACCC data inputs'!$B$38 -> 1.28 | E57: ='ACCC data inputs'!$B$38 -> 1.28 | G57: Water sharing plan ratio (WSP) | H57: =C57 -> 1.28 | I57: 1.28 | J57: 1.28
B58: Average Water Allocation (AWA) | C58: ='State Water data inputs'!L$72 -> 2.318499677 | D58: ='State Water data inputs'!M$72 -> 2.313136671 | E58: ='State Water data inputs'!N$72 -> 2.273691477 | G58: Average Water Allocation (AWA) | H58: 2.318499677 | I58: 2.313136671 | J58: 2.273691477
B59: High security premium (times) | C59: =C57*C58 -> 2.967679587 | D59: =D57*D58 -> 2.960814939 | E59: =E57*E58 -> 2.910325091 | G59: High security premium (times) | H59: 2.967679587 | I59: 2.960814939 | J59: 2.910325091
B61: Forecast sales quantities | C61: =C$52 -> 2014-15 | D61: =D$52 -> 2015-16 | E61: 2016-17 | G61: Forecast sales quantities | H61: =H$52 -> 2014-15 | I61: =I$52 -> 2015-16 | J61: =J$52 -> 2016-17
B62: High Security Entitlement (ML) | C62: ='State Water data inputs'!B$44 -> 3122 | D62: ='State Water data inputs'!C$44 -> 3120 | E62: ='State Water data inputs'!D$44 -> 3121 | G62: High Security Entitlement (ML) | H62: =C62 -> 3122 | I62: 3120 | J62: 3121
B63: General Security Entitlement (ML) | C63: ='State Water data inputs'!B$30 -> 263238 | D63: ='State Water data inputs'!C$30 -> 263235 | E63: ='State Water data inputs'!D$30 -> 263237 | G63: General Security Entitlement (ML) | H63: 263238 | I63: 263235 | J63: 263237
B64: Water volumes (ML) | C64: ='State Water data inputs'!B$57 -> 140676.9395 | D64: ='State Water data inputs'!C$57 -> 140813.1135 | E64: ='State Water data inputs'!D$57 -> 148116.9301 | G64: Water volumes (ML) | H64: 140676.9395 | I64: 140813.1135 | J64: 148116.9301
B66: Tariffs ($ Nominal) | C66: =C$52 -> 2014-15 | D66: =D$52 -> 2015-16 | E66: 2016-17 | G66: Tariffs ($ Nominal) | H66: =H$52 -> 2014-15 | I66: =I$52 -> 2015-16 | J66: =J$52 -> 2016-17
B67: High Security Entitlement ($/ML) | C67: =C68*C59 -> 6.765656843 | D67: =D68*D59 -> 6.736328429 | E67: 6.78074724 | G67: High Security Entitlement ($/ML) | H67: =H68*H59 -> 2.237645828 | I67: =I68*I59 -> 1.510174506 | J67: =J68*J59 -> 2.311907671
B68: General Security Entitlement ($/ML) | C68: =(C53-C55)/(C63+C62*C59) -> 2.279780092 | D68: =(D53-D55)/(D63+D62*D59) -> 2.275160241 | E68: =(E53-E55)/(E63+E62*E59) -> 2.329893407 | G68: General Security Entitlement ($/ML) | H68: =(H53-H55)/(H63+H62*H59) -> 0.7540051958 | I68: =(I53-I55)/(I63+I62*I59) -> 0.5100536634 | J68: =(J53-J55)/(J63+J62*J59) -> 0.7943812458
B69: Usage ($/ML delivered) | C69: =C55/C64 -> 6.624189453 | D69: =D55/D64 -> 6.603637281 | E69: 6.425432214 | G69: Usage ($/ML delivered) | H69: =H55/H64 -> 2.190857479 | I69: =I55/I64 -> 1.480427324 | J69: =J55/J64 -> 2.19076239
B71: Tariffs Revenue ($'000 Nominal) | C71: =C$52 -> 2014-15 | D71: =D$52 -> 2015-16 | E71: 2016-17 | G71: Tariffs Revenue ($'000 Nominal) | H71: =H$52 -> 2014-15 | I71: =I$52 -> 2015-16 | J71: =J$52 -> 2016-17
B72: High Security Entitlement | C72: =C62*C67 -> 21122.38066 | D72: =D62*D67 -> 21017.3447 | E72: 21162.71214 | G72: High Security Entitlement | H72: =H62*H67 -> 6985.930275 | I72: 4711.744459 | J72: 7215.463843
B73: General Security Entitlement | C73: =C63*C68 -> 600124.752 | D73: 598901.806 | E73: 613314.1507 | G73: General Security Entitlement | H73: 198482.8197 | I73: 134263.9761 | J73: 209110.536
B74: Usage | C74: =C64*C69 -> 931870.6989 | D74: 929878.726 | E74: 951715.2942 | G74: Usage | H74: 308203.125 | I74: 208463.5808 | J74: 324488.9998
C75: =SUM(C72:C74) -> 1553117.832 | D75: =SUM(D72:D74) -> 1549797.877 | E75: 1586192.157 | H75: =SUM(H72:H74) -> 513671.875 | I75: =SUM(I72:I74) -> 347439.3014 | J75: =SUM(J72:J74) -> 540814.9996
B76: Check | C76: =ABS(C75-C53) -> 0 | D76: =ABS(D75-D53) -> 2.328306437e-10 | E76: =ABS(E75-E53) -> 0 | G76: Check | H76: =ABS(H75-H53) -> 0 | I76: =ABS(I75-I53) -> 0 | J76: =ABS(J75-J53) -> 0
B79: Estimated Tariff Revenue | G79: Estimated Tariff Revenue
B80: Estimated sales quantities | C80: =C$52 -> 2014-15 | D80: =D$52 -> 2015-16 | E80: 2016-17 | G80: Estimated sales quantities | H80: =H$52 -> 2014-15 | I80: =I$52 -> 2015-16 | J80: =J$52 -> 2016-17
B81: High Security Entitlement (ML) | C81: ='State Water data inputs'!F$44 -> 3123 | D81: ='State Water data inputs'!G$44 -> 3118 | E81: ='State Water data inputs'!H$44 -> 3122 | G81: High Security Entitlement (ML) | H81: =C81 -> 3123 | I81: 3118 | J81: 3122
B82: General Security Entitlement (ML) | C82: ='State Water data inputs'!F$30 -> 263248 | D82: ='State Water data inputs'!G$30 -> 263243 | E82: ='State Water data inputs'!H$30 -> 263250 | G82: General Security Entitlement (ML) | H82: 263248 | I82: 263243 | J82: 263250
B83: Water volumes (ML) | C83: ='State Water data inputs'!F$57 -> 211015.4093 | D83: ='State Water data inputs'!G$57 -> 125323.671 | E83: ='State Water data inputs'!H$57 -> 162928.6231 | G83: Water volumes (ML) | H83: 211015.4093 | I83: 125323.671 | J83: 162928.6231
B85: Tariffs Revenue ($'000 Nominal) | C85: =C$52 -> 2014-15 | D85: =D$52 -> 2015-16 | E85: 2016-17 | G85: Tariffs Revenue ($'000 Nominal) | H85: =H$52 -> 2014-15 | I85: =I$52 -> 2015-16 | J85: =J$52 -> 2016-17
B86: High Security Entitlement | C86: =C81*C67 -> 21129.14632 | D86: 21003.87204 | E86: 21169.49288 | G86: High Security Entitlement | H86: =H81*H67 -> 6988.167921 | I86: 4708.72411 | J86: 7217.77575
B87: General Security Entitlement | C87: 600147.5498 | D87: 598920.0073 | E87: 613344.4393 | G87: General Security Entitlement | H87: 198490.3598 | I87: 134268.0565 | J87: 209120.863
B88: Usage | C88: 1397806.048 | D88: 827592.0662 | E88: 1046886.824 | G88: Usage | H88: 462304.6875 | I88: 185532.5869 | J88: 356937.8997
C89: =SUM(C86:C88) -> 2019082.744 | D89: =SUM(D86:D88) -> 1447515.945 | E89: 1681400.756 | H89: =SUM(H86:H88) -> 667783.2152 | I89: =SUM(I86:I88) -> 324509.3676 | J89: =SUM(J86:J88) -> 573276.5385
B92: Actual Tariff Revenue | G92: Actual Tariff Revenue
B93: Actual sales quantities | C93: =C$52 -> 2014-15 | D93: =D$52 -> 2015-16 | E93: 2016-17 | G93: Actual sales quantities | H93: =H$52 -> 2014-15 | I93: =I$52 -> 2015-16 | J93: =J$52 -> 2016-17
B94: High Security Entitlement (ML) | C94: ='State Water data inputs'!K$44 -> 3120 | D94: ='State Water data inputs'!L$44 -> 3119 | E94: ='State Water data inputs'!M$44 -> 3115 | G94: High Security Entitlement (ML) | H94: =C94 -> 3120 | I94: 3119 | J94: 3115
B95: General Security Entitlement (ML) | C95: ='State Water data inputs'!K$30 -> 263245 | D95: ='State Water data inputs'!L$30 -> 263244 | E95: ='State Water data inputs'!M$30 -> 263240 | G95: General Security Entitlement (ML) | H95: 263245 | I95: 263244 | J95: 263240
B96: Water volumes (ML) | C96: ='State Water data inputs'!K$57 -> 209960.3322 | D96: ='State Water data inputs'!L$57 -> 125950.2894 | E96: ='State Water data inputs'!M$57 -> 179335.5355 | G96: Water volumes (ML) | H96: 209960.3322 | I96: 125950.2894 | J96: 179335.5355
B98: Tariffs Revenue ($'000 Nominal) | C98: =C$52 -> 2014-15 | D98: =D$52 -> 2015-16 | E98: =E$52 -> 2016-17 | G98: Tariffs Revenue ($'000 Nominal) | H98: =H$52 -> 2014-15 | I98: =I$52 -> 2015-16 | J98: =J$52 -> 2016-17
B99: High Security Entitlement | C99: =C94*C67 -> 21108.84935 | D99: 21010.60837 | E99: 21122.02765 | G99: High Security Entitlement | H99: =H94*H67 -> 6981.454984 | I99: 4710.234285 | J99: 7201.592397
B100: General Security Entitlement | C100: 600140.7104 | D100: 598922.2824 | E100: 613321.1404 | G100: General Security Entitlement | H100: 198488.0978 | I100: 134268.5666 | J100: 209112.9191
B101: Usage | C101: 1390817.018 | D101: 831730.0265 | E101: 1152308.327 | G101: Usage | H101: 459993.1641 | I101: 186460.2499 | J101: 392881.5462
C102: =SUM(C99:C101) -> 2012066.578 | D102: =SUM(D99:D101) -> 1451662.917 | E102: 1786751.495 | H102: =SUM(H99:H101) -> 665462.7168 | I102: =SUM(I99:I101) -> 325439.0507 | J102: =SUM(J99:J101) -> 609196.0578

Sheet Gwydir
B1: Gwydir | C1: Check | D1: =IF(E1>0.001,"Error","Ok") -> Ok | E1: =SUM(C76:E76,H76:J76) -> 9.313225746e-10
B3: State Water Costs Tariffs | C3: 2014-15 | D3: 2015-16 | E3: 2016-17 | G3: MDBA / BCR Tariffs | H3: 2014-15 | I3: 2015-16 | J3: 2016-17
B6: Benchmark Revenue (Rev BBM) | C6: Forecast 2014-15 | D6: Forecast 2015-16 | E6: Forecast 2016-17 | G6: MDBA / BCR costs | H6: Forecast 2014-15 | I6: Forecast 2015-16 | J6: Forecast 2016-17
B7: Benchmark Revenue (Rev BBM) | C7: ='ACCC data inputs'!B$26*(1+C$31) -> 5117334.928 | D7: ='ACCC data inputs'!C$26*(1+C$31)*(1+D$31) -> 5471167.229 | E7: ='ACCC data inputs'!D$26*(1+C$31)*(1+D$31)*(1+E$31) -> 5824191.087 | G7: MDBA / BCR costs | H7: ='State Water data inputs'!B$18 -> 514699.2188 | I7: ='State Water data inputs'!C$18 -> 514627 | J7: ='State Water data inputs'!D$18 -> 514677
B11: Unders/Overs Adjustment | G11: Unders/Overs Adjustment
B12: Calc. of UOM (t-1) | C12: Estimated 2013-14 | D12: Estimated 2014-15 | E12: Estimated 2015-16 | G12: Calc. of UOM (t-1) | H12: Estimated 2013-14 | I12: Estimated 2014-15 | J12: Estimated 2015-16
B13: Revenue Requirement | C13: 0 | D13: =C47 -> 5117334.928 | E13: =D47 -> 5352870.104 | G13: Esimated MDBA / BCR costs | H13: 0 | I13: ='State Water data inputs'!F$18 -> 514537 | J13: ='State Water data inputs'!G$18 -> 514532
B14: Estimated Tarriff Revenue | C14: 0 | D14: =C89 -> 6652569.698 | E14: =D89 -> 4999638.316 | G14: Estimated MDBA / BCR revenue | H14: 0 | I14: =H89 -> 669112.4334 | J14: =I89 -> 325167.252
B15: Difference | C15: =C14-C13 -> 0 | D15: =D14-D13 -> 1535234.77 | E15: =E14-E13 -> -353231.788 | G15: Difference | H15: =H14-H13 -> 0 | I15: =I14-I13 -> 154575.4334 | J15: =J14-J13 -> -189364.748
B18: Calc. of UOM (t-2) | C18: Actual 2012-13 | D18: Actual 2013-14 | E18: Actual 2014-15 | G18: Calc. of UOM (t-2) | H18: Actual 2012-13 | I18: Actual 2013-14 | J18: Actual 2014-15
B19: Estimated Tarriff Revenue | C19: 0 | D19: =C14 -> 0 | E19: =D14 -> 6652569.698 | G19: Actual MDBA / BCR costs | H19: 0 | I19: 0 | J19: ='State Water data inputs'!K$18 -> 514534
B20: Actual Tarriff Revenue | C20: 0 | D20: 0 | E20: =C102 -> 6629489.57 | G20: Actual MDBA / BCR revenue | H20: 0 | I20: 0 | J20: =H102 -> 666791.0446
B21: Difference | C21: =C20-C19 -> 0 | D21: =D20-D19 -> 0 | E21: =E20-E19 -> -23080.12785 | G21: Difference | H21: =H20-H19 -> 0 | I21: =I20-I19 -> 0 | J21: =J20-J19 -> 152257.0446
H24: Act - Est 2012-13 | I24: Act - Est 2013-14 | J24: Act - Est 2014-15
G25: MDBA / BCR costs | H25: 0 | I25: =I19-H13 -> 0 | J25: =J19-I13 -> -3
G26: MDBA / BCR revenue | H26: 0 | I26: =I20-H14 -> 0 | J26: =J20-I14 -> -2321.388758
G27: Difference | H27: =H26-H25 -> 0 | I27: =I26-I25 -> 0 | J27: =J26-J25 -> -2318.388758
B30: WACC | C30: Actual 2014-15 | D30: Actual 2015-16 | E30: Actual 2016-17 | G30: WACC | H30: Actual 2014-15 | I30: Actual 2015-16 | J30: Actual 2016-17
B31: CPI (t) | C31: ='State Water data inputs'!C11 -> 0.02734375 | D31: ='State Water data inputs'!D11 -> 0.02756653992 | E31: ='State Water data inputs'!E11 -> 0.02312673451 | G31: CPI (t) | H31: =C31 -> 0.02734375 | I31: =D31 -> 0.02756653992 | J31: 0.02312673451
B32: Real Pre Tax WACC | C32: ='ACCC data inputs'!B58 -> 0.04816058537 | D32: ='ACCC data inputs'!C58 -> 0.04816058537 | E32: ='ACCC data inputs'!D58 -> 0.04816058537 | G32: Real Pre Tax WACC | H32: =C32 -> 0.04816058537 | I32: 0.04816058537 | J32: 0.04816058537
B33: Nominal Pre Tax WACC | C33: =(1+C31)*(1+C32)-1 -> 0.07682122637 | D33: =(1+D31)*(1+D32)-1 -> 0.07705474599 | E33: 0.07240111694 | G33: Nominal Pre Tax WACC | H33: =(1+H31)*(1+H32)-1 -> 0.07682122637 | I33: =(1+I31)*(1+I32)-1 -> 0.07705474599 | J33: =(1+J31)*(1+J32)-1 -> 0.07240111694
B36: RAB UOM | C36: Actual 2014-15 | D36: Actual 2015-16 | E36: Actual 2016-17 | H36: Actual 2014-15 | I36: Actual 2015-16 | J36: Actual 2016-17
B37: Opening balance | C37: 0 | D37: =C40 -> 0 | E37: =D40 -> 1535234.77
B38: UOM (t-1) | C38: =C15 -> 0 | D38: =D15 -> 1535234.77 | E38: =E15 -> -353231.788 | G38: UOM (t-1) | H38: =H15 -> 0 | I38: =I15 -> 154575.4334 | J38: =J15 -> -189364.748
B39: UOM (t-2) | C39: 0 | D39: =D21*(1+C$33) -> 0 | E39: =E21*(1+D$33) -> -24858.56124 | G39: UOM (t-2) | H39: 0 | I39: =I27*(1+H$33) -> 0 | J39: =J27*(1+I$33) -> -2497.031615
B40: Closing balance | C40: =SUM(C37:C39) -> 0 | D40: =SUM(D37:D39) -> 1535234.77 | E40: 1157144.421 | G40: Rev UOM(t-1) | H40: 0 | I40: =H42 -> 0 | J40: =I42 -> 166486.2042
B42: Rev UOM (t) | C42: =C40*C$33 -> 0 | D42: =D40*D$33 -> 118297.1252 | E42: =E40*E$33 -> 83778.54852 | G42: Rev UOM (t) | H42: =SUM(H38:H40)*(1+H$33) -> 0 | I42: =SUM(I38:I40)*(1+I$33) -> 166486.2042 | J42: =SUM(J38:J40)*(1+J$33) -> -27212.79542
B46: Revenue Requirement | C46: 2014-15 | D46: 2015-16 | E46: 2016-17 | G46: Maximum pass through revenue | H46: 2014-15 | I46: 2015-16 | J46: 2016-17
B47: Revenue Requirement | C47: =(C7-C42) -> 5117334.928 | D47: =(D7-D42) -> 5352870.104 | E47: =(E7-E42) -> 5740412.539 | G47: Maximum MDBA / BCR Revenue | H47: =(H7-H42) -> 514699.2188 | I47: =(I7-I42) -> 348140.7958 | J47: =(J7-J42) -> 541889.7954
B52: Forecast Tariff Revenue | C52: 2014-15 | D52: 2015-16 | E52: 2016-17 | G52: Forecast Tariff Revenue | H52: 2014-15 | I52: 2015-16 | J52: 2016-17
B53: Revenue Requirement | C53: =C47 -> 5117334.928 | D53: =D47 -> 5352870.104 | E53: 5740412.539 | G53: Maximum MDBA / BCR Revenue | H53: =H47 -> 514699.2188 | I53: =I47 -> 348140.7958 | J53: =J47 -> 541889.7954
B54: Target Variable / Fixed ratio (%) | C54: ='ACCC data inputs'!B49 -> 0.6 | D54: ='ACCC data inputs'!C49 -> 0.6 | E54: ='ACCC data inputs'!D49 -> 0.6 | G54: Target Variable / Fixed ratio (%) | H54: =C54 -> 0.6 | I54: 0.6 | J54: 0.6
B55: Variable Charge Revenue | C55: =C53*C54 -> 3070400.957 | D55: =D53*D54 -> 3211722.062 | E55: =E53*E54 -> 3444247.523 | G55: Variable Charge Revenue | H55: =H53*H54 -> 308819.5312 | I55: =I53*I54 -> 208884.4775 | J55: =J53*J54 -> 325133.8772
B57: Water sharing plan ratio (WSP) | C57: ='ACCC data inputs'!$B$39 -> 1.81 | D57: ='ACCC data inputs'!$B$39 -> 1.81 | E57: ='ACCC data inputs'!$B$39 -> 1.81 | G57: Water sharing plan ratio (WSP) | H57: =C57 -> 1.81 | I57: 1.81 | J57: 1.81
B58: Average Water Allocation (AWA) | C58: ='State Water data inputs'!L$73 -> 2.246650589 | D58: ='State Water data inputs'!M$73 -> 2.221693741 | E58: ='State Water data inputs'!N$73 -> 2.209422093 | G58: Average Water Allocation (AWA) | H58: 2.246650589 | I58: 2.221693741 | J58: 2.209422093
B59: High security premium (times) | C59: =C57*C58 -> 4.066437565 | D59: =D57*D58 -> 4.021265671 | E59: =E57*E58 -> 3.999053988 | G59: High security premium (times) | H59: 4.066437565 | I59: 4.021265671 | J59: 3.999053988
B61: Forecast sales quantities | C61: =C$52 -> 2014-15 | D61: =D$52 -> 2015-16 | E61: 2016-17 | G61: Forecast sales quantities | H61: =H$52 -> 2014-15 | I61: =I$52 -> 2015-16 | J61: =J$52 -> 2016-17
B62: High Security Entitlement (ML) | C62: ='State Water data inputs'!B$45 -> 21457.9 | D62: ='State Water data inputs'!C$45 -> 21455.9 | E62: ='State Water data inputs'!D$45 -> 21456.9 | G62: High Security Entitlement (ML) | H62: =C62 -> 21457.9 | I62: 21455.9 | J62: 21456.9
B63: General Security Entitlement (ML) | C63: ='State Water data inputs'!B$31 -> 509665 | D63: ='State Water data inputs'!C$31 -> 509662 | E63: ='State Water data inputs'!D$31 -> 509664 | G63: General Security Entitlement (ML) | H63: 509665 | I63: 509662 | J63: 509664
B64: Water volumes (ML) | C64: ='State Water data inputs'!B$58 -> 245876.7405 | D64: ='State Water data inputs'!C$58 -> 246074.4656 | E64: ='State Water data inputs'!D$58 -> 262163.9794 | G64: Water volumes (ML) | H64: 245876.7405 | I64: 246074.4656 | J64: 262163.9794
B66: Tariffs ($ Nominal) | C66: =C$52 -> 2014-15 | D66: =D$52 -> 2015-16 | E66: 2016-17 | G66: Tariffs ($ Nominal) | H66: =H$52 -> 2014-15 | I66: =I$52 -> 2015-16 | J66: =J$52 -> 2016-17
B67: High Security Entitlement ($/ML) | C67: =C68*C59 -> 13.94441193 | D67: =D68*D59 -> 14.44792771 | E67: 15.42053805 | G67: High Security Entitlement ($/ML) | H67: =H68*H59 -> 1.402522607 | I67: =I68*I59 -> 0.9396665627 | J67: =J68*J59 -> 1.455684962
B68: General Security Entitlement ($/ML) | C68: =(C53-C55)/(C63+C62*C59) -> 3.429146939 | D68: =(D53-D55)/(D63+D62*D59) -> 3.592880673 | E68: =(E53-E55)/(E63+E62*E59) -> 3.856046479 | G68: General Security Entitlement ($/ML) | H68: =(H53-H55)/(H63+H62*H59) -> 0.3449020389 | I68: =(I53-I55)/(I63+I62*I59) -> 0.2336743303 | J68: =(J53-J55)/(J63+J62*J59) -> 0.3640073293
B69: Usage ($/ML delivered) | C69: =C55/C64 -> 12.48756166 | D69: =D55/D64 -> 13.05182988 | E69: 13.13776031 | G69: Usage ($/ML delivered) | H69: =H55/H64 -> 1.25599327 | I69: =I55/I64 -> 0.8488669355 | J69: =J55/J64 -> 1.240192791
B71: Tariffs Revenue ($'000 Nominal) | C71: =C$52 -> 2014-15 | D71: =D$52 -> 2015-16 | E71: 2016-17 | G71: Tariffs Revenue ($'000 Nominal) | H71: =H$52 -> 2014-15 | I71: =I$52 -> 2015-16 | J71: =J$52 -> 2016-17
B72: High Security Entitlement | C72: =C62*C67 -> 299217.7967 | D72: =D62*D67 -> 309993.2921 | E72: 330876.9429 | G72: High Security Entitlement | H72: =H62*H67 -> 30095.18985 | I72: 20161.3918 | J72: 31234.48666
B73: General Security Entitlement | C73: =C63*C68 -> 1747716.174 | D73: 1831154.749 | E73: 1965288.073 | G73: General Security Entitlement | H73: 175784.4976 | I73: 119094.9265 | J73: 185521.4315
B74: Usage | C74: =C64*C69 -> 3070400.957 | D74: 3211722.062 | E74: 3444247.523 | G74: Usage | H74: 308819.5312 | I74: 208884.4775 | J74: 325133.8772
C75: =SUM(C72:C74) -> 5117334.928 | D75: =SUM(D72:D74) -> 5352870.104 | E75: 5740412.539 | H75: =SUM(H72:H74) -> 514699.2188 | I75: =SUM(I72:I74) -> 348140.7958 | J75: =SUM(J72:J74) -> 541889.7954
B76: Check | C76: =ABS(C75-C53) -> 0 | D76: =ABS(D75-D53) -> 9.313225746e-10 | E76: =ABS(E75-E53) -> 0 | G76: Check | H76: =ABS(H75-H53) -> 0 | I76: =ABS(I75-I53) -> 0 | J76: =ABS(J75-J53) -> 0
B79: Estimated Tariff Revenue | G79: Estimated Tariff Revenue
B80: Estimated sales quantities | C80: =C$52 -> 2014-15 | D80: =D$52 -> 2015-16 | E80: 2016-17 | G80: Estimated sales quantities | H80: =H$52 -> 2014-15 | I80: =I$52 -> 2015-16 | J80: =J$52 -> 2016-17
B81: High Security Entitlement (ML) | C81: ='State Water data inputs'!F$45 -> 21457.9 | D81: ='State Water data inputs'!G$45 -> 21457.9 | E81: ='State Water data inputs'!H$45 -> 21457.9 | G81: High Security Entitlement (ML) | H81: =C81 -> 21457.9 | I81: 21457.9 | J81: 21457.9
B82: General Security Entitlement (ML) | C82: ='State Water data inputs'!F$31 -> 509675 | D82: ='State Water data inputs'!G$31 -> 509670 | E82: ='State Water data inputs'!H$31 -> 509677 | G82: General Security Entitlement (ML) | H82: 509675 | I82: 509670 | J82: 509677
B83: Water volumes (ML) | C83: ='State Water data inputs'!F$58 -> 368815.1107 | D83: ='State Water data inputs'!G$58 -> 219006.2744 | E83: ='State Water data inputs'!H$58 -> 288380.3773 | G83: Water volumes (ML) | H83: 368815.1107 | I83: 219006.2744 | J83: 288380.3773
B85: Tariffs Revenue ($'000 Nominal) | C85: =C$52 -> 2014-15 | D85: =D$52 -> 2015-16 | E85: 2016-17 | G85: Tariffs Revenue ($'000 Nominal) | H85: =H$52 -> 2014-15 | I85: =I$52 -> 2015-16 | J85: =J$52 -> 2016-17
B86: High Security Entitlement | C86: =C81*C67 -> 299217.7967 | D86: 310022.188 | E86: 330892.3634 | G86: High Security Entitlement | H86: =H81*H67 -> 30095.18985 | I86: 20163.27114 | J86: 31235.94235
B87: General Security Entitlement | C87: 1747750.466 | D87: 1831183.492 | E87: 1965338.201 | G87: General Security Entitlement | H87: 175787.9467 | I87: 119096.7959 | J87: 185526.1636
B88: Usage | C88: 4605601.435 | D88: 2858432.635 | E88: 3788672.275 | G88: Usage | H88: 463229.2969 | I88: 185907.185 | J88: 357647.265
C89: =SUM(C86:C88) -> 6652569.698 | D89: =SUM(D86:D88) -> 4999638.316 | E89: 6084902.84 | H89: =SUM(H86:H88) -> 669112.4334 | I89: =SUM(I86:I88) -> 325167.252 | J89: =SUM(J86:J88) -> 574409.3709
B92: Actual Tariff Revenue | G92: Actual Tariff Revenue
B93: Actual sales quantities | C93: =C$52 -> 2014-15 | D93: =D$52 -> 2015-16 | E93: 2016-17 | G93: Actual sales quantities | H93: =H$52 -> 2014-15 | I93: =I$52 -> 2015-16 | J93: =J$52 -> 2016-17
B94: High Security Entitlement (ML) | C94: ='State Water data inputs'!K$45 -> 21454.9 | D94: ='State Water data inputs'!L$45 -> 21453.9 | E94: ='State Water data inputs'!M$45 -> 21449.9 | G94: High Security Entitlement (ML) | H94: =C94 -> 21454.9 | I94: 21453.9 | J94: 21449.9
B95: General Security Entitlement (ML) | C95: ='State Water data inputs'!K$31 -> 509672 | D95: ='State Water data inputs'!L$31 -> 509671 | E95: ='State Water data inputs'!M$31 -> 509667 | G95: General Security Entitlement (ML) | H95: 509672 | I95: 509671 | J95: 509667
B96: Water volumes (ML) | C96: ='State Water data inputs'!K$58 -> 366971.0352 | D96: ='State Water data inputs'!L$58 -> 220101.3058 | E96: ='State Water data inputs'!M$58 -> 317420.2813 | G96: Water volumes (ML) | H96: 366971.0352 | I96: 220101.3058 | J96: 317420.2813
B98: Tariffs Revenue ($'000 Nominal) | C98: =C$52 -> 2014-15 | D98: =D$52 -> 2015-16 | E98: =E$52 -> 2016-17 | G98: Tariffs Revenue ($'000 Nominal) | H98: =H$52 -> 2014-15 | I98: =I$52 -> 2015-16 | J98: =J$52 -> 2016-17
B99: High Security Entitlement | C99: =C94*C67 -> 299175.9635 | D99: 309964.3963 | E99: 330768.9991 | G99: High Security Entitlement | H99: =H94*H67 -> 30090.98229 | I99: 20159.51247 | J99: 31224.29687
B100: General Security Entitlement | C100: 1747740.178 | D100: 1831187.085 | E100: 1965299.641 | G100: General Security Entitlement | H100: 175786.912 | I100: 119097.0296 | J100: 185522.5235
B101: Usage | C101: 4582573.428 | D101: 2872724.799 | E101: 4170191.574 | G101: Usage | H101: 460913.1504 | I101: 186836.7209 | J101: 393662.3446
C102: =SUM(C99:C101) -> 6629489.57 | D102: =SUM(D99:D101) -> 5013876.28 | E102: 6466260.213 | H102: =SUM(H99:H101) -> 666791.0446 | I102: =SUM(I99:I101) -> 326093.263 | J102: =SUM(J99:J101) -> 610409.165

Sheet Namoi
B1: Namoi | C1: Check | D1: =IF(E1>0.001,"Error","Ok") -> Ok | E1: =SUM(C76:E76,H76:J76) -> 9.895302355e-10
B3: State Water Costs Tariffs | C3: 2014-15 | D3: 2015-16 | E3: 2016-17 | G3: MDBA / BCR Tariffs | H3: 2014-15 | I3: 2015-16 | J3: 2016-17
B6: Benchmark Revenue (Rev BBM) | C6: Forecast 2014-15 | D6: Forecast 2015-16 | E6: Forecast 2016-17 | G6: MDBA / BCR costs | H6: Forecast 2014-15 | I6: Forecast 2015-16 | J6: Forecast 2016-17
B7: Benchmark Revenue (Rev BBM) | C7: ='ACCC data inputs'!B$27*(1+C$31) -> 5609967.627 | D7: ='ACCC data inputs'!C$27*(1+C$31)*(1+D$31) -> 5808233.068 | E7: ='ACCC data inputs'!D$27*(1+C$31)*(1+D$31)*(1+E$31) -> 5987522.989 | G7: MDBA / BCR costs | H7: ='State Water data inputs'!B$19 -> 515726.5625 | I7: ='State Water data inputs'!C$19 -> 515654 | J7: ='State Water data inputs'!D$19 -> 515704
B11: Unders/Overs Adjustment | G11: Unders/Overs Adjustment
B12: Calc. of UOM (t-1) | C12: Estimated 2013-14 | D12: Estimated 2014-15 | E12: Estimated 2015-16 | G12: Calc. of UOM (t-1) | H12: Estimated 2013-14 | I12: Estimated 2014-15 | J12: Estimated 2015-16
B13: Revenue Requirement | C13: 0 | D13: =C47 -> 5609967.627 | E13: =D47 -> 5678544.395 | G13: Esimated MDBA / BCR costs | H13: 0 | I13: ='State Water data inputs'!F$19 -> 515564 | J13: ='State Water data inputs'!G$19 -> 515559
B14: Estimated Tarriff Revenue | C14: 0 | D14: =C89 -> 7293039.462 | E14: =D89 -> 5303861.887 | G14: Estimated MDBA / BCR revenue | H14: 0 | I14: =H89 -> 670452.0279 | J14: =I89 -> 325814.4911
B15: Difference | C15: =C14-C13 -> 0 | D15: =D14-D13 -> 1683071.835 | E15: =E14-E13 -> -374682.5089 | G15: Difference | H15: =H14-H13 -> 0 | I15: =I14-I13 -> 154888.0279 | J15: =J14-J13 -> -189744.5089
B18: Calc. of UOM (t-2) | C18: Actual 2012-13 | D18: Actual 2013-14 | E18: Actual 2014-15 | G18: Calc. of UOM (t-2) | H18: Actual 2012-13 | I18: Actual 2013-14 | J18: Actual 2014-15
B19: Estimated Tarriff Revenue | C19: 0 | D19: =C14 -> 0 | E19: =D14 -> 7293039.462 | G19: Actual MDBA / BCR costs | H19: 0 | I19: 0 | J19: ='State Water data inputs'!K$19 -> 515561
B20: Actual Tarriff Revenue | C20: 0 | D20: 0 | E20: =C102 -> 7267717.529 | G20: Actual MDBA / BCR revenue | H20: 0 | I20: 0 | J20: =H102 -> 668124.1725
B21: Difference | C21: =C20-C19 -> 0 | D21: =D20-D19 -> 0 | E21: =E20-E19 -> -25321.93295 | G21: Difference | H21: =H20-H19 -> 0 | I21: =I20-I19 -> 0 | J21: =J20-J19 -> 152563.1725
H24: Act - Est 2012-13 | I24: Act - Est 2013-14 | J24: Act - Est 2014-15
G25: MDBA / BCR costs | H25: 0 | I25: =I19-H13 -> 0 | J25: =J19-I13 -> -3
G26: MDBA / BCR revenue | H26: 0 | I26: =I20-H14 -> 0 | J26: =J20-I14 -> -2327.8554
G27: Difference | H27: =H26-H25 -> 0 | I27: =I26-I25 -> 0 | J27: =J26-J25 -> -2324.8554
B30: WACC | C30: Actual 2014-15 | D30: Actual 2015-16 | E30: Actual 2016-17 | G30: WACC | H30: Actual 2014-15 | I30: Actual 2015-16 | J30: Actual 2016-17
B31: CPI (t) | C31: ='State Water data inputs'!C11 -> 0.02734375 | D31: ='State Water data inputs'!D11 -> 0.02756653992 | E31: ='State Water data inputs'!E11 -> 0.02312673451 | G31: CPI (t) | H31: =C31 -> 0.02734375 | I31: =D31 -> 0.02756653992 | J31: 0.02312673451
B32: Real Pre Tax WACC | C32: ='ACCC data inputs'!B58 -> 0.04816058537 | D32: ='ACCC data inputs'!C58 -> 0.04816058537 | E32: ='ACCC data inputs'!D58 -> 0.04816058537 | G32: Real Pre Tax WACC | H32: =C32 -> 0.04816058537 | I32: 0.04816058537 | J32: 0.04816058537
B33: Nominal Pre Tax WACC | C33: =(1+C31)*(1+C32)-1 -> 0.07682122637 | D33: =(1+D31)*(1+D32)-1 -> 0.07705474599 | E33: 0.07240111694 | G33: Nominal Pre Tax WACC | H33: =(1+H31)*(1+H32)-1 -> 0.07682122637 | I33: =(1+I31)*(1+I32)-1 -> 0.07705474599 | J33: =(1+J31)*(1+J32)-1 -> 0.07240111694
B36: RAB UOM | C36: Actual 2014-15 | D36: Actual 2015-16 | E36: Actual 2016-17 | H36: Actual 2014-15 | I36: Actual 2015-16 | J36: Actual 2016-17
B37: Opening balance | C37: 0 | D37: =C40 -> 0 | E37: =D40 -> 1683071.835
B38: UOM (t-1) | C38: =C15 -> 0 | D38: =D15 -> 1683071.835 | E38: =E15 -> -374682.5089 | G38: UOM (t-1) | H38: =H15 -> 0 | I38: =I15 -> 154888.0279 | J38: =J15 -> -189744.5089
B39: UOM (t-2) | C39: 0 | D39: =D21*(1+C$33) -> 0 | E39: =E21*(1+D$33) -> -27273.10806 | G39: UOM (t-2) | H39: 0 | I39: =I27*(1+H$33) -> 0 | J39: =J27*(1+I$33) -> -2503.996542
B40: Closing balance | C40: =SUM(C37:C39) -> 0 | D40: =SUM(D37:D39) -> 1683071.835 | E40: 1281116.218 | G40: Rev UOM(t-1) | H40: 0 | I40: =H42 -> 0 | J40: =I42 -> 166822.8856
B42: Rev UOM (t) | C42: =C40*C$33 -> 0 | D42: =D40*D$33 -> 129688.6728 | E42: =E40*E$33 -> 92754.24514 | G42: Rev UOM (t) | H42: =SUM(H38:H40)*(1+H$33) -> 0 | I42: =SUM(I38:I40)*(1+I$33) -> 166822.8856 | J42: =SUM(J38:J40)*(1+J$33) -> -27266.4631
B46: Revenue Requirement | C46: 2014-15 | D46: 2015-16 | E46: 2016-17 | G46: Maximum pass through revenue | H46: 2014-15 | I46: 2015-16 | J46: 2016-17
B47: Revenue Requirement | C47: =(C7-C42) -> 5609967.627 | D47: =(D7-D42) -> 5678544.395 | E47: =(E7-E42) -> 5894768.744 | G47: Maximum MDBA / BCR Revenue | H47: =(H7-H42) -> 515726.5625 | I47: =(I7-I42) -> 348831.1144 | J47: =(J7-J42) -> 542970.4631
B52: Forecast Tariff Revenue | C52: 2014-15 | D52: 2015-16 | E52: 2016-17 | G52: Forecast Tariff Revenue | H52: 2014-15 | I52: 2015-16 | J52: 2016-17
B53: Revenue Requirement | C53: =C47 -> 5609967.627 | D53: =D47 -> 5678544.395 | E53: 5894768.744 | G53: Maximum MDBA / BCR Revenue | H53: =H47 -> 515726.5625 | I53: =I47 -> 348831.1144 | J53: =J47 -> 542970.4631
B54: Target Variable / Fixed ratio (%) | C54: ='ACCC data inputs'!B49 -> 0.6 | D54: ='ACCC data inputs'!C49 -> 0.6 | E54: ='ACCC data inputs'!D49 -> 0.6 | G54: Target Variable / Fixed ratio (%) | H54: =C54 -> 0.6 | I54: 0.6 | J54: 0.6
B55: Variable Charge Revenue | C55: =C53*C54 -> 3365980.576 | D55: =D53*D54 -> 3407126.637 | E55: =E53*E54 -> 3536861.247 | G55: Variable Charge Revenue | H55: =H53*H54 -> 309435.9375 | I55: =I53*I54 -> 209298.6687 | J55: =J53*J54 -> 325782.2779
B57: Water sharing plan ratio (WSP) | C57: ='ACCC data inputs'!$B$40 -> 1.25 | D57: ='ACCC data inputs'!$B$40 -> 1.25 | E57: ='ACCC data inputs'!$B$40 -> 1.25 | G57: Water sharing plan ratio (WSP) | H57: =C57 -> 1.25 | I57: 1.25 | J57: 1.25
B58: Average Water Allocation (AWA) | C58: ='State Water data inputs'!L$74 -> 1.720536962 | D58: ='State Water data inputs'!M$74 -> 1.71316804 | E58: ='State Water data inputs'!N$74 -> 1.705861969 | G58: Average Water Allocation (AWA) | H58: 1.720536962 | I58: 1.71316804 | J58: 1.705861969
B59: High security premium (times) | C59: =C57*C58 -> 2.150671203 | D59: =D57*D58 -> 2.14146005 | E59: =E57*E58 -> 2.132327461 | G59: High security premium (times) | H59: 2.150671203 | I59: 2.14146005 | J59: 2.132327461
B61: Forecast sales quantities | C61: =C$52 -> 2014-15 | D61: =D$52 -> 2015-16 | E61: 2016-17 | G61: Forecast sales quantities | H61: =H$52 -> 2014-15 | I61: =I$52 -> 2015-16 | J61: =J$52 -> 2016-17
B62: High Security Entitlement (ML) | C62: ='State Water data inputs'!B$46 -> 8881 | D62: ='State Water data inputs'!C$46 -> 8879 | E62: ='State Water data inputs'!D$46 -> 8880 | G62: High Security Entitlement (ML) | H62: =C62 -> 8881 | I62: 8879 | J62: 8880
B63: General Security Entitlement (ML) | C63: ='State Water data inputs'!B$32 -> 256076 | D63: ='State Water data inputs'!C$32 -> 256073 | E63: ='State Water data inputs'!D$32 -> 256075 | G63: General Security Entitlement (ML) | H63: 256076 | I63: 256073 | J63: 256075
B64: Water volumes (ML) | C64: ='State Water data inputs'!B$59 -> 158960.9705 | D64: ='State Water data inputs'!C$59 -> 159205.4689 | E64: ='State Water data inputs'!D$59 -> 169086.1363 | G64: Water volumes (ML) | H64: 158960.9705 | I64: 159205.4689 | J64: 169086.1363
B66: Tariffs ($ Nominal) | C66: =C$52 -> 2014-15 | D66: =D$52 -> 2015-16 | E66: 2016-17 | G66: Tariffs ($ Nominal) | H66: =H$52 -> 2014-15 | I66: =I$52 -> 2015-16 | J66: =J$52 -> 2016-17
B67: High Security Entitlement ($/ML) | C67: =C68*C59 -> 17.53814425 | D67: =D68*D59 -> 17.68222404 | E67: 18.28235216 | G67: High Security Entitlement ($/ML) | H67: =H68*H59 -> 1.6122886 | I67: =I68*I59 -> 1.086213207 | J67: =J68*J59 -> 1.683997736
B68: General Security Entitlement ($/ML) | C68: =(C53-C55)/(C63+C62*C59) -> 8.154730594 | D68: =(D53-D55)/(D63+D62*D59) -> 8.257087982 | E68: =(E53-E55)/(E63+E62*E59) -> 8.573895189 | G68: General Security Entitlement ($/ML) | H68: =(H53-H55)/(H63+H62*H59) -> 0.7496676375 | I68: =(I53-I55)/(I63+I62*I59) -> 0.5072301988 | J68: =(J53-J55)/(J63+J62*J59) -> 0.7897463061
B69: Usage ($/ML delivered) | C69: =C55/C64 -> 21.17488693 | D69: =D55/D64 -> 21.40081406 | E69: 20.91751177 | G69: Usage ($/ML delivered) | H69: =H55/H64 -> 1.946615805 | I69: =I55/I64 -> 1.314644969 | J69: =J55/J64 -> 1.926723769
B71: Tariffs Revenue ($'000 Nominal) | C71: =C$52 -> 2014-15 | D71: =D$52 -> 2015-16 | E71: 2016-17 | G71: Tariffs Revenue ($'000 Nominal) | H71: =H$52 -> 2014-15 | I71: =I$52 -> 2015-16 | J71: =J$52 -> 2016-17
B72: High Security Entitlement | C72: =C62*C67 -> 155756.2591 | D72: =D62*D67 -> 157000.4673 | E72: 162347.2872 | G72: High Security Entitlement | H72: =H62*H67 -> 14318.73505 | I72: 9644.487063 | J72: 14953.8999
B73: General Security Entitlement | C73: =C63*C68 -> 2088230.792 | D73: 2114417.291 | E73: 2195560.21 | G73: General Security Entitlement | H73: 191971.8899 | I73: 129887.9587 | J73: 202234.2853
B74: Usage | C74: =C64*C69 -> 3365980.576 | D74: 3407126.637 | E74: 3536861.247 | G74: Usage | H74: 309435.9375 | I74: 209298.6687 | J74: 325782.2779
C75: =SUM(C72:C74) -> 5609967.627 | D75: =SUM(D72:D74) -> 5678544.395 | E75: 5894768.744 | H75: =SUM(H72:H74) -> 515726.5625 | I75: =SUM(I72:I74) -> 348831.1144 | J75: =SUM(J72:J74) -> 542970.4631
B76: Check | C76: =ABS(C75-C53) -> 0 | D76: =ABS(D75-D53) -> 0 | E76: =ABS(E75-E53) -> 9.313225746e-10 | G76: Check | H76: =ABS(H75-H53) -> 0 | I76: =ABS(I75-I53) -> 5.820766091e-11 | J76: =ABS(J75-J53) -> 0
B79: Estimated Tariff Revenue | G79: Estimated Tariff Revenue
B80: Estimated sales quantities | C80: =C$52 -> 2014-15 | D80: =D$52 -> 2015-16 | E80: 2016-17 | G80: Estimated sales quantities | H80: =H$52 -> 2014-15 | I80: =I$52 -> 2015-16 | J80: =J$52 -> 2016-17
B81: High Security Entitlement (ML) | C81: ='State Water data inputs'!F$46 -> 8881 | D81: ='State Water data inputs'!G$46 -> 8881 | E81: ='State Water data inputs'!H$46 -> 8881 | G81: High Security Entitlement (ML) | H81: =C81 -> 8881 | I81: 8881 | J81: 8881
B82: General Security Entitlement (ML) | C82: ='State Water data inputs'!F$32 -> 256086 | D82: ='State Water data inputs'!G$32 -> 256081 | E82: ='State Water data inputs'!H$32 -> 256088 | G82: General Security Entitlement (ML) | H82: 256086 | I82: 256081 | J82: 256088
B83: Water volumes (ML) | C83: ='State Water data inputs'!F$59 -> 238441.4557 | D83: ='State Water data inputs'!G$59 -> 141692.8673 | E83: ='State Water data inputs'!H$59 -> 185994.75 | G83: Water volumes (ML) | H83: 238441.4557 | I83: 141692.8673 | J83: 185994.75
B85: Tariffs Revenue ($'000 Nominal) | C85: =C$52 -> 2014-15 | D85: =D$52 -> 2015-16 | E85: 2016-17 | G85: Tariffs Revenue ($'000 Nominal) | H85: =H$52 -> 2014-15 | I85: =I$52 -> 2015-16 | J85: =J$52 -> 2016-17
B86: High Security Entitlement | C86: =C81*C67 -> 155756.2591 | D86: 157035.8317 | E86: 162365.5696 | G86: High Security Entitlement | H86: =H81*H67 -> 14318.73505 | I86: 9646.659489 | J86: 14955.58389
B87: General Security Entitlement | C87: 2088312.339 | D87: 2114483.348 | E87: 2195671.671 | G87: General Security Entitlement | H87: 191979.3866 | I87: 129892.0165 | J87: 202244.552
B88: Usage | C88: 5048970.864 | D88: 3032342.707 | E88: 3890547.371 | G88: Usage | H88: 464153.9062 | I88: 186275.8151 | J88: 358360.5056
C89: =SUM(C86:C88) -> 7293039.462 | D89: =SUM(D86:D88) -> 5303861.887 | E89: 6248584.612 | H89: =SUM(H86:H88) -> 670452.0279 | I89: =SUM(I86:I88) -> 325814.4911 | J89: =SUM(J86:J88) -> 575560.6416
B92: Actual Tariff Revenue | G92: Actual Tariff Revenue
B93: Actual sales quantities | C93: =C$52 -> 2014-15 | D93: =D$52 -> 2015-16 | E93: 2016-17 | G93: Actual sales quantities | H93: =H$52 -> 2014-15 | I93: =I$52 -> 2015-16 | J93: =J$52 -> 2016-17
B94: High Security Entitlement (ML) | C94: ='State Water data inputs'!K$46 -> 8878 | D94: ='State Water data inputs'!L$46 -> 8877 | E94: ='State Water data inputs'!M$46 -> 8873 | G94: High Security Entitlement (ML) | H94: =C94 -> 8878 | I94: 8877 | J94: 8873
B95: General Security Entitlement (ML) | C95: ='State Water data inputs'!K$32 -> 256083 | D95: ='State Water data inputs'!L$32 -> 256082 | E95: ='State Water data inputs'!M$32 -> 256078 | G95: General Security Entitlement (ML) | H95: 256083 | I95: 256082 | J95: 256078
B96: Water volumes (ML) | C96: ='State Water data inputs'!K$59 -> 237249.2485 | D96: ='State Water data inputs'!L$59 -> 142401.3317 | E96: ='State Water data inputs'!M$59 -> 204724.4213 | G96: Water volumes (ML) | H96: 237249.2485 | I96: 142401.3317 | J96: 204724.4213
B98: Tariffs Revenue ($'000 Nominal) | C98: =C$52 -> 2014-15 | D98: =D$52 -> 2015-16 | E98: =E$52 -> 2016-17 | G98: Tariffs Revenue ($'000 Nominal) | H98: =H$52 -> 2014-15 | I98: =I$52 -> 2015-16 | J98: =J$52 -> 2016-17
B99: High Security Entitlement | C99: =C94*C67 -> 155703.6447 | D99: 156965.1028 | E99: 162219.3107 | G99: High Security Entitlement | H99: =H94*H67 -> 14313.89819 | I99: 9642.314637 | J99: 14942.11191
B100: General Security Entitlement | C100: 2088287.875 | D100: 2114491.605 | E100: 2195585.932 | G100: General Security Entitlement | H100: 191977.1376 | I100: 129892.5238 | J100: 202236.6546
B101: Usage | C101: 5023726.01 | D101: 3047504.421 | E101: 4282325.491 | G101: Usage | H101: 461833.1367 | I101: 187207.1942 | J101: 394447.4086
C102: =SUM(C99:C101) -> 7267717.529 | D102: =SUM(D99:D101) -> 5318961.128 | E102: 6640130.734 | H102: =SUM(H99:H101) -> 668124.1725 | I102: =SUM(I99:I101) -> 326742.0326 | J102: =SUM(J99:J101) -> 611626.1751

Sheet Peel
B1: Peel | C1: Check | D1: =IF(E1>0.001,"Error","Ok") -> Ok | E1: =SUM(C76:E76,H76:J76) -> 0
B3: State Water Costs Tariffs | C3: 2014-15 | D3: 2015-16 | E3: 2016-17 | G3: MDBA / BCR Tariffs | H3: 2014-15 | I3: 2015-16 | J3: 2016-17
B6: Benchmark Revenue (Rev BBM) | C6: Forecast 2014-15 | D6: Forecast 2015-16 | E6: Forecast 2016-17 | G6: MDBA / BCR costs | H6: Forecast 2014-15 | I6: Forecast 2015-16 | J6: Forecast 2016-17
B7: Benchmark Revenue (Rev BBM) | C7: ='ACCC data inputs'!B$28*(1+C$31) -> 1374741.982 | D7: ='ACCC data inputs'!C$28*(1+C$31)*(1+D$31) -> 1424287.538 | E7: ='ACCC data inputs'!D$28*(1+C$31)*(1+D$31)*(1+E$31) -> 1469243.008 | G7: MDBA / BCR costs | H7: ='State Water data inputs'!B$20 -> 516753.9062 | I7: ='State Water data inputs'!C$20 -> 516681 | J7: ='State Water data inputs'!D$20 -> 516731
B11: Unders/Overs Adjustment | G11: Unders/Overs Adjustment
B12: Calc. of UOM (t-1) | C12: Estimated 2013-14 | D12: Estimated 2014-15 | E12: Estimated 2015-16 | G12: Calc. of UOM (t-1) | H12: Estimated 2013-14 | I12: Estimated 2014-15 | J12: Estimated 2015-16
B13: Revenue Requirement | C13: 0 | D13: =C47 -> 1374741.982 | E13: =D47 -> 1392506.324 | G13: Esimated MDBA / BCR costs | H13: 0 | I13: ='State Water data inputs'!F$20 -> 516591 | J13: ='State Water data inputs'!G$20 -> 516586
B14: Estimated Tarriff Revenue | C14: 0 | D14: =C89 -> 1787191.775 | E14: =D89 -> 1300677.521 | G14: Estimated MDBA / BCR revenue | H14: 0 | I14: =H89 -> 671790.3018 | J14: =I89 -> 326473.5775
B15: Difference | C15: =C14-C13 -> 0 | D15: =D14-D13 -> 412449.7929 | E15: =E14-E13 -> -91828.80282 | G15: Difference | H15: =H14-H13 -> 0 | I15: =I14-I13 -> 155199.3018 | J15: =J14-J13 -> -190112.4225
B18: Calc. of UOM (t-2) | C18: Actual 2012-13 | D18: Actual 2013-14 | E18: Actual 2014-15 | G18: Calc. of UOM (t-2) | H18: Actual 2012-13 | I18: Actual 2013-14 | J18: Actual 2014-15
B19: Estimated Tarriff Revenue | C19: 0 | D19: =C14 -> 0 | E19: =D14 -> 1787191.775 | G19: Actual MDBA / BCR costs | H19: 0 | I19: 0 | J19: ='State Water data inputs'!K$20 -> 516588
B20: Actual Tarriff Revenue | C20: 0 | D20: 0 | E20: =C102 -> 1780916.699 | G20: Actual MDBA / BCR revenue | H20: 0 | I20: 0 | J20: =H102 -> 669431.5537
B21: Difference | C21: =C20-C19 -> 0 | D21: =D20-D19 -> 0 | E21: =E20-E19 -> -6275.075855 | G21: Difference | H21: =H20-H19 -> 0 | I21: =I20-I19 -> 0 | J21: =J20-J19 -> 152843.5537
H24: Act - Est 2012-13 | I24: Act - Est 2013-14 | J24: Act - Est 2014-15
G25: MDBA / BCR costs | H25: 0 | I25: =I19-H13 -> 0 | J25: =J19-I13 -> -3
G26: MDBA / BCR revenue | H26: 0 | I26: =I20-H14 -> 0 | J26: =J20-I14 -> -2358.748044
G27: Difference | H27: =H26-H25 -> 0 | I27: =I26-I25 -> 0 | J27: =J26-J25 -> -2355.748044
B30: WACC | C30: Actual 2014-15 | D30: Actual 2015-16 | E30: Actual 2016-17 | G30: WACC | H30: Actual 2014-15 | I30: Actual 2015-16 | J30: Actual 2016-17
B31: CPI (t) | C31: ='State Water data inputs'!C11 -> 0.02734375 | D31: ='State Water data inputs'!D11 -> 0.02756653992 | E31: ='State Water data inputs'!E11 -> 0.02312673451 | G31: CPI (t) | H31: =C31 -> 0.02734375 | I31: =D31 -> 0.02756653992 | J31: 0.02312673451
B32: Real Pre Tax WACC | C32: ='ACCC data inputs'!B58 -> 0.04816058537 | D32: ='ACCC data inputs'!C58 -> 0.04816058537 | E32: ='ACCC data inputs'!D58 -> 0.04816058537 | G32: Real Pre Tax WACC | H32: =C32 -> 0.04816058537 | I32: 0.04816058537 | J32: 0.04816058537
B33: Nominal Pre Tax WACC | C33: =(1+C31)*(1+C32)-1 -> 0.07682122637 | D33: =(1+D31)*(1+D32)-1 -> 0.07705474599 | E33: 0.07240111694 | G33: Nominal Pre Tax WACC | H33: =(1+H31)*(1+H32)-1 -> 0.07682122637 | I33: =(1+I31)*(1+I32)-1 -> 0.07705474599 | J33: =(1+J31)*(1+J32)-1 -> 0.07240111694
B36: RAB UOM | C36: Actual 2014-15 | D36: Actual 2015-16 | E36: Actual 2016-17 | H36: Actual 2014-15 | I36: Actual 2015-16 | J36: Actual 2016-17
B37: Opening balance | C37: 0 | D37: =C40 -> 0 | E37: =D40 -> 412449.7929
B38: UOM (t-1) | C38: =C15 -> 0 | D38: =D15 -> 412449.7929 | E38: =E15 -> -91828.80282 | G38: UOM (t-1) | H38: =H15 -> 0 | I38: =I15 -> 155199.3018 | J38: =J15 -> -190112.4225
B39: UOM (t-2) | C39: 0 | D39: =D21*(1+C$33) -> 0 | E39: =E21*(1+D$33) -> -6758.600231 | G39: UOM (t-2) | H39: 0 | I39: =I27*(1+H$33) -> 0 | J39: =J27*(1+I$33) -> -2537.269611
B40: Closing balance | C40: =SUM(C37:C39) -> 0 | D40: =SUM(D37:D39) -> 412449.7929 | E40: 313862.3899 | G40: Rev UOM(t-1) | H40: 0 | I40: =H42 -> 0 | J40: =I42 -> 167158.1445
B42: Rev UOM (t) | C42: =C40*C$33 -> 0 | D42: =D40*D$33 -> 31781.21403 | E42: =E40*E$33 -> 22723.98759 | G42: Rev UOM (t) | H42: =SUM(H38:H40)*(1+H$33) -> 0 | I42: =SUM(I38:I40)*(1+I$33) -> 167158.1445 | J42: =SUM(J38:J40)*(1+J$33) -> -27337.16412
B46: Revenue Requirement | C46: 2014-15 | D46: 2015-16 | E46: 2016-17 | G46: Maximum pass through revenue | H46: 2014-15 | I46: 2015-16 | J46: 2016-17
B47: Revenue Requirement | C47: =(C7-C42) -> 1374741.982 | D47: =(D7-D42) -> 1392506.324 | E47: =(E7-E42) -> 1446519.02 | G47: Maximum MDBA / BCR Revenue | H47: =(H7-H42) -> 516753.9062 | I47: =(I7-I42) -> 349522.8555 | J47: =(J7-J42) -> 544068.1641
B52: Forecast Tariff Revenue | C52: 2014-15 | D52: 2015-16 | E52: 2016-17 | G52: Forecast Tariff Revenue | H52: 2014-15 | I52: 2015-16 | J52: 2016-17
B53: Revenue Requirement | C53: =C47 -> 1374741.982 | D53: =D47 -> 1392506.324 | E53: 1446519.02 | G53: Maximum MDBA / BCR Revenue | H53: =H47 -> 516753.9062 | I53: =I47 -> 349522.8555 | J53: =J47 -> 544068.1641
B54: Target Variable / Fixed ratio (%) | C54: ='ACCC data inputs'!B49 -> 0.6 | D54: ='ACCC data inputs'!C49 -> 0.6 | E54: ='ACCC data inputs'!D49 -> 0.6 | G54: Target Variable / Fixed ratio (%) | H54: =C54 -> 0.6 | I54: 0.6 | J54: 0.6
B55: Variable Charge Revenue | C55: =C53*C54 -> 824845.1891 | D55: =D53*D54 -> 835503.7946 | E55: =E53*E54 -> 867911.412 | G55: Variable Charge Revenue | H55: =H53*H54 -> 310052.3438 | I55: =I53*I54 -> 209713.7133 | J55: =J53*J54 -> 326440.8985
B57: Water sharing plan ratio (WSP) | C57: ='ACCC data inputs'!$B$41 -> 6.73 | D57: ='ACCC data inputs'!$B$41 -> 6.73 | E57: ='ACCC data inputs'!$B$41 -> 6.73 | G57: Water sharing plan ratio (WSP) | H57: =C57 -> 6.73 | I57: 6.73 | J57: 6.73
B58: Average Water Allocation (AWA) | C58: ='State Water data inputs'!L$75 -> 1.467351431 | D58: ='State Water data inputs'!M$75 -> 1.446131598 | E58: ='State Water data inputs'!N$75 -> 1.415428167 | G58: Average Water Allocation (AWA) | H58: 1.467351431 | I58: 1.446131598 | J58: 1.415428167
B59: High security premium (times) | C59: =C57*C58 -> 9.875275128 | D59: =D57*D58 -> 9.732465654 | E59: =E57*E58 -> 9.525831564 | G59: High security premium (times) | H59: 9.875275128 | I59: 9.732465654 | J59: 9.525831564
B61: Forecast sales quantities | C61: =C$52 -> 2014-15 | D61: =D$52 -> 2015-16 | E61: 2016-17 | G61: Forecast sales quantities | H61: =H$52 -> 2014-15 | I61: =I$52 -> 2015-16 | J61: =J$52 -> 2016-17
B62: High Security Entitlement (ML) | C62: ='State Water data inputs'!B$47 -> 17382 | D62: ='State Water data inputs'!C$47 -> 17380 | E62: ='State Water data inputs'!D$47 -> 17381 | G62: High Security Entitlement (ML) | H62: =C62 -> 17382 | I62: 17380 | J62: 17381
B63: General Security Entitlement (ML) | C63: ='State Water data inputs'!B$33 -> 30528 | D63: ='State Water data inputs'!C$33 -> 30525 | E63: ='State Water data inputs'!D$33 -> 30527 | G63: General Security Entitlement (ML) | H63: 30528 | I63: 30525 | J63: 30527
B64: Water volumes (ML) | C64: ='State Water data inputs'!B$60 -> 11163.91 | D64: ='State Water data inputs'!C$60 -> 11183.8704 | E64: ='State Water data inputs'!D$60 -> 11421.16718 | G64: Water volumes (ML) | H64: 11163.91 | I64: 11183.8704 | J64: 11421.16718
B66: Tariffs ($ Nominal) | C66: =C$52 -> 2014-15 | D66: =D$52 -> 2015-16 | E66: 2016-17 | G66: Tariffs ($ Nominal) | H66: =H$52 -> 2014-15 | I66: =I$52 -> 2015-16 | J66: =J$52 -> 2016-17
B67: High Security Entitlement ($/ML) | C67: =C68*C59 -> 26.85914162 | D67: =D68*D59 -> 27.14912292 | E67: 28.10732129 | G67: High Security Entitlement ($/ML) | H67: =H68*H59 -> 10.09612461 | I67: =I68*I59 -> 6.814503317 | J67: =J68*J59 -> 10.57179234
B68: General Security Entitlement ($/ML) | C68: =(C53-C55)/(C63+C62*C59) -> 2.719837298 | D68: =(D53-D55)/(D63+D62*D59) -> 2.789542125 | E68: =(E53-E55)/(E63+E62*E59) -> 2.950642272 | G68: General Security Entitlement ($/ML) | H68: =(H53-H55)/(H63+H62*H59) -> 1.022363881 | I68: =(I53-I55)/(I63+I62*I59) -> 0.7001826217 | J68: =(J53-J55)/(J63+J62*J59) -> 1.109802569
B69: Usage ($/ML delivered) | C69: =C55/C64 -> 73.88497301 | D69: =D55/D64 -> 74.7061406 | E69: 75.99148126 | G69: Usage ($/ML delivered) | H69: =H55/H64 -> 27.77273767 | I69: =I55/I64 -> 18.75144344 | J69: =J55/J64 -> 28.58209614
B71: Tariffs Revenue ($'000 Nominal) | C71: =C$52 -> 2014-15 | D71: =D$52 -> 2015-16 | E71: 2016-17 | G71: Tariffs Revenue ($'000 Nominal) | H71: =H$52 -> 2014-15 | I71: =I$52 -> 2015-16 | J71: =J$52 -> 2016-17
B72: High Security Entitlement | C72: =C62*C67 -> 466865.5997 | D72: =D62*D67 -> 471851.7564 | E72: 488533.3514 | G72: High Security Entitlement | H72: =H62*H67 -> 175490.8379 | I72: 118436.0677 | J72: 183748.3226
B73: General Security Entitlement | C73: =C63*C68 -> 83031.19303 | D73: 85150.77336 | E73: 90074.25665 | G73: General Security Entitlement | H73: 31210.72456 | I73: 21373.07453 | J73: 33878.94301
B74: Usage | C74: =C64*C69 -> 824845.1891 | D74: 835503.7946 | E74: 867911.412 | G74: Usage | H74: 310052.3438 | I74: 209713.7133 | J74: 326440.8985
C75: =SUM(C72:C74) -> 1374741.982 | D75: =SUM(D72:D74) -> 1392506.324 | E75: 1446519.02 | H75: =SUM(H72:H74) -> 516753.9062 | I75: =SUM(I72:I74) -> 349522.8555 | J75: =SUM(J72:J74) -> 544068.1641
B76: Check | C76: =ABS(C75-C53) -> 0 | D76: =ABS(D75-D53) -> 0 | E76: =ABS(E75-E53) -> 0 | G76: Check | H76: =ABS(H75-H53) -> 0 | I76: =ABS(I75-I53) -> 0 | J76: =ABS(J75-J53) -> 0
B79: Estimated Tariff Revenue | G79: Estimated Tariff Revenue
B80: Estimated sales quantities | C80: =C$52 -> 2014-15 | D80: =D$52 -> 2015-16 | E80: 2016-17 | G80: Estimated sales quantities | H80: =H$52 -> 2014-15 | I80: =I$52 -> 2015-16 | J80: =J$52 -> 2016-17
B81: High Security Entitlement (ML) | C81: ='State Water data inputs'!F$47 -> 17382 | D81: ='State Water data inputs'!G$47 -> 17382 | E81: ='State Water data inputs'!H$47 -> 17382 | G81: High Security Entitlement (ML) | H81: =C81 -> 17382 | I81: 17382 | J81: 17382
B82: General Security Entitlement (ML) | C82: ='State Water data inputs'!F$33 -> 30538 | D82: ='State Water data inputs'!G$33 -> 30533 | E82: ='State Water data inputs'!H$33 -> 30540 | G82: General Security Entitlement (ML) | H82: 30538 | I82: 30533 | J82: 30540
B83: Water volumes (ML) | C83: ='State Water data inputs'!F$60 -> 16745.865 | D83: ='State Water data inputs'!G$60 -> 9953.644656 | E83: ='State Water data inputs'!H$60 -> 12563.2839 | G83: Water volumes (ML) | H83: 16745.865 | I83: 9953.644656 | J83: 12563.2839
B85: Tariffs Revenue ($'000 Nominal) | C85: =C$52 -> 2014-15 | D85: =D$52 -> 2015-16 | E85: 2016-17 | G85: Tariffs Revenue ($'000 Nominal) | H85: =H$52 -> 2014-15 | I85: =I$52 -> 2015-16 | J85: =J$52 -> 2016-17
B86: High Security Entitlement | C86: =C81*C67 -> 466865.5997 | D86: 471906.0546 | E86: 488561.4587 | G86: High Security Entitlement | H86: =H81*H67 -> 175490.8379 | I86: 118449.6967 | J86: 183758.8944
B87: General Security Entitlement | C87: 83058.39141 | D87: 85173.0897 | E87: 90112.615 | G87: General Security Entitlement | H87: 31220.9482 | I87: 21378.67599 | J87: 33893.37045
B88: Usage | C88: 1237267.784 | D88: 743598.3772 | E88: 954702.5532 | G88: Usage | H88: 465078.5156 | I88: 186645.2048 | J88: 359084.9883
C89: =SUM(C86:C88) -> 1787191.775 | D89: =SUM(D86:D88) -> 1300677.521 | E89: 1533376.627 | H89: =SUM(H86:H88) -> 671790.3018 | I89: =SUM(I86:I88) -> 326473.5775 | J89: =SUM(J86:J88) -> 576737.2532
B92: Actual Tariff Revenue | G92: Actual Tariff Revenue
B93: Actual sales quantities | C93: =C$52 -> 2014-15 | D93: =D$52 -> 2015-16 | E93: 2016-17 | G93: Actual sales quantities | H93: =H$52 -> 2014-15 | I93: =I$52 -> 2015-16 | J93: =J$52 -> 2016-17
B94: High Security Entitlement (ML) | C94: ='State Water data inputs'!K$47 -> 17379 | D94: ='State Water data inputs'!L$47 -> 17378 | E94: ='State Water data inputs'!M$47 -> 17374 | G94: High Security Entitlement (ML) | H94: =C94 -> 17379 | I94: 17378 | J94: 17374
B95: General Security Entitlement (ML) | C95: ='State Water data inputs'!K$33 -> 30535 | D95: ='State Water data inputs'!L$33 -> 30534 | E95: ='State Water data inputs'!M$33 -> 30530 | G95: General Security Entitlement (ML) | H95: 30535 | I95: 30534 | J95: 30530
B96: Water volumes (ML) | C96: ='State Water data inputs'!K$60 -> 16662.13567 | D96: ='State Water data inputs'!L$60 -> 10003.41288 | E96: ='State Water data inputs'!M$60 -> 13828.40659 | G96: Water volumes (ML) | H96: 16662.13567 | I96: 10003.41288 | J96: 13828.40659
B98: Tariffs Revenue ($'000 Nominal) | C98: =C$52 -> 2014-15 | D98: =D$52 -> 2015-16 | E98: =E$52 -> 2016-17 | G98: Tariffs Revenue ($'000 Nominal) | H98: =H$52 -> 2014-15 | I98: =I$52 -> 2015-16 | J98: =J$52 -> 2016-17
B99: High Security Entitlement | C99: =C94*C67 -> 466785.0223 | D99: 471797.4581 | E99: 488336.6001 | G99: High Security Entitlement | H99: =H94*H67 -> 175460.5496 | I99: 118422.4387 | J99: 183674.3201
B100: General Security Entitlement | C100: 83050.23189 | D100: 85175.87924 | E100: 90083.10857 | G100: General Security Entitlement | H100: 31217.88111 | I100: 21379.37617 | J100: 33882.27242
B101: Usage | C101: 1231081.445 | D101: 747316.3691 | E101: 1050841.1 | G101: Usage | H101: 462753.123 | I101: 187578.4308 | J101: 395244.8466
C102: =SUM(C99:C101) -> 1780916.699 | D102: =SUM(D99:D101) -> 1304289.706 | E102: 1629260.809 | H102: =SUM(H99:H101) -> 669431.5537 | I102: =SUM(I99:I101) -> 327380.2457 | J102: =SUM(J99:J101) -> 612801.4392

Sheet Lachlan
B1: Lachlan | C1: Check | D1: =IF(E1>0.001,"Error","Ok") -> Ok | E1: =SUM(C76:E76,H76:J76) -> 0
B3: State Water Costs Tariffs | C3: 2014-15 | D3: 2015-16 | E3: 2016-17 | G3: MDBA / BCR Tariffs | H3: 2014-15 | I3: 2015-16 | J3: 2016-17
B6: Benchmark Revenue (Rev BBM) | C6: Forecast 2014-15 | D6: Forecast 2015-16 | E6: Forecast 2016-17 | G6: MDBA / BCR costs | H6: Forecast 2014-15 | I6: Forecast 2015-16 | J6: Forecast 2016-17
B7: Benchmark Revenue (Rev BBM) | C7: ='ACCC data inputs'!B$29*(1+C$31) -> 7209126.477 | D7: ='ACCC data inputs'!C$29*(1+C$31)*(1+D$31) -> 7723140.33 | E7: ='ACCC data inputs'!D$29*(1+C$31)*(1+D$31)*(1+E$31) -> 8238054.982 | G7: MDBA / BCR costs | H7: ='State Water data inputs'!B$21 -> 0 | I7: ='State Water data inputs'!C$21 -> 0 | J7: ='State Water data inputs'!D$21 -> 0
B11: Unders/Overs Adjustment | G11: Unders/Overs Adjustment
B12: Calc. of UOM (t-1) | C12: Estimated 2013-14 | D12: Estimated 2014-15 | E12: Estimated 2015-16 | G12: Calc. of UOM (t-1) | H12: Estimated 2013-14 | I12: Estimated 2014-15 | J12: Estimated 2015-16
B13: Revenue Requirement | C13: 0 | D13: =C47 -> 7209126.477 | E13: =D47 -> 7556488.575 | G13: Esimated MDBA / BCR costs | H13: 0 | I13: ='State Water data inputs'!F$21 -> 0 | J13: ='State Water data inputs'!G$21 -> 0
B14: Estimated Tarriff Revenue | C14: 0 | D14: =C89 -> 9371897.275 | E14: =D89 -> 7057815.766 | G14: Estimated MDBA / BCR revenue | H14: 0 | I14: =H89 -> 0 | J14: =I89 -> 0
B15: Difference | C15: =C14-C13 -> 0 | D15: =D14-D13 -> 2162770.799 | E15: =E14-E13 -> -498672.8094 | G15: Difference | H15: =H14-H13 -> 0 | I15: =I14-I13 -> 0 | J15: =J14-J13 -> 0
B18: Calc. of UOM (t-2) | C18: Actual 2012-13 | D18: Actual 2013-14 | E18: Actual 2014-15 | G18: Calc. of UOM (t-2) | H18: Actual 2012-13 | I18: Actual 2013-14 | J18: Actual 2014-15
B19: Estimated Tarriff Revenue | C19: 0 | D19: =C14 -> 0 | E19: =D14 -> 9371897.275 | G19: Actual MDBA / BCR costs | H19: 0 | I19: 0 | J19: ='State Water data inputs'!K$21 -> 0
B20: Actual Tarriff Revenue | C20: 0 | D20: 0 | E20: =C102 -> 9339406.623 | G20: Actual MDBA / BCR revenue | H20: 0 | I20: 0 | J20: =H102 -> 0
B21: Difference | C21: =C20-C19 -> 0 | D21: =D20-D19 -> 0 | E21: =E20-E19 -> -32490.65283 | G21: Difference | H21: =H20-H19 -> 0 | I21: =I20-I19 -> 0 | J21: =J20-J19 -> 0
H24: Act - Est 2012-13 | I24: Act - Est 2013-14 | J24: Act - Est 2014-15
G25: MDBA / BCR costs | H25: 0 | I25: =I19-H13 -> 0 | J25: =J19-I13 -> 0
G26: MDBA / BCR revenue | H26: 0 | I26: =I20-H14 -> 0 | J26: =J20-I14 -> 0
G27: Difference | H27: =H26-H25 -> 0 | I27: =I26-I25 -> 0 | J27: =J26-J25 -> 0
B30: WACC | C30: Actual 2014-15 | D30: Actual 2015-16 | E30: Actual 2016-17 | G30: WACC | H30: Actual 2014-15 | I30: Actual 2015-16 | J30: Actual 2016-17
B31: CPI (t) | C31: ='State Water data inputs'!C11 -> 0.02734375 | D31: ='State Water data inputs'!D11 -> 0.02756653992 | E31: ='State Water data inputs'!E11 -> 0.02312673451 | G31: CPI (t) | H31: =C31 -> 0.02734375 | I31: =D31 -> 0.02756653992 | J31: 0.02312673451
B32: Real Pre Tax WACC | C32: ='ACCC data inputs'!B58 -> 0.04816058537 | D32: ='ACCC data inputs'!C58 -> 0.04816058537 | E32: ='ACCC data inputs'!D58 -> 0.04816058537 | G32: Real Pre Tax WACC | H32: =C32 -> 0.04816058537 | I32: 0.04816058537 | J32: 0.04816058537
B33: Nominal Pre Tax WACC | C33: =(1+C31)*(1+C32)-1 -> 0.07682122637 | D33: =(1+D31)*(1+D32)-1 -> 0.07705474599 | E33: 0.07240111694 | G33: Nominal Pre Tax WACC | H33: =(1+H31)*(1+H32)-1 -> 0.07682122637 | I33: =(1+I31)*(1+I32)-1 -> 0.07705474599 | J33: =(1+J31)*(1+J32)-1 -> 0.07240111694
B36: RAB UOM | C36: Actual 2014-15 | D36: Actual 2015-16 | E36: Actual 2016-17 | H36: Actual 2014-15 | I36: Actual 2015-16 | J36: Actual 2016-17
B37: Opening balance | C37: 0 | D37: =C40 -> 0 | E37: =D40 -> 2162770.799
B38: UOM (t-1) | C38: =C15 -> 0 | D38: =D15 -> 2162770.799 | E38: =E15 -> -498672.8094 | G38: UOM (t-1) | H38: =H15 -> 0 | I38: =I15 -> 0 | J38: =J15 -> 0
B39: UOM (t-2) | C39: 0 | D39: =D21*(1+C$33) -> 0 | E39: =E21*(1+D$33) -> -34994.21183 | G39: UOM (t-2) | H39: 0 | I39: =I27*(1+H$33) -> 0 | J39: =J27*(1+I$33) -> 0
B40: Closing balance | C40: =SUM(C37:C39) -> 0 | D40: =SUM(D37:D39) -> 2162770.799 | E40: 1629103.778 | G40: Rev UOM(t-1) | H40: 0 | I40: =H42 -> 0 | J40: =I42 -> 0
B42: Rev UOM (t) | C42: =C40*C$33 -> 0 | D42: =D40*D$33 -> 166651.7545 | E42: =E40*E$33 -> 117948.9331 | G42: Rev UOM (t) | H42: =SUM(H38:H40)*(1+H$33) -> 0 | I42: =SUM(I38:I40)*(1+I$33) -> 0 | J42: =SUM(J38:J40)*(1+J$33) -> 0
B46: Revenue Requirement | C46: 2014-15 | D46: 2015-16 | E46: 2016-17 | G46: Maximum pass through revenue | H46: 2014-15 | I46: 2015-16 | J46: 2016-17
B47: Revenue Requirement | C47: =(C7-C42) -> 7209126.477 | D47: =(D7-D42) -> 7556488.575 | E47: =(E7-E42) -> 8120106.048 | G47: Maximum MDBA / BCR Revenue | H47: =(H7-H42) -> 0 | I47: =(I7-I42) -> 0 | J47: =(J7-J42) -> 0
B52: Forecast Tariff Revenue | C52: 2014-15 | D52: 2015-16 | E52: 2016-17 | G52: Forecast Tariff Revenue | H52: 2014-15 | I52: 2015-16 | J52: 2016-17
B53: Revenue Requirement | C53: =C47 -> 7209126.477 | D53: =D47 -> 7556488.575 | E53: 8120106.048 | G53: Maximum MDBA / BCR Revenue | H53: =H47 -> 0 | I53: =I47 -> 0 | J53: =J47 -> 0
B54: Target Variable / Fixed ratio (%) | C54: ='ACCC data inputs'!B49 -> 0.6 | D54: ='ACCC data inputs'!C49 -> 0.6 | E54: ='ACCC data inputs'!D49 -> 0.6 | G54: Target Variable / Fixed ratio (%) | H54: =C54 -> 0.6 | I54: 0.6 | J54: 0.6
B55: Variable Charge Revenue | C55: =C53*C54 -> 4325475.886 | D55: =D53*D54 -> 4533893.145 | E55: =E53*E54 -> 4872063.629 | G55: Variable Charge Revenue | H55: =H53*H54 -> 0 | I55: =I53*I54 -> 0 | J55: =J53*J54 -> 0
B57: Water sharing plan ratio (WSP) | C57: ='ACCC data inputs'!$B$42 -> 2.45 | D57: ='ACCC data inputs'!$B$42 -> 2.45 | E57: ='ACCC data inputs'!$B$42 -> 2.45 | G57: Water sharing plan ratio (WSP) | H57: =C57 -> 2.45 | I57: 2.45 | J57: 2.45
B58: Average Water Allocation (AWA) | C58: ='State Water data inputs'!L$76 -> 1.645064806 | D58: ='State Water data inputs'!M$76 -> 1.66163142 | E58: ='State Water data inputs'!N$76 -> 1.628825271 | G58: Average Water Allocation (AWA) | H58: 1.645064806 | I58: 1.66163142 | J58: 1.628825271
B59: High security premium (times) | C59: =C57*C58 -> 4.030408774 | D59: =D57*D58 -> 4.070996979 | E59: =E57*E58 -> 3.990621915 | G59: High security premium (times) | H59: 4.030408774 | I59: 4.070996979 | J59: 3.990621915
B61: Forecast sales quantities | C61: =C$52 -> 2014-15 | D61: =D$52 -> 2015-16 | E61: 2016-17 | G61: Forecast sales quantities | H61: =H$52 -> 2014-15 | I61: =I$52 -> 2015-16 | J61: =J$52 -> 2016-17
B62: High Security Entitlement (ML) | C62: ='State Water data inputs'!B$48 -> 60745 | D62: ='State Water data inputs'!C$48 -> 60743 | E62: ='State Water data inputs'!D$48 -> 60744 | G62: High Security Entitlement (ML) | H62: =C62 -> 60745 | I62: 60743 | J62: 60744
B63: General Security Entitlement (ML) | C63: ='State Water data inputs'!B$34 -> 632837 | D63: ='State Water data inputs'!C$34 -> 632834 | E63: ='State Water data inputs'!D$34 -> 632836 | G63: General Security Entitlement (ML) | H63: 632837 | I63: 632834 | J63: 632836
B64: Water volumes (ML) | C64: ='State Water data inputs'!B$61 -> 227697.179 | D64: ='State Water data inputs'!C$61 -> 228267.1291 | E64: ='State Water data inputs'!D$61 -> 225765.9126 | G64: Water volumes (ML) | H64: 227697.179 | I64: 228267.1291 | J64: 225765.9126
B66: Tariffs ($ Nominal) | C66: =C$52 -> 2014-15 | D66: =D$52 -> 2015-16 | E66: 2016-17 | G66: Tariffs ($ Nominal) | H66: =H$52 -> 2014-15 | I66: =I$52 -> 2015-16 | J66: =J$52 -> 2016-17
B67: High Security Entitlement ($/ML) | C67: =C68*C59 -> 13.24229801 | D67: =D68*D59 -> 13.98104448 | E67: 14.80928047 | G67: High Security Entitlement ($/ML) | H67: =H68*H59 -> 0 | I67: =I68*I59 -> 0 | J67: =J68*J59 -> 0
B68: General Security Entitlement ($/ML) | C68: =(C53-C55)/(C63+C62*C59) -> 3.285596761 | D68: =(D53-D55)/(D63+D62*D59) -> 3.434304803 | E68: =(E53-E55)/(E63+E62*E59) -> 3.711020685 | G68: General Security Entitlement ($/ML) | H68: =(H53-H55)/(H63+H62*H59) -> 0 | I68: =(I53-I55)/(I63+I62*I59) -> 0 | J68: =(J53-J55)/(J63+J62*J59) -> 0
B69: Usage ($/ML delivered) | C69: =C55/C64 -> 18.99661605 | D69: =D55/D64 -> 19.86222529 | E69: 21.58015607 | G69: Usage ($/ML delivered) | H69: =H55/H64 -> 0 | I69: =I55/I64 -> 0 | J69: =J55/J64 -> 0
B71: Tariffs Revenue ($'000 Nominal) | C71: =C$52 -> 2014-15 | D71: =D$52 -> 2015-16 | E71: 2016-17 | G71: Tariffs Revenue ($'000 Nominal) | H71: =H$52 -> 2014-15 | I71: =I$52 -> 2015-16 | J71: =J$52 -> 2016-17
B72: High Security Entitlement | C72: =C62*C67 -> 804403.3929 | D72: =D62*D67 -> 849250.5846 | E72: 899574.9331 | G72: High Security Entitlement | H72: =H62*H67 -> 0 | I72: 0 | J72: 0
B73: General Security Entitlement | C73: =C63*C68 -> 2079247.198 | D73: 2173344.845 | E73: 2348467.486 | G73: General Security Entitlement | H73: 0 | I73: 0 | J73: 0
B74: Usage | C74: =C64*C69 -> 4325475.886 | D74: 4533893.145 | E74: 4872063.629 | G74: Usage | H74: 0 | I74: 0 | J74: 0
C75: =SUM(C72:C74) -> 7209126.477 | D75: =SUM(D72:D74) -> 7556488.575 | E75: 8120106.048 | H75: =SUM(H72:H74) -> 0 | I75: =SUM(I72:I74) -> 0 | J75: =SUM(J72:J74) -> 0
B76: Check | C76: =ABS(C75-C53) -> 0 | D76: =ABS(D75-D53) -> 0 | E76: =ABS(E75-E53) -> 0 | G76: Check | H76: =ABS(H75-H53) -> 0 | I76: =ABS(I75-I53) -> 0 | J76: =ABS(J75-J53) -> 0
B79: Estimated Tariff Revenue | G79: Estimated Tariff Revenue
B80: Estimated sales quantities | C80: =C$52 -> 2014-15 | D80: =D$52 -> 2015-16 | E80: 2016-17 | G80: Estimated sales quantities | H80: =H$52 -> 2014-15 | I80: =I$52 -> 2015-16 | J80: =J$52 -> 2016-17
B81: High Security Entitlement (ML) | C81: ='State Water data inputs'!F$48 -> 60745 | D81: ='State Water data inputs'!G$48 -> 60745 | E81: ='State Water data inputs'!H$48 -> 60745 | G81: High Security Entitlement (ML) | H81: =C81 -> 60745 | I81: 60745 | J81: 60745
B82: General Security Entitlement (ML) | C82: ='State Water data inputs'!F$34 -> 632847 | D82: ='State Water data inputs'!G$34 -> 632842 | E82: ='State Water data inputs'!H$34 -> 632849 | G82: General Security Entitlement (ML) | H82: 632847 | I82: 632842 | J82: 632849
B83: Water volumes (ML) | C83: ='State Water data inputs'!F$61 -> 341545.7685 | D83: ='State Water data inputs'!G$61 -> 203157.7449 | E83: ='State Water data inputs'!H$61 -> 248342.5038 | G83: Water volumes (ML) | H83: 341545.7685 | I83: 203157.7449 | J83: 248342.5038
B85: Tariffs Revenue ($'000 Nominal) | C85: =C$52 -> 2014-15 | D85: =D$52 -> 2015-16 | E85: 2016-17 | G85: Tariffs Revenue ($'000 Nominal) | H85: =H$52 -> 2014-15 | I85: =I$52 -> 2015-16 | J85: =J$52 -> 2016-17
B86: High Security Entitlement | C86: =C81*C67 -> 804403.3929 | D86: 849278.5467 | E86: 899589.7424 | G86: High Security Entitlement | H86: =H81*H67 -> 0 | I86: 0 | J86: 0
B87: General Security Entitlement | C87: 2079280.054 | D87: 2173372.32 | E87: 2348515.73 | G87: General Security Entitlement | H87: 0 | I87: 0 | J87: 0
B88: Usage | C88: 6488213.829 | D88: 4035164.899 | E88: 5359269.992 | G88: Usage | H88: 0 | I88: 0 | J88: 0
C89: =SUM(C86:C88) -> 9371897.275 | D89: =SUM(D86:D88) -> 7057815.766 | E89: 8607375.464 | H89: =SUM(H86:H88) -> 0 | I89: =SUM(I86:I88) -> 0 | J89: =SUM(J86:J88) -> 0
B92: Actual Tariff Revenue | G92: Actual Tariff Revenue
B93: Actual sales quantities | C93: =C$52 -> 2014-15 | D93: =D$52 -> 2015-16 | E93: 2016-17 | G93: Actual sales quantities | H93: =H$52 -> 2014-15 | I93: =I$52 -> 2015-16 | J93: =J$52 -> 2016-17
B94: High Security Entitlement (ML) | C94: ='State Water data inputs'!K$48 -> 60742 | D94: ='State Water data inputs'!L$48 -> 60741 | E94: ='State Water data inputs'!M$48 -> 60737 | G94: High Security Entitlement (ML) | H94: =C94 -> 60742 | I94: 60741 | J94: 60737
B95: General Security Entitlement (ML) | C95: ='State Water data inputs'!K$34 -> 632844 | D95: ='State Water data inputs'!L$34 -> 632843 | E95: ='State Water data inputs'!M$34 -> 632839 | G95: General Security Entitlement (ML) | H95: 632844 | I95: 632843 | J95: 632839
B96: Water volumes (ML) | C96: ='State Water data inputs'!K$61 -> 339838.0397 | D96: ='State Water data inputs'!L$61 -> 204173.5336 | E96: ='State Water data inputs'!M$61 -> 273350.594 | G96: Water volumes (ML) | H96: 339838.0397 | I96: 204173.5336 | J96: 273350.594
B98: Tariffs Revenue ($'000 Nominal) | C98: =C$52 -> 2014-15 | D98: =D$52 -> 2015-16 | E98: =E$52 -> 2016-17 | G98: Tariffs Revenue ($'000 Nominal) | H98: =H$52 -> 2014-15 | I98: =I$52 -> 2015-16 | J98: =J$52 -> 2016-17
B99: High Security Entitlement | C99: =C94*C67 -> 804363.666 | D99: 849222.6225 | E99: 899471.2681 | G99: High Security Entitlement | H99: =H94*H67 -> 0 | I99: 0 | J99: 0
B100: General Security Entitlement | C100: 2079270.197 | D100: 2173375.754 | E100: 2348478.619 | G100: General Security Entitlement | H100: 0 | I100: 0 | J100: 0
B101: Usage | C101: 6455772.76 | D101: 4055340.724 | E101: 5898948.48 | G101: Usage | H101: 0 | I101: 0 | J101: 0
C102: =SUM(C99:C101) -> 9339406.623 | D102: =SUM(D99:D101) -> 7077939.1 | E102: 9146898.368 | H102: =SUM(H99:H101) -> 0 | I102: =SUM(I99:I101) -> 0 | J102: =SUM(J99:J101) -> 0

Sheet Macquarie
B1: Macquarie | C1: Check | D1: =IF(E1>0.001,"Error","Ok") -> Ok | E1: =SUM(C76:E76,H76:J76) -> 0
B3: State Water Costs Tariffs | C3: 2014-15 | D3: 2015-16 | E3: 2016-17 | G3: MDBA / BCR Tariffs | H3: 2014-15 | I3: 2015-16 | J3: 2016-17
B6: Benchmark Revenue (Rev BBM) | C6: Forecast 2014-15 | D6: Forecast 2015-16 | E6: Forecast 2016-17 | G6: MDBA / BCR costs | H6: Forecast 2014-15 | I6: Forecast 2015-16 | J6: Forecast 2016-17
B7: Benchmark Revenue (Rev BBM) | C7: ='ACCC data inputs'!B$30*(1+C$31) -> 7046434.957 | D7: ='ACCC data inputs'!C$30*(1+C$31)*(1+D$31) -> 7430855.924 | E7: ='ACCC data inputs'!D$30*(1+C$31)*(1+D$31)*(1+E$31) -> 7802391.054 | G7: MDBA / BCR costs | H7: ='State Water data inputs'!B$22 -> 517781.25 | I7: ='State Water data inputs'!C$22 -> 517708 | J7: ='State Water data inputs'!D$22 -> 517758
B11: Unders/Overs Adjustment | G11: Unders/Overs Adjustment
B12: Calc. of UOM (t-1) | C12: Estimated 2013-14 | D12: Estimated 2014-15 | E12: Estimated 2015-16 | G12: Calc. of UOM (t-1) | H12: Estimated 2013-14 | I12: Estimated 2014-15 | J12: Estimated 2015-16
B13: Revenue Requirement | C13: 0 | D13: =C47 -> 7046434.957 | E13: =D47 -> 7267964.794 | G13: Esimated MDBA / BCR costs | H13: 0 | I13: ='State Water data inputs'!F$22 -> 517618 | J13: ='State Water data inputs'!G$22 -> 517613
B14: Estimated Tarriff Revenue | C14: 0 | D14: =C89 -> 9160401.177 | E14: =D89 -> 6788335.395 | G14: Estimated MDBA / BCR revenue | H14: 0 | I14: =H89 -> 673118.2508 | J14: =I89 -> 327113.5315
B15: Difference | C15: =C14-C13 -> 0 | D15: =D14-D13 -> 2113966.221 | E15: =E14-E13 -> -479629.399 | G15: Difference | H15: =H14-H13 -> 0 | I15: =I14-I13 -> 155500.2508 | J15: =J14-J13 -> -190499.4685
B18: Calc. of UOM (t-2) | C18: Actual 2012-13 | D18: Actual 2013-14 | E18: Actual 2014-15 | G18: Calc. of UOM (t-2) | H18: Actual 2012-13 | I18: Actual 2013-14 | J18: Actual 2014-15
B19: Estimated Tarriff Revenue | C19: 0 | D19: =C14 -> 0 | E19: =D14 -> 9160401.177 | G19: Actual MDBA / BCR costs | H19: 0 | I19: 0 | J19: ='State Water data inputs'!K$22 -> 517615
B20: Actual Tarriff Revenue | C20: 0 | D20: 0 | E20: =C102 -> 9128641.983 | G20: Actual MDBA / BCR revenue | H20: 0 | I20: 0 | J20: =H102 -> 670784.5436
B21: Difference | C21: =C20-C19 -> 0 | D21: =D20-D19 -> 0 | E21: =E20-E19 -> -31759.19459 | G21: Difference | H21: =H20-H19 -> 0 | I21: =I20-I19 -> 0 | J21: =J20-J19 -> 153169.5436
H24: Act - Est 2012-13 | I24: Act - Est 2013-14 | J24: Act - Est 2014-15
G25: MDBA / BCR costs | H25: 0 | I25: =I19-H13 -> 0 | J25: =J19-I13 -> -3
G26: MDBA / BCR revenue | H26: 0 | I26: =I20-H14 -> 0 | J26: =J20-I14 -> -2333.707126
G27: Difference | H27: =H26-H25 -> 0 | I27: =I26-I25 -> 0 | J27: =J26-J25 -> -2330.707126
B30: WACC | C30: Actual 2014-15 | D30: Actual 2015-16 | E30: Actual 2016-17 | G30: WACC | H30: Actual 2014-15 | I30: Actual 2015-16 | J30: Actual 2016-17
B31: CPI (t) | C31: ='State Water data inputs'!C11 -> 0.02734375 | D31: ='State Water data inputs'!D11 -> 0.02756653992 | E31: ='State Water data inputs'!E11 -> 0.02312673451 | G31: CPI (t) | H31: =C31 -> 0.02734375 | I31: =D31 -> 0.02756653992 | J31: 0.02312673451
B32: Real Pre Tax WACC | C32: ='ACCC data inputs'!B58 -> 0.04816058537 | D32: ='ACCC data inputs'!C58 -> 0.04816058537 | E32: ='ACCC data inputs'!D58 -> 0.04816058537 | G32: Real Pre Tax WACC | H32: =C32 -> 0.04816058537 | I32: 0.04816058537 | J32: 0.04816058537
B33: Nominal Pre Tax WACC | C33: =(1+C31)*(1+C32)-1 -> 0.07682122637 | D33: =(1+D31)*(1+D32)-1 -> 0.07705474599 | E33: 0.07240111694 | G33: Nominal Pre Tax WACC | H33: =(1+H31)*(1+H32)-1 -> 0.07682122637 | I33: =(1+I31)*(1+I32)-1 -> 0.07705474599 | J33: =(1+J31)*(1+J32)-1 -> 0.07240111694
B36: RAB UOM | C36: Actual 2014-15 | D36: Actual 2015-16 | E36: Actual 2016-17 | H36: Actual 2014-15 | I36: Actual 2015-16 | J36: Actual 2016-17
B37: Opening balance | C37: 0 | D37: =C40 -> 0 | E37: =D40 -> 2113966.221
B38: UOM (t-1) | C38: =C15 -> 0 | D38: =D15 -> 2113966.221 | E38: =E15 -> -479629.399 | G38: UOM (t-1) | H38: =H15 -> 0 | I38: =I15 -> 155500.2508 | J38: =J15 -> -190499.4685
B39: UOM (t-2) | C39: 0 | D39: =D21*(1+C$33) -> 0 | E39: =E21*(1+D$33) -> -34206.39126 | G39: UOM (t-2) | H39: 0 | I39: =I27*(1+H$33) -> 0 | J39: =J27*(1+I$33) -> -2510.299172
B40: Closing balance | C40: =SUM(C37:C39) -> 0 | D40: =SUM(D37:D39) -> 2113966.221 | E40: 1600130.43 | G40: Rev UOM(t-1) | H40: 0 | I40: =H42 -> 0 | J40: =I42 -> 167482.2831
B42: Rev UOM (t) | C42: =C40*C$33 -> 0 | D42: =D40*D$33 -> 162891.1302 | E42: =E40*E$33 -> 115851.2304 | G42: Rev UOM (t) | H42: =SUM(H38:H40)*(1+H$33) -> 0 | I42: =SUM(I38:I40)*(1+I$33) -> 167482.2831 | J42: =SUM(J38:J40)*(1+J$33) -> -27375.70301
B46: Revenue Requirement | C46: 2014-15 | D46: 2015-16 | E46: 2016-17 | G46: Maximum pass through revenue | H46: 2014-15 | I46: 2015-16 | J46: 2016-17
B47: Revenue Requirement | C47: =(C7-C42) -> 7046434.957 | D47: =(D7-D42) -> 7267964.794 | E47: =(E7-E42) -> 7686539.824 | G47: Maximum MDBA / BCR Revenue | H47: =(H7-H42) -> 517781.25 | I47: =(I7-I42) -> 350225.7169 | J47: =(J7-J42) -> 545133.703
B52: Forecast Tariff Revenue | C52: 2014-15 | D52: 2015-16 | E52: 2016-17 | G52: Forecast Tariff Revenue | H52: 2014-15 | I52: 2015-16 | J52: 2016-17
B53: Revenue Requirement | C53: =C47 -> 7046434.957 | D53: =D47 -> 7267964.794 | E53: 7686539.824 | G53: Maximum MDBA / BCR Revenue | H53: =H47 -> 517781.25 | I53: =I47 -> 350225.7169 | J53: =J47 -> 545133.703
B54: Target Variable / Fixed ratio (%) | C54: ='ACCC data inputs'!B49 -> 0.6 | D54: ='ACCC data inputs'!C49 -> 0.6 | E54: ='ACCC data inputs'!D49 -> 0.6 | G54: Target Variable / Fixed ratio (%) | H54: =C54 -> 0.6 | I54: 0.6 | J54: 0.6
B55: Variable Charge Revenue | C55: =C53*C54 -> 4227860.974 | D55: =D53*D54 -> 4360778.877 | E55: =E53*E54 -> 4611923.894 | G55: Variable Charge Revenue | H55: =H53*H54 -> 310668.75 | I55: =I53*I54 -> 210135.4302 | J55: =J53*J54 -> 327080.2218
B57: Water sharing plan ratio (WSP) | C57: ='ACCC data inputs'!$B$43 -> 1.88 | D57: ='ACCC data inputs'!$B$43 -> 1.88 | E57: ='ACCC data inputs'!$B$43 -> 1.88 | G57: Water sharing plan ratio (WSP) | H57: =C57 -> 1.88 | I57: 1.88 | J57: 1.88
B58: Average Water Allocation (AWA) | C58: ='State Water data inputs'!L$77 -> 1.960784314 | D58: ='State Water data inputs'!M$77 -> 1.913875598 | E58: ='State Water data inputs'!N$77 -> 1.793721973 | G58: Average Water Allocation (AWA) | H58: 1.960784314 | I58: 1.913875598 | J58: 1.793721973
B59: High security premium (times) | C59: =C57*C58 -> 3.68627451 | D59: =D57*D58 -> 3.598086124 | E59: =E57*E58 -> 3.372197309 | G59: High security premium (times) | H59: 3.68627451 | I59: 3.598086124 | J59: 3.372197309
B61: Forecast sales quantities | C61: =C$52 -> 2014-15 | D61: =D$52 -> 2015-16 | E61: 2016-17 | G61: Forecast sales quantities | H61: =H$52 -> 2014-15 | I61: =I$52 -> 2015-16 | J61: =J$52 -> 2016-17
B62: High Security Entitlement (ML) | C62: ='State Water data inputs'!B$49 -> 42606 | D62: ='State Water data inputs'!C$49 -> 42604 | E62: ='State Water data inputs'!D$49 -> 42605 | G62: High Security Entitlement (ML) | H62: =C62 -> 42606 | I62: 42604 | J62: 42605
B63: General Security Entitlement (ML) | C63: ='State Water data inputs'!B$35 -> 631716 | D63: ='State Water data inputs'!C$35 -> 631713 | E63: ='State Water data inputs'!D$35 -> 631715 | G63: General Security Entitlement (ML) | H63: 631716 | I63: 631713 | J63: 631715
B64: Water volumes (ML) | C64: ='State Water data inputs'!B$62 -> 279670.6685 | D64: ='State Water data inputs'!C$62 -> 280699.9013 | E64: ='State Water data inputs'!D$62 -> 293219.3314 | G64: Water volumes (ML) | H64: 279670.6685 | I64: 280699.9013 | J64: 293219.3314
B66: Tariffs ($ Nominal) | C66: =C$52 -> 2014-15 | D66: =D$52 -> 2015-16 | E66: 2016-17 | G66: Tariffs ($ Nominal) | H66: =H$52 -> 2014-15 | I66: =I$52 -> 2015-16 | J66: =J$52 -> 2016-17
B67: High Security Entitlement ($/ML) | C67: =C68*C59 -> 13.17239815 | D67: =D68*D59 -> 13.3251302 | E67: 13.37165226 | G67: High Security Entitlement ($/ML) | H67: =H68*H59 -> 0.9679250315 | I67: =I68*I59 -> 0.642105928 | J67: =J68*J59 -> 0.9483250562
B68: General Security Entitlement ($/ML) | C68: =(C53-C55)/(C63+C62*C59) -> 3.573363327 | D68: =(D53-D55)/(D63+D62*D59) -> 3.7033939 | E68: =(E53-E55)/(E63+E62*E59) -> 3.965263901 | G68: General Security Entitlement ($/ML) | H68: =(H53-H55)/(H63+H62*H59) -> 0.2625754075 | I68: =(I53-I55)/(I63+I62*I59) -> 0.1784576316 | J68: =(J53-J55)/(J63+J62*J59) -> 0.2812187334
B69: Usage ($/ML delivered) | C69: =C55/C64 -> 15.11728419 | D69: =D55/D64 -> 15.53537731 | E69: 15.72858062 | G69: Usage ($/ML delivered) | H69: =H55/H64 -> 1.1108378 | I69: =I55/I64 -> 0.7486124121 | J69: =J55/J64 -> 1.115479734
B71: Tariffs Revenue ($'000 Nominal) | C71: =C$52 -> 2014-15 | D71: =D$52 -> 2015-16 | E71: 2016-17 | G71: Tariffs Revenue ($'000 Nominal) | H71: =H$52 -> 2014-15 | I71: =I$52 -> 2015-16 | J71: =J$52 -> 2016-17
B72: High Security Entitlement | C72: =C62*C67 -> 561223.1954 | D72: =D62*D67 -> 567703.8472 | E72: 569699.2444 | G72: High Security Entitlement | H72: =H62*H67 -> 41239.41389 | I72: 27356.28095 | J72: 40403.38902
B73: General Security Entitlement | C73: =C63*C68 -> 2257350.787 | D73: 2339482.071 | E73: 2504916.685 | G73: General Security Entitlement | H73: 165873.0861 | I73: 112734.0058 | J73: 177650.0922
B74: Usage | C74: =C64*C69 -> 4227860.974 | D74: 4360778.877 | E74: 4611923.894 | G74: Usage | H74: 310668.75 | I74: 210135.4302 | J74: 327080.2218
C75: =SUM(C72:C74) -> 7046434.957 | D75: =SUM(D72:D74) -> 7267964.794 | E75: 7686539.824 | H75: =SUM(H72:H74) -> 517781.25 | I75: =SUM(I72:I74) -> 350225.7169 | J75: =SUM(J72:J74) -> 545133.703
B76: Check | C76: =ABS(C75-C53) -> 0 | D76: =ABS(D75-D53) -> 0 | E76: =ABS(E75-E53) -> 0 | G76: Check | H76: =ABS(H75-H53) -> 0 | I76: =ABS(I75-I53) -> 0 | J76: =ABS(J75-J53) -> 0
B79: Estimated Tariff Revenue | G79: Estimated Tariff Revenue
B80: Estimated sales quantities | C80: =C$52 -> 2014-15 | D80: =D$52 -> 2015-16 | E80: 2016-17 | G80: Estimated sales quantities | H80: =H$52 -> 2014-15 | I80: =I$52 -> 2015-16 | J80: =J$52 -> 2016-17
B81: High Security Entitlement (ML) | C81: ='State Water data inputs'!F$49 -> 42606 | D81: ='State Water data inputs'!G$49 -> 42606 | E81: ='State Water data inputs'!H$49 -> 42606 | G81: High Security Entitlement (ML) | H81: =C81 -> 42606 | I81: 42606 | J81: 42606
B82: General Security Entitlement (ML) | C82: ='State Water data inputs'!F$35 -> 631726 | D82: ='State Water data inputs'!G$35 -> 631721 | E82: ='State Water data inputs'!H$35 -> 631728 | G82: General Security Entitlement (ML) | H82: 631726 | I82: 631721 | J82: 631728
B83: Water volumes (ML) | C83: ='State Water data inputs'!F$62 -> 419506.0028 | D83: ='State Water data inputs'!G$62 -> 249822.9121 | E83: ='State Water data inputs'!H$62 -> 322541.2645 | G83: Water volumes (ML) | H83: 419506.0028 | I83: 249822.9121 | J83: 322541.2645
B85: Tariffs Revenue ($'000 Nominal) | C85: =C$52 -> 2014-15 | D85: =D$52 -> 2015-16 | E85: 2016-17 | G85: Tariffs Revenue ($'000 Nominal) | H85: =H$52 -> 2014-15 | I85: =I$52 -> 2015-16 | J85: =J$52 -> 2016-17
B86: High Security Entitlement | C86: =C81*C67 -> 561223.1954 | D86: 567730.4974 | E86: 569712.6161 | G86: High Security Entitlement | H86: =H81*H67 -> 41239.41389 | I86: 27357.56517 | J86: 40404.33735
B87: General Security Entitlement | C87: 2257386.521 | D87: 2339511.698 | E87: 2504968.234 | G87: General Security Entitlement | H87: 165875.7119 | I87: 112735.4335 | J87: 177653.748
B88: Usage | C88: 6341791.461 | D88: 3881093.2 | E88: 5073116.284 | G88: Usage | H88: 466003.125 | I88: 187020.5328 | J88: 359788.244
C89: =SUM(C86:C88) -> 9160401.177 | D89: =SUM(D86:D88) -> 6788335.395 | E89: 8147797.133 | H89: =SUM(H86:H88) -> 673118.2508 | I89: =SUM(I86:I88) -> 327113.5315 | J89: =SUM(J86:J88) -> 577846.3294
B92: Actual Tariff Revenue | G92: Actual Tariff Revenue
B93: Actual sales quantities | C93: =C$52 -> 2014-15 | D93: =D$52 -> 2015-16 | E93: 2016-17 | G93: Actual sales quantities | H93: =H$52 -> 2014-15 | I93: =I$52 -> 2015-16 | J93: =J$52 -> 2016-17
B94: High Security Entitlement (ML) | C94: ='State Water data inputs'!K$49 -> 42603 | D94: ='State Water data inputs'!L$49 -> 42602 | E94: ='State Water data inputs'!M$49 -> 42598 | G94: High Security Entitlement (ML) | H94: =C94 -> 42603 | I94: 42602 | J94: 42598
B95: General Security Entitlement (ML) | C95: ='State Water data inputs'!K$35 -> 631723 | D95: ='State Water data inputs'!L$35 -> 631722 | E95: ='State Water data inputs'!M$35 -> 631718 | G95: General Security Entitlement (ML) | H95: 631723 | I95: 631722 | J95: 631718
B96: Water volumes (ML) | C96: ='State Water data inputs'!K$62 -> 417408.4727 | D96: ='State Water data inputs'!L$62 -> 251072.0267 | E96: ='State Water data inputs'!M$62 -> 355021.1699 | G96: Water volumes (ML) | H96: 417408.4727 | I96: 251072.0267 | J96: 355021.1699
B98: Tariffs Revenue ($'000 Nominal) | C98: =C$52 -> 2014-15 | D98: =D$52 -> 2015-16 | E98: =E$52 -> 2016-17 | G98: Tariffs Revenue ($'000 Nominal) | H98: =H$52 -> 2014-15 | I98: =I$52 -> 2015-16 | J98: =J$52 -> 2016-17
B99: High Security Entitlement | C99: =C94*C67 -> 561183.6782 | D99: 567677.1969 | E99: 569605.6429 | G99: High Security Entitlement | H99: =H94*H67 -> 41236.51012 | I99: 27354.99674 | J99: 40396.75074
B100: General Security Entitlement | C100: 2257375.801 | D100: 2339515.401 | E100: 2504928.581 | G100: General Security Entitlement | H100: 165874.9241 | I100: 112735.6119 | J100: 177650.9358
B101: Usage | C101: 6310082.504 | D101: 3900498.666 | E101: 5583979.093 | G101: Usage | H101: 463673.1094 | I101: 187955.6355 | J101: 396018.9202
C102: =SUM(C99:C101) -> 9128641.983 | D102: =SUM(D99:D101) -> 6807691.264 | E102: 8658513.317 | H102: =SUM(H99:H101) -> 670784.5436 | I102: =SUM(I99:I101) -> 328046.2442 | J102: =SUM(J99:J101) -> 614066.6067

Sheet Murray
B1: Murray | C1: Check | D1: =IF(E1>0.001,"Error","Ok") -> Ok | E1: =SUM(C76:E76,H76:J76) -> 9.313225746e-10
B3: State Water Costs Tariffs | C3: 2014-15 | D3: 2015-16 | E3: 2016-17 | G3: MDBA / BCR Tariffs | H3: 2014-15 | I3: 2015-16 | J3: 2016-17
B6: Benchmark Revenue (Rev BBM) | C6: Forecast 2014-15 | D6: Forecast 2015-16 | E6: Forecast 2016-17 | G6: MDBA / BCR costs | H6: Forecast 2014-15 | I6: Forecast 2015-16 | J6: Forecast 2016-17
B7: Benchmark Revenue (Rev BBM) | C7: ='ACCC data inputs'!B$31*(1+C$31) -> 6488904.432 | D7: ='ACCC data inputs'!C$31*(1+C$31)*(1+D$31) -> 6536440.186 | E7: ='ACCC data inputs'!D$31*(1+C$31)*(1+D$31)*(1+E$31) -> 6555875.292 | G7: MDBA / BCR costs | H7: ='State Water data inputs'!B$23 -> 518808.5938 | I7: ='State Water data inputs'!C$23 -> 518735 | J7: ='State Water data inputs'!D$23 -> 518785
B11: Unders/Overs Adjustment | G11: Unders/Overs Adjustment
B12: Calc. of UOM (t-1) | C12: Estimated 2013-14 | D12: Estimated 2014-15 | E12: Estimated 2015-16 | G12: Calc. of UOM (t-1) | H12: Estimated 2013-14 | I12: Estimated 2014-15 | J12: Estimated 2015-16
B13: Revenue Requirement | C13: 0 | D13: =C47 -> 6488904.432 | E13: =D47 -> 6386439.133 | G13: Esimated MDBA / BCR costs | H13: 0 | I13: ='State Water data inputs'!F$23 -> 518645 | J13: ='State Water data inputs'!G$23 -> 518640
B14: Estimated Tarriff Revenue | C14: 0 | D14: =C89 -> 8435585.993 | E14: =D89 -> 5964945.78 | G14: Estimated MDBA / BCR revenue | H14: 0 | I14: =H89 -> 674451.9899 | J14: =I89 -> 327762.1065
B15: Difference | C15: =C14-C13 -> 0 | D15: =D14-D13 -> 1946681.561 | E15: =E14-E13 -> -421493.353 | G15: Difference | H15: =H14-H13 -> 0 | I15: =I14-I13 -> 155806.9899 | J15: =J14-J13 -> -190877.8935
B18: Calc. of UOM (t-2) | C18: Actual 2012-13 | D18: Actual 2013-14 | E18: Actual 2014-15 | G18: Calc. of UOM (t-2) | H18: Actual 2012-13 | I18: Actual 2013-14 | J18: Actual 2014-15
B19: Estimated Tarriff Revenue | C19: 0 | D19: =C14 -> 0 | E19: =D14 -> 8435585.993 | G19: Actual MDBA / BCR costs | H19: 0 | I19: 0 | J19: ='State Water data inputs'!K$23 -> 518642
B20: Actual Tarriff Revenue | C20: 0 | D20: 0 | E20: =C102 -> 8406377.44 | G20: Actual MDBA / BCR revenue | H20: 0 | I20: 0 | J20: =H102 -> 672116.6729
B21: Difference | C21: =C20-C19 -> 0 | D21: =D20-D19 -> 0 | E21: =E20-E19 -> -29208.55333 | G21: Difference | H21: =H20-H19 -> 0 | I21: =I20-I19 -> 0 | J21: =J20-J19 -> 153474.6729
H24: Act - Est 2012-13 | I24: Act - Est 2013-14 | J24: Act - Est 2014-15
G25: MDBA / BCR costs | H25: 0 | I25: =I19-H13 -> 0 | J25: =J19-I13 -> -3
G26: MDBA / BCR revenue | H26: 0 | I26: =I20-H14 -> 0 | J26: =J20-I14 -> -2335.316946
G27: Difference | H27: =H26-H25 -> 0 | I27: =I26-I25 -> 0 | J27: =J26-J25 -> -2332.316946
B30: WACC | C30: Actual 2014-15 | D30: Actual 2015-16 | E30: Actual 2016-17 | G30: WACC | H30: Actual 2014-15 | I30: Actual 2015-16 | J30: Actual 2016-17
B31: CPI (t) | C31: ='State Water data inputs'!C11 -> 0.02734375 | D31: ='State Water data inputs'!D11 -> 0.02756653992 | E31: ='State Water data inputs'!E11 -> 0.02312673451 | G31: CPI (t) | H31: =C31 -> 0.02734375 | I31: =D31 -> 0.02756653992 | J31: 0.02312673451
B32: Real Pre Tax WACC | C32: ='ACCC data inputs'!B58 -> 0.04816058537 | D32: ='ACCC data inputs'!C58 -> 0.04816058537 | E32: ='ACCC data inputs'!D58 -> 0.04816058537 | G32: Real Pre Tax WACC | H32: =C32 -> 0.04816058537 | I32: 0.04816058537 | J32: 0.04816058537
B33: Nominal Pre Tax WACC | C33: =(1+C31)*(1+C32)-1 -> 0.07682122637 | D33: =(1+D31)*(1+D32)-1 -> 0.07705474599 | E33: 0.07240111694 | G33: Nominal Pre Tax WACC | H33: =(1+H31)*(1+H32)-1 -> 0.07682122637 | I33: =(1+I31)*(1+I32)-1 -> 0.07705474599 | J33: =(1+J31)*(1+J32)-1 -> 0.07240111694
B36: RAB UOM | C36: Actual 2014-15 | D36: Actual 2015-16 | E36: Actual 2016-17 | H36: Actual 2014-15 | I36: Actual 2015-16 | J36: Actual 2016-17
B37: Opening balance | C37: 0 | D37: =C40 -> 0 | E37: =D40 -> 1946681.561
B38: UOM (t-1) | C38: =C15 -> 0 | D38: =D15 -> 1946681.561 | E38: =E15 -> -421493.353 | G38: UOM (t-1) | H38: =H15 -> 0 | I38: =I15 -> 155806.9899 | J38: =J15 -> -190877.8935
B39: UOM (t-2) | C39: 0 | D39: =D21*(1+C$33) -> 0 | E39: =E21*(1+D$33) -> -31459.21099 | G39: UOM (t-2) | H39: 0 | I39: =I27*(1+H$33) -> 0 | J39: =J27*(1+I$33) -> -2512.033035
B40: Closing balance | C40: =SUM(C37:C39) -> 0 | D40: =SUM(D37:D39) -> 1946681.561 | E40: 1493728.997 | G40: Rev UOM(t-1) | H40: 0 | I40: =H42 -> 0 | J40: =I42 -> 167812.6579
B42: Rev UOM (t) | C42: =C40*C$33 -> 0 | D42: =D40*D$33 -> 150001.0532 | E42: =E40*E$33 -> 108147.6478 | G42: Rev UOM (t) | H42: =SUM(H38:H40)*(1+H$33) -> 0 | I42: =SUM(I38:I40)*(1+I$33) -> 167812.6579 | J42: =SUM(J38:J40)*(1+J$33) -> -27429.09139
B46: Revenue Requirement | C46: 2014-15 | D46: 2015-16 | E46: 2016-17 | G46: Maximum pass through revenue | H46: 2014-15 | I46: 2015-16 | J46: 2016-17
B47: Revenue Requirement | C47: =(C7-C42) -> 6488904.432 | D47: =(D7-D42) -> 6386439.133 | E47: =(E7-E42) -> 6447727.644 | G47: Maximum MDBA / BCR Revenue | H47: =(H7-H42) -> 518808.5938 | I47: =(I7-I42) -> 350922.3421 | J47: =(J7-J42) -> 546214.0914
B52: Forecast Tariff Revenue | C52: 2014-15 | D52: 2015-16 | E52: 2016-17 | G52: Forecast Tariff Revenue | H52: 2014-15 | I52: 2015-16 | J52: 2016-17
B53: Revenue Requirement | C53: =C47 -> 6488904.432 | D53: =D47 -> 6386439.133 | E53: 6447727.644 | G53: Maximum MDBA / BCR Revenue | H53: =H47 -> 518808.5938 | I53: =I47 -> 350922.3421 | J53: =J47 -> 546214.0914
B54: Target Variable / Fixed ratio (%) | C54: ='ACCC data inputs'!B49 -> 0.6 | D54: ='ACCC data inputs'!C49 -> 0.6 | E54: ='ACCC data inputs'!D49 -> 0.6 | G54: Target Variable / Fixed ratio (%) | H54: =C54 -> 0.6 | I54: 0.6 | J54: 0.6
B55: Variable Charge Revenue | C55: =C53*C54 -> 3893342.659 | D55: =D53*D54 -> 3831863.48 | E55: =E53*E54 -> 3868636.586 | G55: Variable Charge Revenue | H55: =H53*H54 -> 311285.1562 | I55: =I53*I54 -> 210553.4052 | J55: =J53*J54 -> 327728.4548
B57: Water sharing plan ratio (WSP) | C57: ='ACCC data inputs'!$B$44 -> 1.25 | D57: ='ACCC data inputs'!$B$44 -> 1.25 | E57: ='ACCC data inputs'!$B$44 -> 1.25 | G57: Water sharing plan ratio (WSP) | H57: =C57 -> 1.25 | I57: 1.25 | J57: 1.25
B58: Average Water Allocation (AWA) | C58: ='State Water data inputs'!L$78 -> 1.411111111 | D58: ='State Water data inputs'!M$78 -> 1.432330827 | E58: ='State Water data inputs'!N$78 -> 1.426966292 | G58: Average Water Allocation (AWA) | H58: 1.411111111 | I58: 1.432330827 | J58: 1.426966292
B59: High security premium (times) | C59: =C57*C58 -> 1.763888889 | D59: =D57*D58 -> 1.790413534 | E59: =E57*E58 -> 1.783707865 | G59: High security premium (times) | H59: 1.763888889 | I59: 1.790413534 | J59: 1.783707865
B61: Forecast sales quantities | C61: =C$52 -> 2014-15 | D61: =D$52 -> 2015-16 | E61: 2016-17 | G61: Forecast sales quantities | H61: =H$52 -> 2014-15 | I61: =I$52 -> 2015-16 | J61: =J$52 -> 2016-17
B62: High Security Entitlement (ML) | C62: ='State Water data inputs'!B$50 -> 261400.7 | D62: ='State Water data inputs'!C$50 -> 261398.7 | E62: ='State Water data inputs'!D$50 -> 261399.7 | G62: High Security Entitlement (ML) | H62: =C62 -> 261400.7 | I62: 261398.7 | J62: 261399.7
B63: General Security Entitlement (ML) | C63: ='State Water data inputs'!B$36 -> 2075822 | D63: ='State Water data inputs'!C$36 -> 2075819 | E63: ='State Water data inputs'!D$36 -> 2075821 | G63: General Security Entitlement (ML) | H63: 2075822 | I63: 2075819 | J63: 2075821
B64: Water volumes (ML) | C64: ='State Water data inputs'!B$63 -> 1459688.934 | D64: ='State Water data inputs'!C$63 -> 1463341.22 | E64: ='State Water data inputs'!D$63 -> 1465477.957 | G64: Water volumes (ML) | H64: 1459688.934 | I64: 1463341.22 | J64: 1465477.957
B66: Tariffs ($ Nominal) | C66: =C$52 -> 2014-15 | D66: =D$52 -> 2015-16 | E66: 2016-17 | G66: Tariffs ($ Nominal) | H66: =H$52 -> 2014-15 | I66: =I$52 -> 2015-16 | J66: =J$52 -> 2016-17
B67: High Security Entitlement ($/ML) | C67: =C68*C59 -> 1.804673314 | D67: =D68*D59 -> 1.797976059 | E67: 1.809676299 | G67: High Security Entitlement ($/ML) | H67: =H68*H59 -> 0.1442893842 | I67: =I68*I59 -> 0.09879526861 | J67: =J68*J59 -> 0.1533052806
B68: General Security Entitlement ($/ML) | C68: =(C53-C55)/(C63+C62*C59) -> 1.023121879 | D68: =(D53-D55)/(D63+D62*D59) -> 1.004223898 | E68: =(E53-E55)/(E63+E62*E59) -> 1.014558681 | G68: General Security Entitlement ($/ML) | H68: =(H53-H55)/(H63+H62*H59) -> 0.08180185559 | I68: =(I53-I55)/(I63+I62*I59) -> 0.05518013953 | J68: =(J53-J55)/(J63+J62*J59) -> 0.08594752737
B69: Usage ($/ML delivered) | C69: =C55/C64 -> 2.667241334 | D69: =D55/D64 -> 2.618571409 | E69: 2.639846317 | G69: Usage ($/ML delivered) | H69: =H55/H64 -> 0.2132544469 | I69: =I55/I64 -> 0.1438853785 | J69: =J55/J64 -> 0.2236324698
B71: Tariffs Revenue ($'000 Nominal) | C71: =C$52 -> 2014-15 | D71: =D$52 -> 2015-16 | E71: 2016-17 | G71: Tariffs Revenue ($'000 Nominal) | H71: =H$52 -> 2014-15 | I71: =I$52 -> 2015-16 | J71: =J$52 -> 2016-17
B72: High Security Entitlement | C72: =C62*C67 -> 471742.8677 | D72: =D62*D67 -> 469988.6044 | E72: 473048.8417 | G72: High Security Entitlement | H72: =H62*H67 -> 37717.34602 | I72: 25824.95478 | J72: 40073.95435
B73: General Security Entitlement | C73: =C63*C68 -> 2123818.905 | D73: 2084587.049 | E73: 2106042.216 | G73: General Security Entitlement | H73: 169806.0915 | I73: 114543.9821 | J73: 178411.6822
B74: Usage | C74: =C64*C69 -> 3893342.659 | D74: 3831863.48 | E74: 3868636.586 | G74: Usage | H74: 311285.1562 | I74: 210553.4052 | J74: 327728.4548
C75: =SUM(C72:C74) -> 6488904.432 | D75: =SUM(D72:D74) -> 6386439.133 | E75: 6447727.644 | H75: =SUM(H72:H74) -> 518808.5938 | I75: =SUM(I72:I74) -> 350922.3421 | J75: =SUM(J72:J74) -> 546214.0914
B76: Check | C76: =ABS(C75-C53) -> 9.313225746e-10 | D76: =ABS(D75-D53) -> 0 | E76: =ABS(E75-E53) -> 0 | G76: Check | H76: =ABS(H75-H53) -> 0 | I76: =ABS(I75-I53) -> 0 | J76: =ABS(J75-J53) -> 0
B79: Estimated Tariff Revenue | G79: Estimated Tariff Revenue
B80: Estimated sales quantities | C80: =C$52 -> 2014-15 | D80: =D$52 -> 2015-16 | E80: 2016-17 | G80: Estimated sales quantities | H80: =H$52 -> 2014-15 | I80: =I$52 -> 2015-16 | J80: =J$52 -> 2016-17
B81: High Security Entitlement (ML) | C81: ='State Water data inputs'!F$50 -> 261400.7 | D81: ='State Water data inputs'!G$50 -> 261400.7 | E81: ='State Water data inputs'!H$50 -> 261400.7 | G81: High Security Entitlement (ML) | H81: =C81 -> 261400.7 | I81: 261400.7 | J81: 261400.7
B82: General Security Entitlement (ML) | C82: ='State Water data inputs'!F$36 -> 2075832 | D82: ='State Water data inputs'!G$36 -> 2075827 | E82: ='State Water data inputs'!H$36 -> 2075834 | G82: General Security Entitlement (ML) | H82: 2075832 | I82: 2075827 | J82: 2075834
B83: Water volumes (ML) | C83: ='State Water data inputs'!F$63 -> 2189533.401 | D83: ='State Water data inputs'!G$63 -> 1302373.686 | E83: ='State Water data inputs'!H$63 -> 1612025.752 | G83: Water volumes (ML) | H83: 2189533.401 | I83: 1302373.686 | J83: 1612025.752
B85: Tariffs Revenue ($'000 Nominal) | C85: =C$52 -> 2014-15 | D85: =D$52 -> 2015-16 | E85: 2016-17 | G85: Tariffs Revenue ($'000 Nominal) | H85: =H$52 -> 2014-15 | I85: =I$52 -> 2015-16 | J85: =J$52 -> 2016-17
B86: High Security Entitlement | C86: =C81*C67 -> 471742.8677 | D86: 469992.2004 | E86: 473050.6514 | G86: High Security Entitlement | H86: =H81*H67 -> 37717.34602 | I86: 25825.15237 | J86: 40074.10765
B87: General Security Entitlement | C87: 2123829.136 | D87: 2084595.083 | E87: 2106055.405 | G87: General Security Entitlement | H87: 169806.9095 | I87: 114544.4235 | J87: 178412.7995
B88: Usage | C88: 5840013.989 | D88: 3410358.497 | E88: 4255500.245 | G88: Usage | H88: 466927.7344 | I88: 187392.5307 | J88: 360501.3003
C89: =SUM(C86:C88) -> 8435585.993 | D89: =SUM(D86:D88) -> 5964945.78 | E89: 6834606.301 | H89: =SUM(H86:H88) -> 674451.9899 | I89: =SUM(I86:I88) -> 327762.1065 | J89: =SUM(J86:J88) -> 578988.2075
B92: Actual Tariff Revenue | G92: Actual Tariff Revenue
B93: Actual sales quantities | C93: =C$52 -> 2014-15 | D93: =D$52 -> 2015-16 | E93: 2016-17 | G93: Actual sales quantities | H93: =H$52 -> 2014-15 | I93: =I$52 -> 2015-16 | J93: =J$52 -> 2016-17
B94: High Security Entitlement (ML) | C94: ='State Water data inputs'!K$50 -> 261397.7 | D94: ='State Water data inputs'!L$50 -> 261396.7 | E94: ='State Water data inputs'!M$50 -> 261392.7 | G94: High Security Entitlement (ML) | H94: =C94 -> 261397.7 | I94: 261396.7 | J94: 261392.7
B95: General Security Entitlement (ML) | C95: ='State Water data inputs'!K$36 -> 2075829 | D95: ='State Water data inputs'!L$36 -> 2075828 | E95: ='State Water data inputs'!M$36 -> 2075824 | G95: General Security Entitlement (ML) | H95: 2075829 | I95: 2075828 | J95: 2075824
B96: Water volumes (ML) | C96: ='State Water data inputs'!K$63 -> 2178585.734 | D96: ='State Water data inputs'!L$63 -> 1308885.554 | E96: ='State Water data inputs'!M$63 -> 1774356.746 | G96: Water volumes (ML) | H96: 2178585.734 | I96: 1308885.554 | J96: 1774356.746
B98: Tariffs Revenue ($'000 Nominal) | C98: =C$52 -> 2014-15 | D98: =D$52 -> 2015-16 | E98: =E$52 -> 2016-17 | G98: Tariffs Revenue ($'000 Nominal) | H98: =H$52 -> 2014-15 | I98: =I$52 -> 2015-16 | J98: =J$52 -> 2016-17
B99: High Security Entitlement | C99: =C94*C67 -> 471737.4536 | D99: 469985.0085 | E99: 473036.1739 | G99: High Security Entitlement | H99: =H94*H67 -> 37716.91316 | I99: 25824.75719 | J99: 40072.88121
B100: General Security Entitlement | C100: 2123826.067 | D100: 2084596.087 | E100: 2106045.26 | G100: General Security Entitlement | H100: 169806.6641 | I100: 114544.4787 | J100: 178411.9401
B101: Usage | C101: 5810813.919 | D101: 3427410.289 | E101: 4684029.12 | G101: Usage | H101: 464593.0957 | I101: 188329.4933 | J101: 396803.7813
C102: =SUM(C99:C101) -> 8406377.44 | D102: =SUM(D99:D101) -> 5981991.385 | E102: 7263110.553 | H102: =SUM(H99:H101) -> 672116.6729 | I102: =SUM(I99:I101) -> 328698.7292 | J102: =SUM(J99:J101) -> 615288.6025

Sheet Murrumbidgee
B1: Murrumbidgee | C1: Check | D1: =IF(E1>0.001,"Error","Ok") -> Ok | E1: =SUM(C76:E76,H76:J76) -> 0
B3: State Water Costs Tariffs | C3: 2014-15 | D3: 2015-16 | E3: 2016-17 | G3: MDBA / BCR Tariffs | H3: 2014-15 | I3: 2015-16 | J3: 2016-17
B6: Benchmark Revenue (Rev BBM) | C6: Forecast 2014-15 | D6: Forecast 2015-16 | E6: Forecast 2016-17 | G6: MDBA / BCR costs | H6: Forecast 2014-15 | I6: Forecast 2015-16 | J6: Forecast 2016-17
B7: Benchmark Revenue (Rev BBM) | C7: ='ACCC data inputs'!B$32*(1+C$31) -> 10173386.33 | D7: ='ACCC data inputs'!C$32*(1+C$31)*(1+D$31) -> 10423026.8 | E7: ='ACCC data inputs'!D$32*(1+C$31)*(1+D$31)*(1+E$31) -> 10632653.24 | G7: MDBA / BCR costs | H7: ='State Water data inputs'!B$24 -> 519835.9375 | I7: ='State Water data inputs'!C$24 -> 519762 | J7: ='State Water data inputs'!D$24 -> 519812
B11: Unders/Overs Adjustment | G11: Unders/Overs Adjustment
B12: Calc. of UOM (t-1) | C12: Estimated 2013-14 | D12: Estimated 2014-15 | E12: Estimated 2015-16 | G12: Calc. of UOM (t-1) | H12: Estimated 2013-14 | I12: Estimated 2014-15 | J12: Estimated 2015-16
B13: Revenue Requirement | C13: 0 | D13: =C47 -> 10173386.33 | E13: =D47 -> 10182507.91 | G13: Esimated MDBA / BCR costs | H13: 0 | I13: ='State Water data inputs'!F$24 -> 519672 | J13: ='State Water data inputs'!G$24 -> 519667
B14: Estimated Tarriff Revenue | C14: 0 | D14: =C89 -> 13294788.94 | E14: =D89 -> 9614386.273 | G14: Estimated MDBA / BCR revenue | H14: 0 | I14: =H89 -> 679332.2152 | J14: =I89 -> 328394.1397
B15: Difference | C15: =C14-C13 -> 0 | D15: =D14-D13 -> 3121402.608 | E15: =E14-E13 -> -568121.6413 | G15: Difference | H15: =H14-H13 -> 0 | I15: =I14-I13 -> 159660.2152 | J15: =J14-J13 -> -191272.8603
B18: Calc. of UOM (t-2) | C18: Actual 2012-13 | D18: Actual 2013-14 | E18: Actual 2014-15 | G18: Calc. of UOM (t-2) | H18: Actual 2012-13 | I18: Actual 2013-14 | J18: Actual 2014-15
B19: Estimated Tarriff Revenue | C19: 0 | D19: =C14 -> 0 | E19: =D14 -> 13294788.94 | G19: Actual MDBA / BCR costs | H19: 0 | I19: 0 | J19: ='State Water data inputs'!K$24 -> 519669
B20: Actual Tarriff Revenue | C20: 0 | D20: 0 | E20: =C102 -> 13255933.78 | G20: Actual MDBA / BCR revenue | H20: 0 | I20: 0 | J20: =H102 -> 677346.8087
B21: Difference | C21: =C20-C19 -> 0 | D21: =D20-D19 -> 0 | E21: =E20-E19 -> -38855.15743 | G21: Difference | H21: =H20-H19 -> 0 | I21: =I20-I19 -> 0 | J21: =J20-J19 -> 157677.8087
H24: Act - Est 2012-13 | I24: Act - Est 2013-14 | J24: Act - Est 2014-15
G25: MDBA / BCR costs | H25: 0 | I25: =I19-H13 -> 0 | J25: =J19-I13 -> -3
G26: MDBA / BCR revenue | H26: 0 | I26: =I20-H14 -> 0 | J26: =J20-I14 -> -1985.406484
G27: Difference | H27: =H26-H25 -> 0 | I27: =I26-I25 -> 0 | J27: =J26-J25 -> -1982.406484
B30: WACC | C30: Actual 2014-15 | D30: Actual 2015-16 | E30: Actual 2016-17 | G30: WACC | H30: Actual 2014-15 | I30: Actual 2015-16 | J30: Actual 2016-17
B31: CPI (t) | C31: ='State Water data inputs'!C11 -> 0.02734375 | D31: ='State Water data inputs'!D11 -> 0.02756653992 | E31: ='State Water data inputs'!E11 -> 0.02312673451 | G31: CPI (t) | H31: =C31 -> 0.02734375 | I31: =D31 -> 0.02756653992 | J31: 0.02312673451
B32: Real Pre Tax WACC | C32: ='ACCC data inputs'!B58 -> 0.04816058537 | D32: ='ACCC data inputs'!C58 -> 0.04816058537 | E32: ='ACCC data inputs'!D58 -> 0.04816058537 | G32: Real Pre Tax WACC | H32: =C32 -> 0.04816058537 | I32: 0.04816058537 | J32: 0.04816058537
B33: Nominal Pre Tax WACC | C33: =(1+C31)*(1+C32)-1 -> 0.07682122637 | D33: =(1+D31)*(1+D32)-1 -> 0.07705474599 | E33: 0.07240111694 | G33: Nominal Pre Tax WACC | H33: =(1+H31)*(1+H32)-1 -> 0.07682122637 | I33: =(1+I31)*(1+I32)-1 -> 0.07705474599 | J33: =(1+J31)*(1+J32)-1 -> 0.07240111694
B36: RAB UOM | C36: Actual 2014-15 | D36: Actual 2015-16 | E36: Actual 2016-17 | H36: Actual 2014-15 | I36: Actual 2015-16 | J36: Actual 2016-17
B37: Opening balance | C37: 0 | D37: =C40 -> 0 | E37: =D40 -> 3121402.608
B38: UOM (t-1) | C38: =C15 -> 0 | D38: =D15 -> 3121402.608 | E38: =E15 -> -568121.6413 | G38: UOM (t-1) | H38: =H15 -> 0 | I38: =I15 -> 159660.2152 | J38: =J15 -> -191272.8603
B39: UOM (t-2) | C39: 0 | D39: =D21*(1+C$33) -> 0 | E39: =E21*(1+D$33) -> -41849.13172 | G39: UOM (t-2) | H39: 0 | I39: =I27*(1+H$33) -> 0 | J39: =J27*(1+I$33) -> -2135.160313
B40: Closing balance | C40: =SUM(C37:C39) -> 0 | D40: =SUM(D37:D39) -> 3121402.608 | E40: 2511431.834 | G40: Rev UOM(t-1) | H40: 0 | I40: =H42 -> 0 | J40: =I42 -> 171962.7925
B42: Rev UOM (t) | C42: =C40*C$33 -> 0 | D42: =D40*D$33 -> 240518.8851 | E42: =E40*E$33 -> 181830.4699 | G42: Rev UOM (t) | H42: =SUM(H38:H40)*(1+H$33) -> 0 | I42: =SUM(I38:I40)*(1+I$33) -> 171962.7925 | J42: =SUM(J38:J40)*(1+J$33) -> -22997.8866
B46: Revenue Requirement | C46: 2014-15 | D46: 2015-16 | E46: 2016-17 | G46: Maximum pass through revenue | H46: 2014-15 | I46: 2015-16 | J46: 2016-17
B47: Revenue Requirement | C47: =(C7-C42) -> 10173386.33 | D47: =(D7-D42) -> 10182507.91 | E47: =(E7-E42) -> 10450822.77 | G47: Maximum MDBA / BCR Revenue | H47: =(H7-H42) -> 519835.9375 | I47: =(I7-I42) -> 347799.2075 | J47: =(J7-J42) -> 542809.8866
B52: Forecast Tariff Revenue | C52: 2014-15 | D52: 2015-16 | E52: 2016-17 | G52: Forecast Tariff Revenue | H52: 2014-15 | I52: 2015-16 | J52: 2016-17
B53: Revenue Requirement | C53: =C47 -> 10173386.33 | D53: =D47 -> 10182507.91 | E53: 10450822.77 | G53: Maximum MDBA / BCR Revenue | H53: =H47 -> 519835.9375 | I53: =I47 -> 347799.2075 | J53: =J47 -> 542809.8866
B54: Target Variable / Fixed ratio (%) | C54: ='ACCC data inputs'!B49 -> 0.6 | D54: ='ACCC data inputs'!C49 -> 0.6 | E54: ='ACCC data inputs'!D49 -> 0.6 | G54: Target Variable / Fixed ratio (%) | H54: =C54 -> 0.6 | I54: 0.6 | J54: 0.6
B55: Variable Charge Revenue | C55: =C53*C54 -> 6104031.798 | D55: =D53*D54 -> 6109504.748 | E55: =E53*E54 -> 6270493.664 | G55: Variable Charge Revenue | H55: =H53*H54 -> 311901.5625 | I55: =I53*I54 -> 208679.5245 | J55: =J53*J54 -> 325685.932
B57: Water sharing plan ratio (WSP) | C57: ='ACCC data inputs'!$B$45 -> 1.63 | D57: ='ACCC data inputs'!$B$45 -> 1.63 | E57: ='ACCC data inputs'!$B$45 -> 1.63 | G57: Water sharing plan ratio (WSP) | H57: =C57 -> 1.63 | I57: 1.63 | J57: 1.63
B58: Average Water Allocation (AWA) | C58: ='State Water data inputs'!L$79 -> 1.412543353 | D58: ='State Water data inputs'!M$79 -> 1.465487256 | E58: ='State Water data inputs'!N$79 -> 1.412543353 | G58: Average Water Allocation (AWA) | H58: 1.412543353 | I58: 1.465487256 | J58: 1.412543353
B59: High security premium (times) | C59: =C57*C58 -> 2.302445665 | D59: =D57*D58 -> 2.388744228 | E59: =E57*E58 -> 2.302445665 | G59: High security premium (times) | H59: 2.302445665 | I59: 2.388744228 | J59: 2.302445665
B61: Forecast sales quantities | C61: =C$52 -> 2014-15 | D61: =D$52 -> 2015-16 | E61: 2016-17 | G61: Forecast sales quantities | H61: =H$52 -> 2014-15 | I61: =I$52 -> 2015-16 | J61: =J$52 -> 2016-17
B62: High Security Entitlement (ML) | C62: ='State Water data inputs'!B$51 -> 436928 | D62: ='State Water data inputs'!C$51 -> 436926 | E62: ='State Water data inputs'!D$51 -> 436927 | G62: High Security Entitlement (ML) | H62: =C62 -> 436928 | I62: 436926 | J62: 436927
B63: General Security Entitlement (ML) | C63: ='State Water data inputs'!B$37 -> 2260113 | D63: ='State Water data inputs'!C$37 -> 2260110 | E63: ='State Water data inputs'!D$37 -> 2260112 | G63: General Security Entitlement (ML) | H63: 2260113 | I63: 2260110 | J63: 2260112
B64: Water volumes (ML) | C64: ='State Water data inputs'!B$64+'State Water data inputs'!B$65 -> 1759739.925 | D64: ='State Water data inputs'!C$64+'State Water data inputs'!C$65 -> 1763915.343 | E64: ='State Water data inputs'!D$64+'State Water data inputs'!D$65 -> 1766973.885 | G64: Water volumes (ML) | H64: 1759739.925 | I64: 1763915.343 | J64: 1766973.885
B66: Tariffs ($ Nominal) | C66: =C$52 -> 2014-15 | D66: =D$52 -> 2015-16 | E66: 2016-17 | G66: Tariffs ($ Nominal) | H66: =H$52 -> 2014-15 | I66: =I$52 -> 2015-16 | J66: =J$52 -> 2016-17
B67: High Security Entitlement ($/ML) | C67: =C68*C59 -> 2.868687995 | D67: =D68*D59 -> 2.944887771 | E67: 2.946922408 | G67: High Security Entitlement ($/ML) | H67: =H68*H59 -> 0.1465831597 | I67: =I68*I59 -> 0.1005871679 | J67: =J68*J59 -> 0.1530615008
B68: General Security Entitlement ($/ML) | C68: =(C53-C55)/(C63+C62*C59) -> 1.245930811 | D68: =(D53-D55)/(D63+D62*D59) -> 1.232818372 | E68: =(E53-E55)/(E63+E62*E59) -> 1.279909643 | G68: General Security Entitlement ($/ML) | H68: =(H53-H55)/(H63+H62*H59) -> 0.06366411245 | I68: =(I53-I55)/(I63+I62*I59) -> 0.04210880625 | J68: =(J53-J55)/(J63+J62*J59) -> 0.06647779061
B69: Usage ($/ML delivered) | C69: =C55/C64 -> 3.468712457 | D69: =D55/D64 -> 3.463604289 | E69: 3.548718924 | G69: Usage ($/ML delivered) | H69: =H55/H64 -> 0.1772429881 | I69: =I55/I64 -> 0.1183047278 | J69: =J55/J64 -> 0.1843184751
B71: Tariffs Revenue ($'000 Nominal) | C71: =C$52 -> 2014-15 | D71: =D$52 -> 2015-16 | E71: 2016-17 | G71: Tariffs Revenue ($'000 Nominal) | H71: =H$52 -> 2014-15 | I71: =I$52 -> 2015-16 | J71: =J$52 -> 2016-17
B72: High Security Entitlement | C72: =C62*C67 -> 1253410.108 | D72: =D62*D67 -> 1286698.034 | E72: 1287589.967 | G72: High Security Entitlement | H72: =H62*H67 -> 64046.28681 | I72: 43949.14891 | J72: 66876.70235
B73: General Security Entitlement | C73: =C63*C68 -> 2815944.424 | D73: 2786305.131 | E73: 2892739.142 | G73: General Security Entitlement | H73: 143888.0882 | I73: 95170.5341 | J73: 150247.2523
B74: Usage | C74: =C64*C69 -> 6104031.798 | D74: 6109504.748 | E74: 6270493.664 | G74: Usage | H74: 311901.5625 | I74: 208679.5245 | J74: 325685.932
C75: =SUM(C72:C74) -> 10173386.33 | D75: =SUM(D72:D74) -> 10182507.91 | E75: 10450822.77 | H75: =SUM(H72:H74) -> 519835.9375 | I75: =SUM(I72:I74) -> 347799.2075 | J75: =SUM(J72:J74) -> 542809.8866
B76: Check | C76: =ABS(C75-C53) -> 0 | D76: =ABS(D75-D53) -> 0 | E76: =ABS(E75-E53) -> 0 | G76: Check | H76: =ABS(H75-H53) -> 0 | I76: =ABS(I75-I53) -> 0 | J76: =ABS(J75-J53) -> 0
B79: Estimated Tariff Revenue | G79: Estimated Tariff Revenue
B80: Estimated sales quantities | C80: =C$52 -> 2014-15 | D80: =D$52 -> 2015-16 | E80: 2016-17 | G80: Estimated sales quantities | H80: =H$52 -> 2014-15 | I80: =I$52 -> 2015-16 | J80: =J$52 -> 2016-17
B81: High Security Entitlement (ML) | C81: ='State Water data inputs'!F$51 -> 436928 | D81: ='State Water data inputs'!G$51 -> 436928 | E81: ='State Water data inputs'!H$51 -> 436928 | G81: High Security Entitlement (ML) | H81: =C81 -> 436928 | I81: 436928 | J81: 436928
B82: General Security Entitlement (ML) | C82: ='State Water data inputs'!F$37 -> 2260123 | D82: ='State Water data inputs'!G$37 -> 2260118 | E82: ='State Water data inputs'!H$37 -> 2260125 | G82: General Security Entitlement (ML) | H82: 2260123 | I82: 2260118 | J82: 2260125
B83: Water volumes (ML) | C83: ='State Water data inputs'!F$64+'State Water data inputs'!F$65 -> 2659609.888 | D83: ='State Water data inputs'!G$64+'State Water data inputs'!G$65 -> 1599884.655 | E83: ='State Water data inputs'!H$64+'State Water data inputs'!H$65 -> 1993671.273 | G83: Water volumes (ML) | H83: 2659609.888 | I83: 1599884.655 | J83: 1993671.273
B85: Tariffs Revenue ($'000 Nominal) | C85: =C$52 -> 2014-15 | D85: =D$52 -> 2015-16 | E85: 2016-17 | G85: Tariffs Revenue ($'000 Nominal) | H85: =H$52 -> 2014-15 | I85: =I$52 -> 2015-16 | J85: =J$52 -> 2016-17
B86: High Security Entitlement | C86: =C81*C67 -> 1253410.108 | D86: 1286703.924 | E86: 1287592.914 | G86: High Security Entitlement | H86: =H81*H67 -> 64046.28681 | I86: 43949.35009 | J86: 66876.85542
B87: General Security Entitlement | C87: 2815956.883 | D87: 2786314.994 | E87: 2892755.781 | G87: General Security Entitlement | H87: 143888.7248 | I87: 95170.87097 | J87: 150248.1165
B88: Usage | C88: 9225421.946 | D88: 5541367.355 | E88: 7074978.976 | G88: Usage | H88: 471397.2035 | I88: 189273.9187 | J88: 367470.4489
C89: =SUM(C86:C88) -> 13294788.94 | D89: =SUM(D86:D88) -> 9614386.273 | E89: 11255327.67 | H89: =SUM(H86:H88) -> 679332.2152 | I89: =SUM(I86:I88) -> 328394.1397 | J89: =SUM(J86:J88) -> 584595.4208
B92: Actual Tariff Revenue | G92: Actual Tariff Revenue
B93: Actual sales quantities | C93: =C$52 -> 2014-15 | D93: =D$52 -> 2015-16 | E93: 2016-17 | G93: Actual sales quantities | H93: =H$52 -> 2014-15 | I93: =I$52 -> 2015-16 | J93: =J$52 -> 2016-17
B94: High Security Entitlement (ML) | C94: ='State Water data inputs'!K$51 -> 436925 | D94: ='State Water data inputs'!L$51 -> 436924 | E94: ='State Water data inputs'!M$51 -> 436920 | G94: High Security Entitlement (ML) | H94: =C94 -> 436925 | I94: 436924 | J94: 436920
B95: General Security Entitlement (ML) | C95: ='State Water data inputs'!K$37 -> 2260120 | D95: ='State Water data inputs'!L$37 -> 2260119 | E95: ='State Water data inputs'!M$37 -> 2260115 | G95: General Security Entitlement (ML) | H95: 2260120 | I95: 2260119 | J95: 2260115
B96: Water volumes (ML) | C96: ='State Water data inputs'!K$64+'State Water data inputs'!K$65 -> 2648411.838 | D96: ='State Water data inputs'!L$64+'State Water data inputs'!L$65 -> 1602734.079 | E96: ='State Water data inputs'!M$64+'State Water data inputs'!M$65 -> 2199398.971 | G96: Water volumes (ML) | H96: 2648411.838 | I96: 1602734.079 | J96: 2199398.971
B98: Tariffs Revenue ($'000 Nominal) | C98: =C$52 -> 2014-15 | D98: =D$52 -> 2015-16 | E98: =E$52 -> 2016-17 | G98: Tariffs Revenue ($'000 Nominal) | H98: =H$52 -> 2014-15 | I98: =I$52 -> 2015-16 | J98: =J$52 -> 2016-17
B99: High Security Entitlement | C99: =C94*C67 -> 1253401.502 | D99: 1286692.144 | E99: 1287569.338 | G99: High Security Entitlement | H99: =H94*H67 -> 64045.84706 | I99: 43948.94774 | J99: 66875.63092
B100: General Security Entitlement | C100: 2815953.145 | D100: 2786316.227 | E100: 2892742.982 | G100: General Security Entitlement | H100: 143888.5338 | I100: 95170.91308 | J100: 150247.4517
B101: Usage | C101: 9186579.133 | D101: 5551236.629 | E101: 7805048.749 | G101: Usage | H101: 469412.4278 | I101: 189611.0189 | J101: 405389.8643
C102: =SUM(C99:C101) -> 13255933.78 | D102: =SUM(D99:D101) -> 9624245 | E102: 11985361.07 | H102: =SUM(H99:H101) -> 677346.8087 | I102: =SUM(I99:I101) -> 328730.8797 | J102: =SUM(J99:J101) -> 622512.947

Sheet Lowbidgee
B1: Lowbidgee | C1: Check | D1: =IF(E1>0.001,"Error","Ok") -> Ok | E1: =SUM(C76:E76) -> 0
B3: State Water Costs Tariffs | C3: 2014-15 | D3: 2015-16 | E3: 2016-17
B6: Benchmark Revenue (Rev BBM) | C6: Forecast 2014-15 | D6: Forecast 2015-16 | E6: Forecast 2016-17
B7: Benchmark Revenue (Rev BBM) | C7: ='ACCC data inputs'!B$33*(1+C$31) -> 545294.7513 | D7: ='ACCC data inputs'!C$33*(1+C$31)*(1+D$31) -> 593137.4391 | E7: ='ACCC data inputs'!D$33*(1+C$31)*(1+D$31)*(1+E$31) -> 642390.0964
B11: Unders/Overs Adjustment
B12: Calc. of UOM (t-1) | C12: Estimated 2013-14 | D12: Estimated 2014-15 | E12: Estimated 2015-16
B13: Revenue Requirement | C13: 0 | D13: =C47 -> 545294.7513 | E13: =D47 -> 593136.8766
B14: Estimated Tarriff Revenue | C14: 0 | D14: =C89 -> 545302.0511 | E14: =D89 -> 593143.2288
B15: Difference | C15: =C14-C13 -> 0 | D15: =D14-D13 -> 7.299795867 | E15: =E14-E13 -> 6.35222767
B18: Calc. of UOM (t-2) | C18: Actual 2012-13 | D18: Actual 2013-14 | E18: Actual 2014-15
B19: Estimated Tarriff Revenue | C19: 0 | D19: =C14 -> 0 | E19: =D14 -> 545302.0511
B20: Actual Tarriff Revenue | C20: 0 | D20: 0 | E20: =C102 -> 545299.8611
B21: Difference | C21: =C20-C19 -> 0 | D21: =D20-D19 -> 0 | E21: =E20-E19 -> -2.18993876
B30: WACC | C30: Actual 2014-15 | D30: Actual 2015-16 | E30: Actual 2016-17
B31: CPI (t) | C31: ='State Water data inputs'!C11 -> 0.02734375 | D31: ='State Water data inputs'!D11 -> 0.02756653992 | E31: ='State Water data inputs'!E11 -> 0.02312673451
B32: Real Pre Tax WACC | C32: ='ACCC data inputs'!B58 -> 0.04816058537 | D32: ='ACCC data inputs'!C58 -> 0.04816058537 | E32: ='ACCC data inputs'!D58 -> 0.04816058537
B33: Nominal Pre Tax WACC | C33: =(1+C31)*(1+C32)-1 -> 0.07682122637 | D33: =(1+D31)*(1+D32)-1 -> 0.07705474599 | E33: 0.07240111694
B36: RAB UOM | C36: Actual 2014-15 | D36: Actual 2015-16 | E36: Actual 2016-17
B37: Opening balance | C37: 0 | D37: =C40 -> 0 | E37: =D40 -> 7.299795867
B38: UOM (t-1) | C38: =C15 -> 0 | D38: =D15 -> 7.299795867 | E38: =E15 -> 6.35222767
B39: UOM (t-2) | C39: 0 | D39: =D21*(1+C$33) -> 0 | E39: =E21*(1+D$33) -> -2.358683935
B40: Closing balance | C40: =SUM(C37:C39) -> 0 | D40: =SUM(D37:D39) -> 7.299795867 | E40: 11.2933396
B42: Rev UOM (t) | C42: =C40*C$33 -> 0 | D42: =D40*D$33 -> 0.5624839163 | E42: =E40*E$33 -> 0.8176504012
B46: Revenue Requirement | C46: 2014-15 | D46: 2015-16 | E46: 2016-17
B47: Revenue Requirement | C47: =(C7-C42) -> 545294.7513 | D47: =(D7-D42) -> 593136.8766 | E47: =(E7-E42) -> 642389.2788
B52: Forecast Tariff Revenue | C52: 2014-15 | D52: 2015-16 | E52: 2016-17
B53: Revenue Requirement | C53: =C47 -> 545294.7513 | D53: =D47 -> 593136.8766 | E53: 642389.2788
B54: Target Variable / Fixed ratio (%) | C54: 0 | D54: 0 | E54: 0
B55: Variable Charge Revenue | C55: =C53*C54 -> 0 | D55: =D53*D54 -> 0 | E55: =E53*E54 -> 0
B57: Water sharing plan ratio (WSP)
B58: Average Water Allocation (AWA)
B59: High security premium (times)
B61: Forecast sales quantities | C61: =C$52 -> 2014-15 | D61: =D$52 -> 2015-16 | E61: 2016-17
B62: High Security Entitlement (ML)
B63: General Security Entitlement (ML) | C63: ='State Water data inputs'!B$38 -> 747000 | D63: ='State Water data inputs'!C$38 -> 746997 | E63: ='State Water data inputs'!D$38 -> 746999
B64: Water volumes (ML) | C64: ='State Water data inputs'!B$65 -> 0 | D64: ='State Water data inputs'!C$65 -> 0 | E64: ='State Water data inputs'!D$65 -> 0
B66: Tariffs ($ Nominal) | C66: =C$52 -> 2014-15 | D66: =D$52 -> 2015-16 | E66: 2016-17
B67: High Security Entitlement ($/ML) | C67: =C68*C59 -> 0 | D67: =D68*D59 -> 0 | E67: 0
B68: General Security Entitlement ($/ML) | C68: =(C53-C55)/(C63+C62*C59) -> 0.7299795867 | D68: =(D53-D55)/(D63+D62*D59) -> 0.7940284587 | E68: =(E53-E55)/(E63+E62*E59) -> 0.8599600251
B69: Usage ($/ML delivered) | C69: =Murrumbidgee!C69 -> 3.468712457 | D69: =Murrumbidgee!D69 -> 3.463604289 | E69: =Murrumbidgee!E69 -> 3.548718924
B71: Tariffs Revenue ($'000 Nominal) | C71: =C$52 -> 2014-15 | D71: =D$52 -> 2015-16 | E71: 2016-17
B72: High Security Entitlement | C72: =C62*C67 -> 0 | D72: =D62*D67 -> 0 | E72: 0
B73: General Security Entitlement | C73: =C63*C68 -> 545294.7513 | D73: 593136.8766 | E73: 642389.2788
B74: Usage
C75: =SUM(C72:C74) -> 545294.7513 | D75: =SUM(D72:D74) -> 593136.8766 | E75: 642389.2788
B76: Check | C76: =ABS(C75-C53) -> 0 | D76: =ABS(D75-D53) -> 0 | E76: =ABS(E75-E53) -> 0
B79: Estimated Tariff Revenue
B80: Estimated sales quantities | C80: =C$52 -> 2014-15 | D80: =D$52 -> 2015-16 | E80: 2016-17
B81: High Security Entitlement (ML)
B82: General Security Entitlement (ML) | C82: ='State Water data inputs'!F$38 -> 747010 | D82: ='State Water data inputs'!G$38 -> 747005 | E82: ='State Water data inputs'!H$38 -> 747012
B83: Water volumes (ML) | C83: ='State Water data inputs'!F$65 -> 20000 | D83: ='State Water data inputs'!G$65 -> 30000 | E83: ='State Water data inputs'!H$65 -> 50000
B85: Tariffs Revenue ($'000 Nominal) | C85: =C$52 -> 2014-15 | D85: =D$52 -> 2015-16 | E85: 2016-17
B86: High Security Entitlement | C86: =C81*C67 -> 0 | D86: 0 | E86: 0
B87: General Security Entitlement | C87: 545302.0511 | D87: 593143.2288 | E87: 642400.4583
B88: Usage (Included in Murrumbidgee)
C89: =SUM(C86:C88) -> 545302.0511 | D89: =SUM(D86:D88) -> 593143.2288 | E89: 642400.4583
B92: Actual Tariff Revenue
B93: Actual sales quantities | C93: =C$52 -> 2014-15 | D93: =D$52 -> 2015-16 | E93: 2016-17
B94: High Security Entitlement (ML) | C94: ='State Water data inputs'!K$52 -> 0 | D94: ='State Water data inputs'!L$52 -> 0 | E94: ='State Water data inputs'!M$52 -> 0
B95: General Security Entitlement (ML) | C95: ='State Water data inputs'!K$38 -> 747007 | D95: ='State Water data inputs'!L$38 -> 747006 | E95: ='State Water data inputs'!M$38 -> 747002
B96: Water volumes (ML) | C96: ='State Water data inputs'!K$65 -> 22000 | D96: ='State Water data inputs'!L$65 -> 25000 | E96: ='State Water data inputs'!M$65 -> 60000
B98: Tariffs Revenue ($'000 Nominal) | C98: =C$52 -> 2014-15 | D98: =D$52 -> 2015-16 | E98: =E$52 -> 2016-17
B99: High Security Entitlement | C99: =C94*C67 -> 0 | D99: 0 | E99: 0
B100: General Security Entitlement | C100: 545299.8611 | D100: 593144.0228 | E100: 642391.8587
B101: Usage (Included in Murrumbidgee)
C102: =SUM(C99:C101) -> 545299.8611 | D102: =SUM(D99:D101) -> 593144.0228 | E102: 642391.8587

Sheet Fish River
B1: Fish River | C1: Check | D1: =IF(E1>0.001,"Error","Ok") -> Ok | E1: =SUM(J149,J184,J204,J229,C235:E235) -> 4.773028195e-09
B3: State Water Costs Tariffs | C3: 2014-15 | D3: 2015-16 | E3: 2016-17
B6: Benchmark Revenue (Rev BBM) | C6: Forecast 2014-15 | D6: Forecast 2015-16 | E6: Forecast 2016-17
B7: Benchmark Revenue (Rev BBM) | C7: ='ACCC data inputs'!B$34*(1+C$31) -> 10194419.49 | D7: ='ACCC data inputs'!C$34*(1+C$31)*(1+D$31) -> 10550315.52 | E7: ='ACCC data inputs'!D$34*(1+C$31)*(1+D$31)*(1+E$31) -> 10871460.06
B11: Unders/Overs Adjustment
B12: Calc. of UOM (t-1) | C12: Estimated 2013-14 | D12: Estimated 2014-15 | E12: Estimated 2015-16
B13: Revenue Requirement | C13: 0 | D13: =C47 -> 10194419.49 | E13: =D47 -> 10547478.42
B14: Estimated Tarriff Revenue | C14: 0 | D14: =C349 -> 10231238.78 | E14: =D349 -> 10525493.21
B15: Difference | C15: =C14-C13 -> 0 | D15: =D14-D13 -> 36819.28918 | E15: =E14-E13 -> -21985.2125
B18: Calc. of UOM (t-2) | C18: Actual 2012-13 | D18: Actual 2013-14 | E18: Actual 2014-15
B19: Estimated Tarriff Revenue | C19: 0 | D19: =C14 -> 0 | E19: =D14 -> 10231238.78
B20: Actual Tarriff Revenue | C20: 0 | D20: 0 | E20: =C462 -> 10208461.42
B21: Difference | C21: =C20-C19 -> 0 | D21: =D20-D19 -> 0 | E21: =E20-E19 -> -22777.36477
B30: WACC | C30: Actual 2014-15 | D30: Actual 2015-16 | E30: Actual 2016-17
B31: CPI (t) | C31: ='State Water data inputs'!C11 -> 0.02734375 | D31: ='State Water data inputs'!D11 -> 0.02756653992 | E31: ='State Water data inputs'!E11 -> 0.02312673451
B32: Real Pre Tax WACC | C32: ='ACCC data inputs'!B58 -> 0.04816058537 | D32: ='ACCC data inputs'!C58 -> 0.04816058537 | E32: ='ACCC data inputs'!D58 -> 0.04816058537
B33: Nominal Pre Tax WACC | C33: =(1+C31)*(1+C32)-1 -> 0.07682122637 | D33: =(1+D31)*(1+D32)-1 -> 0.07705474599 | E33: 0.07240111694
B36: RAB UOM | C36: Actual 2014-15 | D36: Actual 2015-16 | E36: Actual 2016-17
B37: Opening balance | C37: 0 | D37: =C40 -> 0 | E37: =D40 -> 36819.28918
B38: UOM (t-1) | C38: =C15 -> 0 | D38: =D15 -> 36819.28918 | E38: =E15 -> -21985.2125
B39: UOM (t-2) | C39: 0 | D39: =D21*(1+C$33) -> 0 | E39: =E21*(1+D$33) -> -24532.46883
B40: Closing balance | C40: =SUM(C37:C39) -> 0 | D40: =SUM(D37:D39) -> 36819.28918 | E40: -9698.392141
B42: Rev UOM (t) | C42: =C40*C$33 -> 0 | D42: =D40*D$33 -> 2837.100976 | E42: =E40*E$33 -> -702.1744235
B46: Revenue Requirement | C46: 2014-15 | D46: 2015-16 | E46: 2016-17
B47: Revenue Requirement | C47: =(C7-C42) -> 10194419.49 | D47: =(D7-D42) -> 10547478.42 | E47: =(E7-E42) -> 10872162.23
B52: Forecast Tariff Revenue | C52: 2014-15 | D52: 2015-16 | E52: 2016-17
B53: Revenue Requirement | C53: ='Fish River'!C47 -> 10194419.49 | D53: ='Fish River'!D47 -> 10547478.42 | E53: ='Fish River'!E47 -> 10872162.23
B57: Target (%) : 2014-15 to 2016-17 | C57: =C$110 -> 2014-15 | D57: =D$110 -> 2015-16 | E57: =E$110 -> 2016-17
B59: Total Revenue
B60: BULK RAW WATER | C60: =SUM(C61:C62) -> 1 | D60: =SUM(D61:D62) -> 1 | E60: =SUM(E61:E62) -> 1
B61: BULK FILTERED WATER | C61: ='ACCC data inputs'!B52 -> 0.8 | D61: ='ACCC data inputs'!C52 -> 0.8 | E61: ='ACCC data inputs'!D52 -> 0.8
C62: =1-C61 -> 0.2 | D62: =1-D61 -> 0.2 | E62: =1-E61 -> 0.2
B63: BULK RAW WATER
B64: Usage | C64: ='ACCC data inputs'!B54 -> 0.45 | D64: ='ACCC data inputs'!C54 -> 0.45 | E64: ='ACCC data inputs'!D54 -> 0.45
B65: Minimum Annual Quantity (MAQ) access charge | C65: =1-C64 -> 0.55 | D65: =1-D64 -> 0.55 | E65: =1-E64 -> 0.55
B67: BULK FILTERED WATER
B68: Usage | C68: ='ACCC data inputs'!B55 -> 0.4 | D68: ='ACCC data inputs'!C55 -> 0.4 | E68: ='ACCC data inputs'!D55 -> 0.4
B69: Minimum Annual Quantity (MAQ) access charge | C69: =1-C68 -> 0.6 | D69: =1-D68 -> 0.6 | E69: =1-E68 -> 0.6
B71: Usage | C71: =SUM(C72:C73) -> 0.44 | D71: =SUM(D72:D73) -> 0.44 | E71: =SUM(E72:E73) -> 0.44
B72: BULK RAW WATER | C72: =C64*C61 -> 0.36 | D72: =D64*D61 -> 0.36 | E72: =E64*E61 -> 0.36
B73: BULK FILTERED WATER | C73: =C68*C62 -> 0.08 | D73: =D68*D62 -> 0.08 | E73: =E68*E62 -> 0.08
B75: Minimum Annual Quantity (MAQ) access charge | C75: =SUM(C76:C77) -> 0.56 | D75: =SUM(D76:D77) -> 0.56 | E75: =SUM(E76:E77) -> 0.56
B76: BULK RAW WATER | C76: =C65*C61 -> 0.44 | D76: =D65*D61 -> 0.44 | E76: =E65*E61 -> 0.44
B77: BULK FILTERED WATER | C77: =C69*C62 -> 0.12 | D77: =D69*D62 -> 0.12 | E77: =E69*E62 -> 0.12
B81: Forecast Revenue Composition | C81: =C$110 -> 2014-15 | D81: =D$110 -> 2015-16 | E81: =E$110 -> 2016-17
B82: BULK RAW WATER
B83: Minimum Annual Quantity (MAQ) access charge | C83: =C72*C$53 -> 3669991.018 | D83: =D72*D$53 -> 3797092.232 | E83: =E72*E$53 -> 3913978.403
B84: Usage | C84: =C76*C$53 -> 4485544.577 | D84: =D76*D$53 -> 4640890.506 | E84: =E76*E$53 -> 4783751.382
C85: =SUM(C83:C84) -> 8155535.595 | D85: =SUM(D83:D84) -> 8437982.738 | E85: =SUM(E83:E84) -> 8697729.785
B87: BULK FILTERED WATER
B88: Minimum Annual Quantity (MAQ) access charge | C88: =C73*C$53 -> 815553.5595 | D88: =D73*D$53 -> 843798.2738 | E88: =E73*E$53 -> 869772.9785
B89: Usage | C89: =C77*C$53 -> 1223330.339 | D89: =D77*D$53 -> 1265697.411 | E89: =E77*E$53 -> 1304659.468
C90: =SUM(C88:C89) -> 2038883.899 | D90: =SUM(D88:D89) -> 2109495.685 | E90: =SUM(E88:E89) -> 2174432.446
B92: Total | C92: =SUM(C85,C90) -> 10194419.49 | D92: =SUM(D85,D90) -> 10547478.42 | E92: =SUM(E85,E90) -> 10872162.23
B96: Minimum Annual Quantity (MAQ) | C96: 2014-15 | D96: 2015-16 | E96: 2016-17
B97: BULK RAW WATER
B98: - Delta Electricity | C98: ='ACCC data inputs'!G39 -> 8184 | D98: ='ACCC data inputs'!H39 -> 8184 | E98: ='ACCC data inputs'!I39 -> 8184
B99: - Sydney Catchment Authority | C99: ='ACCC data inputs'!G40 -> 3650 | D99: ='ACCC data inputs'!H40 -> 3650 | E99: ='ACCC data inputs'!I40 -> 3650
B100: - Oberon Council | C100: ='ACCC data inputs'!G41 -> 1064 | D100: ='ACCC data inputs'!H41 -> 1064 | E100: ='ACCC data inputs'!I41 -> 1064
B101: - Individual Minor Customers | C101: ='ACCC data inputs'!G42 -> 200 | D101: ='ACCC data inputs'!H42 -> 200 | E101: ='ACCC data inputs'!I42 -> 200
B102: BULK FILTERED WATER
B103: - Lithgow Council | C103: ='ACCC data inputs'!G44 -> 1778 | D103: ='ACCC data inputs'!H44 -> 1778 | E103: ='ACCC data inputs'!I44 -> 1778
B104: - Individual Minor Customers | C104: ='ACCC data inputs'!G45 -> 200 | D104: ='ACCC data inputs'!H45 -> 200 | E104: ='ACCC data inputs'!I45 -> 200
B109: Forecast Tariff Revenue
B110: Forecast Tariff quantities | C110: 2014-15 | D110: 2015-16 | E110: 2016-17
B111: BULK RAW WATER
B112: Number of Minor Customers | C112: ='State Water data inputs'!B$100 -> 74 | D112: ='State Water data inputs'!C$100 -> 75 | E112: ='State Water data inputs'!D$100 -> 77
B114: Usage (ML)
B115: - Delta Electricity | C115: ='State Water data inputs'!B$88 -> 6189.8482 | D115: ='State Water data inputs'!C$88 -> 6187.8482 | E115: ='State Water data inputs'!D$88 -> 6184.230648
B116: - Sydney Catchment Authority | C116: ='State Water data inputs'!B$89 -> 2411.62875 | D116: ='State Water data inputs'!C$89 -> 2410.12875 | E116: ='State Water data inputs'!D$89 -> 2366.45228
B117: - Oberon Council | C117: ='State Water data inputs'!B$90 -> 717.08692 | D117: ='State Water data inputs'!C$90 -> 716.08692 | E117: ='State Water data inputs'!D$90 -> 722.2107443
B118: - Individual Minor Customers | C118: ='State Water data inputs'!B$91 -> 52.09287623 | D118: ='State Water data inputs'!C$91 -> 50.09287623 | E118: ='State Water data inputs'!D$91 -> 50.64285758
B120: BULK FILTERED WATER
B121: Number of Minor Customers | C121: ='State Water data inputs'!B$101 -> 208 | D121: ='State Water data inputs'!C$101 -> 208 | E121: ='State Water data inputs'!D$101 -> 209
B123: Usage
B124: - Lithgow Council | C124: ='State Water data inputs'!B$93 -> 985.5005 | D124: ='State Water data inputs'!C$93 -> 984.0005 | E124: ='State Water data inputs'!D$93 -> 959.2778999
B125: - Individual Minor Customers | C125: ='State Water data inputs'!B$94 -> 131.8055767 | D125: ='State Water data inputs'!C$94 -> 129.3055767 | E125: ='State Water data inputs'!D$94 -> 130.4643028
B127: Tariff Revenue
B128: BULK RAW WATER | C128: =C$110 -> 2014-15 | D128: =D$110 -> 2015-16 | E128: =E$110 -> 2016-17
B129: Raw Water: Major customer Minimum Annual Quantity (MAQ) access charge
B130: Delta
B131: Price $ | C131: =C84/SUM(C132,C136,C140,C145) -> 0.3473719547 | D131: =D84/SUM(D132,D136,D140,D145) -> 0.3593967712 | E131: =E84/SUM(E132,E136,E140,E145) -> 0.3704486333
B132: Quantity (per kL) | C132: =C$98*10^3 -> 8184000 | D132: =D$98*10^3 -> 8184000 | E132: =E$98*10^3 -> 8184000
B133: Revenue $ | C133: =C131*C132 -> 2842892.077 | D133: =D131*D132 -> 2941303.175 | E133: =E131*E132 -> 3031751.615
B134: Sydney Catchment
B135: Price $ | C135: =C$131 -> 0.3473719547 | D135: =D$131 -> 0.3593967712 | E135: =E$131 -> 0.3704486333
B136: Quantity (per kL) | C136: =C$99*10^3 -> 3650000 | D136: =D$99*10^3 -> 3650000 | E136: =E$99*10^3 -> 3650000
B137: Revenue $ | C137: =C135*C136 -> 1267907.635 | D137: =D135*D136 -> 1311798.215 | E137: =E135*E136 -> 1352137.512
B138: Oberon Council
B139: Price $ | C139: =C$131 -> 0.3473719547 | D139: =D$131 -> 0.3593967712 | E139: =E$131 -> 0.3704486333
B140: Quantity (per kL) | C140: =C$100*10^3 -> 1064000 | D140: =D$100*10^3 -> 1064000 | E140: =E$100*10^3 -> 1064000
B141: Revenue $ | C141: =C139*C140 -> 369603.7598 | D141: =D139*D140 -> 382398.1645 | E141: =E139*E140 -> 394157.3459
B143: Raw Water: Individual Minor Customer access charge
B144: Price $ (Annual Service Charge 2014-15 onwards) | C144: =C131*C$101 -> 69.47439095 | D144: =D131*D$101 -> 71.87935423 | E144: =E131*E$101 -> 74.08972667
B145: Quantity (per unit) | C145: =C$101*C112 -> 14800 | D145: =D$101*D112 -> 15000 | E145: =E$101*E112 -> 15400
B146: Number of Minor Customers | C146: =C112 -> 74 | D146: =D112 -> 75 | E146: =E112 -> 77
B147: Revenue $ | C147: =C144*C146 -> 5141.10493 | D147: =D144*D146 -> 5390.951568 | E147: =E144*E146 -> 5704.908953 | G147: Check
G148: =C$81 -> 2014-15 | H148: =D$81 -> 2015-16 | I148: =E$81 -> 2016-17
B149: Sub total | C149: =SUM(C133,C137,C141,C147) -> 4485544.577 | D149: =SUM(D133,D137,D141,D147) -> 4640890.506 | E149: =SUM(E133,E137,E141,E147) -> 4783751.382 | G149: =ABS(C149-C$84) -> 0 | H149: =ABS(D149-D$84) -> 0 | I149: =ABS(E149-E$84) -> 9.313225746e-10 | J149: =SUM(G149:I149) -> 9.313225746e-10
B151: Raw Water: Usage up to MAQ | C151: =C$110 -> 2014-15 | D151: =D$110 -> 2015-16 | E151: =E$110 -> 2016-17
B152: Delta
B153: Price $ | C153: =(C83-C178)/SUM(C154,C158,C162,C167,C172) -> 0.3902646973 | D153: =(D83-D178)/SUM(D154,D158,D162,D167,D172) -> 0.404145303 | E153: =(E83-E178)/SUM(E154,E158,E162,E167,E172) -> 0.4183951789
B154: Quantity (per kL) | C154: =MIN(C115,C$98)*10^3 -> 6189848.2 | D154: =MIN(D115,D$98)*10^3 -> 6187848.2 | E154: =MIN(E115,E$98)*10^3 -> 6184230.648
B155: Revenue $ | C155: =C153*C154 -> 2415679.234 | D155: =D153*D154 -> 2500789.786 | E155: =E153*E154 -> 2587452.289
B156: Sydney Catchment
B157: Price $ | C157: =C$153 -> 0.3902646973 | D157: =D$153 -> 0.404145303 | E157: =E$153 -> 0.4183951789
B158: Quantity (per kL) | C158: =MIN(C116,C$99)*10^3 -> 2411628.75 | D158: =MIN(D116,D$99)*10^3 -> 2410128.75 | E158: =MIN(E116,E$99)*10^3 -> 2366452.28
B159: Revenue $ | C159: =C157*C158 -> 941173.564 | D159: =D157*D158 -> 974042.214 | E159: =E157*E158 -> 990112.2253
B160: Oberon Council
B161: Price $ | C161: =C$153 -> 0.3902646973 | D161: =D$153 -> 0.404145303 | E161: =E$153 -> 0.4183951789
B162: Quantity (per kL) | C162: =MIN(C117,C$100)*10^3 -> 717086.92 | D162: =MIN(D117,D$100)*10^3 -> 716086.92 | E162: =MIN(E117,E$100)*10^3 -> 722210.7443
B163: Revenue $ | C163: =C161*C162 -> 279853.7097 | D163: =D161*D162 -> 289403.1653 | E163: =E161*E162 -> 302169.4936
B165: Individual Minor Customer tier 1
B166: Price $ | C166: =C$153 -> 0.3902646973 | D166: =D$153 -> 0.404145303 | E166: =E$153 -> 0.4183951789
B167: Quantity (per kL) | C167: =C$101*C112 -> 14800 | D167: =D$101*D112 -> 15000 | E167: =E$101*E112 -> 15400
B168: Revenue $ | C168: =C166*C167 -> 5775.91752 | D168: =D166*D167 -> 6062.179546 | E168: =E166*E167 -> 6443.285756
B170: Individual Minor Customer tier 2
B171: Price $ | C171: =C166 -> 0.3902646973 | D171: =D166 -> 0.404145303 | E171: =E166 -> 0.4183951789
B172: Quantity (per unit) | C172: =C118*10^3-C167 -> 37292.87623 | D172: =D118*10^3-D167 -> 35092.87623 | E172: =E118*10^3-E167 -> 35242.85758
B173: Revenue $ | C173: =C171*C172 -> 14554.09305 | D173: =D171*D172 -> 14182.6211 | E173: =E171*E172 -> 14745.4417
B175: Raw Water: Individual Minor Customer access charge in excess of deemed MAQ
B176: Price $ | C176: =C$131 -> 0.3473719547 | D176: =D$131 -> 0.3593967712 | E176: =E$131 -> 0.3704486333
B177: Quantity (per unit) | C177: =C118*10^3-C145 -> 37292.87623 | D177: =D118*10^3-D145 -> 35092.87623 | E177: =E118*10^3-E145 -> 35242.85758
B178: Revenue $ | C178: =C176*C177 -> 12954.49931 | D178: =D176*D177 -> 12612.26641 | E178: =E176*E177 -> 13055.66843
B180: Tier 2 usage charge | C180: =SUM(C171,C176) -> 0.737636652 | D180: =SUM(D171,D176) -> 0.7635420742 | E180: =SUM(E171,E176) -> 0.7888438123
B181: Quantity (kL) | C181: =C177 -> 37292.87623 | D181: =D177 -> 35092.87623 | E181: =E177 -> 35242.85758
B182: Revenue | C182: =C180*C181 -> 27508.59237 | D182: =D180*D181 -> 26794.88751 | E182: =E180*E181 -> 27801.11013 | G182: Check
G183: =C$81 -> 2014-15 | H183: =D$81 -> 2015-16 | I183: =E$81 -> 2016-17
B184: Sub total | C184: =SUM(C155,C159,C163,C168,C182) -> 3669991.018 | D184: =SUM(D155,D159,D163,D168,D182) -> 3797092.232 | E184: =SUM(E155,E159,E163,E168,E182) -> 3913978.403 | G184: =ABS(C184-C$83) -> 4.656612873e-10 | H184: =ABS(D184-D$83) -> 4.656612873e-10 | I184: =ABS(E184-E$83) -> 4.656612873e-10 | J184: =SUM(G184:I184) -> 1.396983862e-09
B187: Total Raw Water Revenue | C187: =SUM(C149,C184) -> 8155535.595 | D187: =SUM(D149,D184) -> 8437982.738 | E187: =SUM(E149,E184) -> 8697729.785
B192: BULK FILTERED WATER | C192: =C$110 -> 2014-15 | D192: =D$110 -> 2015-16 | E192: =E$110 -> 2016-17
B193: Filtered Water: Minimum Annual Quantity (MAQ)
B194: Lithgow Council
B195: Price $ | C195: =C89/SUM(C196,C200) -> 0.6723072869 | D195: =D89/SUM(D196,D200) -> 0.6955910149 | E195: =E89/SUM(E196,E200) -> 0.7169246443
B196: Quantity (per kL) | C196: =C$103*10^3 -> 1778000 | D196: =D$103*10^3 -> 1778000 | E196: =E$103*10^3 -> 1778000
B197: Revenue $ | C197: =C195*C196 -> 1195362.356 | D197: =D195*D196 -> 1236760.825 | E197: =E195*E196 -> 1274692.018
B198: Filtered Water: Individual Minor Customer access charge
B199: Price $ (Annual Service Charge) | C199: =C195*C$101 -> 134.4614574 | D199: =D195*D$101 -> 139.118203 | E199: =E195*E$101 -> 143.3849289
B200: Quantity (per kL) | C200: =C$104*C121 -> 41600 | D200: =D$104*D121 -> 41600 | E200: =E$104*E121 -> 41800
B201: Number of Minor Customers | C201: =C121 -> 208 | D201: =D121 -> 208 | E201: =E121 -> 209
B202: Revenue $ | C202: =C199*C201 -> 27967.98313 | D202: =D199*D201 -> 28936.58622 | E202: =E199*E201 -> 29967.45013 | G202: Check
G203: =C$81 -> 2014-15 | H203: =D$81 -> 2015-16 | I203: =E$81 -> 2016-17
B204: Sub total | C204: =SUM(C197,C202) -> 1223330.339 | D204: =SUM(D197,D202) -> 1265697.411 | E204: =SUM(E197,E202) -> 1304659.468 | G204: =ABS(C204-C$89) -> 0 | H204: =ABS(D204-D$89) -> 2.328306437e-10 | I204: =ABS(E204-E$89) -> 2.328306437e-10 | J204: =SUM(G204:I204) -> 4.656612873e-10
B206: Usage up to MAQ | C206: =C$110 -> 2014-15 | D206: =D$110 -> 2015-16 | E206: =E$110 -> 2016-17
B207: Lithgow Council
B208: Price $ | C208: =(C88-C223)/SUM(C209,C213,C217) -> 0.6756498588 | D208: =(D88-D223)/SUM(D209,D213,D217) -> 0.7031229589 | E208: =(E88-E223)/SUM(E209,E213,E217) -> 0.7398147495
B209: Quantity (per kL) | C209: =MIN(C124,C$103)*10^3 -> 985500.5 | D209: =MIN(D124,D$103)*10^3 -> 984000.5 | E209: =MIN(E124,E$103)*10^3 -> 959277.8999
B210: Revenue $ | C210: =C208*C209 -> 665853.2737 | D210: =D208*D209 -> 691873.3431 | E210: =E208*E209 -> 709687.9392
B211: Individual Minor Customer tier 1
B212: Price $ | C212: =C$208 -> 0.6756498588 | D212: =D$208 -> 0.7031229589 | E212: =E$208 -> 0.7398147495
B213: Quantity (per kL) | C213: =C$104*C121 -> 41600 | D213: =D$104*D121 -> 41600 | E213: =E$104*E121 -> 41800
B214: Revenue $ | C214: =C212*C213 -> 28107.03413 | D214: =D212*D213 -> 29249.91509 | E214: =E212*E213 -> 30924.25653
B215: Individual Minor Customer tier 2
B216: Price $ | C216: =C212 -> 0.6756498588 | D216: =D212 -> 0.7031229589 | E216: =E212 -> 0.7398147495
B217: Quantity (per kL) | C217: =C125*10^3-C213 -> 90205.57665 | D217: =D125*10^3-D213 -> 87705.57665 | E217: =E125*10^3-E213 -> 88664.30283
B218: Revenue $ | C218: =C216*C217 -> 60947.38513 | D218: =D216*D217 -> 61667.80457 | E218: =E216*E217 -> 65595.15899
B220: FIltered Water: Individual Minor Customer access charge in excess of deemed MAQ
B221: Price $ | C221: =C195 -> 0.6723072869 | D221: =D195 -> 0.6955910149 | E221: =E195 -> 0.7169246443
B222: Quantity (per unit) | C222: =C125*10^3-C200 -> 90205.57665 | D222: =D125*10^3-D200 -> 87705.57665 | E222: =E125*10^3-E200 -> 88664.30283
B223: Revenue $ | C223: =C221*C222 -> 60645.8665 | D223: =D221*D222 -> 61007.21108 | E223: =E221*E222 -> 63565.62377
B225: Tier 2 usage charge | C225: =SUM(C216,C221) -> 1.347957146 | D225: =SUM(D216,D221) -> 1.398713974 | E225: =SUM(E216,E221) -> 1.456739394
B226: Quantity (kL) | C226: =C222 -> 90205.57665 | D226: =D222 -> 87705.57665 | E226: =E222 -> 88664.30283
B227: Revenue | C227: =C225*C226 -> 121593.2516 | D227: =D225*D226 -> 122675.0156 | E227: =E225*E226 -> 129160.7828 | G227: Check
G228: =C$81 -> 2014-15 | H228: =D$81 -> 2015-16 | I228: =E$81 -> 2016-17
B229: Sub total | C229: =SUM(C210,C214,C227) -> 815553.5595 | D229: =SUM(D210,D214,D227) -> 843798.2738 | E229: =SUM(E210,E214,E227) -> 869772.9785 | G229: =ABS(C229-C$88) -> 0 | H229: =ABS(D229-D$88) -> 0 | I229: =ABS(E229-E$88) -> 1.164153218e-10 | J229: =SUM(G229:I229) -> 1.164153218e-10
B232: Total Filtered Water Revenue | C232: =SUM(C204,C229) -> 2038883.899 | D232: =SUM(D204,D229) -> 2109495.685 | E232: =SUM(E204,E229) -> 2174432.446
B234: Total Forecast Revenue | C234: =SUM(C187,C232) -> 10194419.49 | D234: =SUM(D187,D232) -> 10547478.42 | E234: =SUM(E187,E232) -> 10872162.23
B235: Check | C235: =ABS(C234-C53) -> 0 | D235: =ABS(D234-D53) -> 0 | E235: =ABS(E234-E53) -> 1.862645149e-09
B241: Estimated Tariff Revenue | C241: 2014-15 | D241: 2015-16 | E241: 2016-17
B242: Estimated Tariff quantities
B243: BULK RAW WATER
B244: Number of Minor Customers | C244: ='State Water data inputs'!F$100 -> 73 | D244: ='State Water data inputs'!G$100 -> 75 | E244: ='State Water data inputs'!H$100 -> 76
B246: Usage (ML)
B247: - Delta Electricity | C247: ='State Water data inputs'!F$88 -> 6239.8482 | D247: ='State Water data inputs'!G$88 -> 6167.8482 | E247: ='State Water data inputs'!H$88 -> 6214.230648
B248: - Sydney Catchment Authority | C248: ='State Water data inputs'!F$89 -> 2431.62875 | D248: ='State Water data inputs'!G$89 -> 2400.12875 | E248: ='State Water data inputs'!H$89 -> 2396.45228
B249: - Oberon Council | C249: ='State Water data inputs'!F$90 -> 722.08692 | D249: ='State Water data inputs'!G$90 -> 711.08692 | E249: ='State Water data inputs'!H$90 -> 732.2107443
B250: - Individual Minor Customers | C250: ='State Water data inputs'!F$91 -> 54.09287623 | D250: ='State Water data inputs'!G$91 -> 48.09287623 | E250: ='State Water data inputs'!H$91 -> 51.64285758
B252: BULK FILTERED WATER
B253: Number of Minor Customers | C253: ='State Water data inputs'!F$101 -> 207 | D253: ='State Water data inputs'!G$101 -> 209 | E253: ='State Water data inputs'!H$101 -> 210
B255: Usage
B256: - Lithgow Council | C256: ='State Water data inputs'!F$93 -> 990.5005 | D256: ='State Water data inputs'!G$93 -> 979.0005 | E256: ='State Water data inputs'!H$93 -> 969.2778999
B257: - Individual Minor Customers | C257: ='State Water data inputs'!F$94 -> 133.8055767 | D257: ='State Water data inputs'!G$94 -> 127.3055767 | E257: ='State Water data inputs'!H$94 -> 131.4643028
B260: Tariff Revenue
B261: BULK RAW WATER
B262: Raw Water: Major customer Minimum Annual Quantity (MAQ) access charge
B263: Delta
B264: Price $ | C264: =C$131 -> 0.3473719547 | D264: =D$131 -> 0.3593967712 | E264: =E$131 -> 0.3704486333
B265: Quantity (per kL) | C265: =C$98*10^3 -> 8184000 | D265: =D$98*10^3 -> 8184000 | E265: =E$98*10^3 -> 8184000
B266: Revenue $ | C266: =C264*C265 -> 2842892.077 | D266: =D264*D265 -> 2941303.175 | E266: =E264*E265 -> 3031751.615
B267: Sydney Catchment
B268: Price $ | C268: =C$131 -> 0.3473719547 | D268: =D$131 -> 0.3593967712 | E268: =E$131 -> 0.3704486333
B269: Quantity (per kL) | C269: =C$99*10^3 -> 3650000 | D269: =D$99*10^3 -> 3650000 | E269: =E$99*10^3 -> 3650000
B270: Revenue $ | C270: =C268*C269 -> 1267907.635 | D270: =D268*D269 -> 1311798.215 | E270: =E268*E269 -> 1352137.512
B271: Oberon Council
B272: Price $ | C272: =C$131 -> 0.3473719547 | D272: =D$131 -> 0.3593967712 | E272: =E$131 -> 0.3704486333
B273: Quantity (per kL) | C273: =C$100*10^3 -> 1064000 | D273: =D$100*10^3 -> 1064000 | E273: =E$100*10^3 -> 1064000
B274: Revenue $ | C274: =C272*C273 -> 369603.7598 | D274: =D272*D273 -> 382398.1645 | E274: =E272*E273 -> 394157.3459
B276: Raw Water: Individual Minor Customer access charge
B277: Price $ (Annual Service Charge 2014-15 onwards) | C277: =C264*C$101 -> 69.47439095 | D277: =D264*D$101 -> 71.87935423 | E277: =E264*E$101 -> 74.08972667
B278: Quantity (per unit) | C278: =C$101*C244 -> 14600 | D278: =D$101*D244 -> 15000 | E278: =E$101*E244 -> 15200
... 136 more rows
